Workbook

Sheet INDEX
A1: INDEX | B1: Required updates (if not specifically stated, no input required)
A2: Model Specs
A3: 1. Information Sheet | B3: update
A4: 2. Current Tariff Schedule
A5: 3. Continuity Schedule
A6: 4. Billing Det. for Def-Var | B6: column T - Account 1568 balances by rate class
A7: 5. Allocating Def-Var Balances
A8: 6. GA Calculation | B8: columns E & G - 2016 Class A data; NEW - Column H
A9: 6A. GA Allocation_Class A | B9: Table "Allocation of GA Balances to Former Class B Customers" - Class A data
A10: 6B. GA Allocation_new Class B | B10: NEW - Input only required in Table "Allocation of GA Balances to Former Class A Customers"
A11: 7. CBR Calculation
A12: 7A. CBR Allocation_Class A
A13: 7B. CBR Allocation_new Class B
A14: 8. Calculation of Def-Var RR | B14: update recovery period, if different from the default "12"
A15: 9. STS-Tax Change
A16: 10. Shared Tax - RR
A17: 11. RTSR - Current Rates
A18: 12. RTSR-UTRs & Sub-Tx | B18: Update wholesale rates, if required
A19: 13. RTSR-Historic Wholesale
A20: 14. RTSR-Current Wholesale
A21: 15. RTSR-Forecast Wholesale
A22: 16. RTSR-Rates to Forecast
A23: 17. Rev2Cost-GDPIPI
A24: 18. Regulatory Charges
A25: 19. Additional Rates
A26: 20. Final Tariff Schedule | B26: map rates from RATES tab
A27: 21. Bill Impacts
A28: RATES
A29: BoD Reporting
A30: 10th percentile | B30: not active

Sheet Model Specs
A1: Back to Index | K1: Lists:
B2: Model Specifications
K3: Yes
B4: Utility | C4: Alectra - Hydro One Brampton | K4: No
B6: Applying for Rates Effective | C6: 2018-01-01 | K6: kWh
K7: kW
K8: kVA
B9: Line Loss Factor | C9: 1.0341
K10: Alectra - PowerStream
K11: Alectra - Enersource
K12: Alectra - Horizon Utilites
K13: Alectra - Hydro One Brampton
C14: Rate Classes (select from the List)
B15: =IFERROR(VLOOKUP(C15,$K$16:$L$29,2,FALSE),"") -> RES | C15: RESIDENTIAL SERVICE CLASSIFICATION
B16: =IFERROR(VLOOKUP(C16,$K$16:$L$29,2,FALSE),"") -> GSL | C16: GENERAL SERVICE LESS THAN 50 kW SERVICE CLASSIFICATION | K16: RESIDENTIAL SERVICE CLASSIFICATION | L16: RES
B17: GS50_699 | C17: GENERAL SERVICE 50 to 699 KW SERVICE CLASSIFICATION | K17: GENERAL SERVICE LESS THAN 50 kW SERVICE CLASSIFICATION | L17: GSL
B18: GS700 | C18: GENERAL SERVICE 700 to 4,999 KW SERVICE CLASSIFICATION | K18: GENERAL SERVICE 50 to 499 kW SERVICE CLASSIFICATION | L18: GS50_499
B19: LU | C19: LARGE USE SERVICE CLASSIFICATION | K19: GENERAL SERVICE 50 to 699 KW SERVICE CLASSIFICATION | L19: GS50_699
B20: SB | C20: STANDBY POWER SERVICE CLASSIFICATION | K20: GENERAL SERVICE 500 to 4,999 kW SERVICE CLASSIFICATION | L20: GS500
B21: USL | C21: UNMETERED SCATTERED LOAD SERVICE CLASSIFICATION | K21: GENERAL SERVICE 700 to 4,999 KW SERVICE CLASSIFICATION | L21: GS700
B22: SL | C22: STREET LIGHTING SERVICE CLASSIFICATION | K22: LARGE USE SERVICE CLASSIFICATION | L22: LU
B23: EMB | C23: EMBEDDED DISTRIBUTOR SERVICE CLASSIFICATION | K23: UNMETERED SCATTERED LOAD SERVICE CLASSIFICATION | L23: USL
B24: DG | C24: DISTRIBUTED GENERATION [DGEN] SERVICE CLASSIFICATION | K24: STREET LIGHTING SERVICE CLASSIFICATION | L24: SL
B25: WST | C25: ENERGY FROM WASTE SERVICE CLASSIFICATION | K25: STANDBY POWER SERVICE CLASSIFICATION | L25: SB
K26: SENTINEL LIGHTING SERVICE CLASSIFICATION | L26: SEN
K27: EMBEDDED DISTRIBUTOR SERVICE CLASSIFICATION | L27: EMB
K28: DISTRIBUTED GENERATION [DGEN] SERVICE CLASSIFICATION | L28: DG
K29: ENERGY FROM WASTE SERVICE CLASSIFICATION | L29: WST
B34: Have one or more Class A customers | C34: Yes

Sheet 1. Information Sheet
A1: Back to Index | V1: a
B2: INCENTIVE REGULATION MODEL FOR 2018 FILERS
N12: Version | O12: 1
F14: Utility Name | G14: Alectra - Hydro One Brampton
F16: Service Territory
F18: Assigned EB Number | G18: EB-2017-0024
F20: Name of Contact and Title | G20: Indy J. Butany-DeSouza
F22: Phone Number | G22: 905-821-5727
F24: Email Address | G24: indy.butany@alectrautilities.com
F26: We are applying for rates effective | G26: 2018-01-01
F28: Rate-Setting Method | G28: Price Cap IR
B30: Please indicate in which Rate Year the Group 1 accounts were last cleared1 | G30: 2017
B32: Please indicate the last Cost of Service Re-Basing Year | G32: 2015
C35: Notes
D37: Pale gray cells represent input cells.
D39: Pale blue cells represent drop-down lists.
D41: White cells contain fixed values, automatically generated values or formulae.
B44: Note: 1. Rate year of application

Sheet 2. Current Tariff Schedule
A1: Back to Index
B2: INCENTIVE REGULATION MODEL FOR 2018 FILERS
B11: ='Model Specs'!C4 -> Alectra - Hydro One Brampton
B12: TARIFF OF RATES AND CHARGES
B13: Effective Date January 1, 2017
B14: Implementation Date January 1, 2017
B16: This schedule supersedes and replaces all previously
B17: approved schedules of Rates, Charges and Loss Factors
B18: EB-2016-0080
B19: RESIDENTIAL SERVICE CLASSIFICATION
B20: This classification applies to an account where the electricity is supplied exclusively to single-family dwelling units for domestic or household purposes, including seasonal occupancy. This includes, but is not limited to, detached houses, one unit of a semi-detached, duplex, triplex or quadruplex house, with a residential zoning. Separately metered dwellings within a town house complex also qualify as residential customers. Further servicing details are available in the distributor’s Conditions of Service.
B22: APPLICATION
B24: The application of these rates and charges shall be in accordance with the Licence of the Distributor and any Code or Order of the Ontario Energy Board, and amendments thereto as approved by the Ontario Energy Board, which may be applicable to the administration of this schedule.
B26: No rates and charges for the distribution of electricity and charges to meet the costs of any work or service done or furnished for the purpose of the distribution of electricity shall be made except as permitted by this schedule, unless required by the Distributor’s Licence or a Code or Order of the Ontario Energy Ontario Energy Board, and amendments thereto as approved by the Ontario Energy Board, or as specified herein.
B28: Unless specifically noted, this schedule does not contain any charges for the electricity commodity, be it under the Regulated Price Plan, a contract with a retailer or the wholesale market price, as applicable. In addition, the charges in the MONTHLY RATES AND CHARGES - Regulatory Component of this schedule do not apply to a customer that is an embedded wholesale market participant.
B30: It should be noted that this schedule does not list any charges, assessments, or credits that are required by law to be invoiced by a distributor and that are not subject to Ontario Energy Board approval, such as the Debt Retirement Charge, the Global Adjustment and the HST.
B32: MONTHLY RATES AND CHARGES - Delivery Component
A34: R_F | B34: Service Charge | C34: $ | D34: 17.64
B35: Rate Rider for Smart Metering Entity Charge - effective until October 31, 2018 | C35: $ | D35: 0.79
A36: R_V | B36: Distribution Volumetric Rate | C36: $/kWh | D36: 0.008
A37: R_GA16 | B37: Rate Rider for Disposition of Global Adjustment Account (2018) - effective until December 31, 2017 Applicable only for Non-RPP Customers | C37: $/kWh | D37: 0.0049
A38: R_LRVA16 | B38: Rate Rider for Disposition of Lost Revenue Adjustment Mechanism Variance Account (LRAMVA) (2018) - effective until December 31, 2017 | C38: $/kWh | D38: 0.0001
A39: R_DVA16 | B39: Rate Rider for Disposition of Deferral/Variance Accounts (2018) - effective until December 31, 2017 | C39: $/kWh | D39: -0.0038
A40: R_1576 | B40: Rate Rider for Disposition of Account 1576 - effective until December 31, 2017 | C40: $/kWh | D40: 0.0005
A41: R_CBR16 | B41: Rate Rider for Disposition of CBR Class B (2017) - effective until December 31, 2017 | C41: $/kWh | D41: 0.0003
A42: R_TN | B42: Retail Transmission Rate - Network Service Rate | C42: $/kWh | D42: 0.0074
A43: R_TC | B43: Retail Transmission Rate - Line and Transformation Connection Service Rate | C43: $/kWh | D43: 0.0057
B45: MONTHLY RATES AND CHARGES - Regulatory Component
B47: Wholesale Market Service Rate | C47: $/kWh | D47: 0.0036
B48: Rural or Remote Electricity Rate Protection Charge (RRRP) | C48: $/kWh | D48: 0.0013
B49: Ontario Electricity Support Program Charge (OESP) | C49: $/kWh | D49: 0.0011
B50: Standard Supply Service - Administrative Charge (if applicable) | C50: $ | D50: 0.25
B51: ONTARIO ELECTRICITY SUPPORT PROGRAM RECIPIENTS
B52: In addition to the charges specified on page 1 of this tariff of rates and charges, the following credits are to be applied to eligible residential customers.
B54: APPLICATION
B56: The application of the charges are in accordance with the Distribution System Code (Section 9) and subsection 79.2(4) of the Ontario Energy Board Act, 1998.
B57: The application of these charges shall be in accordance with the Licence of the Distributor and any Code or Order of the Ontario Energy Board, and amendments thereto as approved by the Ontario Energy Board, which may be applicable to the administration of this schedule.
B58: In this class: “Aboriginal person” includes a person who is a First Nations person, a Métis person or an Inuit person; “account-holder” means a consumer who has an account with a distributor that falls within a residential-rate classification as specified in a rate order made by the Ontario Energy Board under section 78 of the Act, and who lives at the service address to which the account relates for at least six months in a year; “electricity-intensive medical device” means an oxygen concentrator, a mechanical ventilator, or such other device as may be specified by the Ontario Energy Board; “household” means the account-holder and any other people living at the accountholder’s service address for at least six months in a year, including people other than the account-holder’s spouse, children or other relatives; “household income” means the combined annual after-tax income of all members of a household aged 16 or over;
B60: MONTHLY RATES AND CHARGES
B63: Class A
B64: (a) account-holders with a household income of $28,000 or less living in a household of one or two persons; (b) account-holders with a household income of between $28,001 and $39,000 living in a household of three persons; (c) account-holders with a household income of between $39,001 and $48,000 living in a household of five persons; and (d) account-holders with a household income of between $48,001 and $52,000 living in a household of seven or more persons; but does not include account-holders in Class E. OESP Credit | C64: $ | D64: -30
B66: Class B
B67: (a) account-holders with a household income of $28,000 or less living in a household of three persons; (b) account-holders with a household income of between $28,001 and $39,000 living in a household of four persons; (c) account-holders with a household income of between $39,001 and $48,000 living in a household of six persons; but does not include account-holders in Class F. OESP Credit | C67: $ | D67: -34
B69: Class C
B70: (a) account-holders with a household income of $28,000 or less living in a household of four persons; (b) account-holders with a household income of between $28,001 and $39,000 living in a household of five persons; (c) account-holders with a household income of between $39,001 and $48,000 living in a household of seven or more persons; but does not include account-holders in Class G. OESP Credit | C70: $ | D70: -38
B72: Class D
B73: (a) account-holders with a household income of $28,000 or less living in a household of five persons; and (b) account-holders with a household income of between $28,001 and $39,000 living in a household of six persons; but does not include account-holders in Class H. OESP Credit | C73: $ | D73: -42
B75: Class E
B76: Class E comprises account-holders with a household income and household size described under Class A who also meet any of the following conditions: (a) the dwelling to which the account relates is heated primarily by electricity; (b) the account-holder or any member of the account-holder’s household is an Aboriginal person; or (c) the account-holder or any member of the account-holder’s household regularly uses, for medical purposes, an electricity-intensive medical device at the dwelling to which the account relates. OESP Credit | C76: $ | D76: -45
B78: Class F
B79: (a) account-holders with a household income of $28,000 or less living in a household of six or more persons; (b) account-holders with a household income of between $28,001 and $39,000 living in a household of seven or more persons; or (c) account-holders with a household income and household size described under Class B who also meet any of the following conditions:
B80: i. the dwelling to which the account relates is heated primarily by electricity; ii. the account-holder or any member of the account-holder’s household is an Aboriginal person; or iii. the account-holder or any member of the account-holder’s household regularly uses, for medical purposes, an electricity-intensive medical device at the dwelling to which the account relates
B81: OESP Credit | C81: $ | D81: -50
B83: Class G
B84: Class G comprises account-holders with a household income and household size described under Class C who also meet any of the following conditions: (a) the dwelling to which the account relates is heated primarily by electricity; (b) the account-holder or any member of the account-holder’s household is an Aboriginal person; or (c) the account-holder or any member of the account-holder’s household regularly uses, for medical purposes, an electricity-intensive medical device at the dwelling to which the account relates. OESP Credit | C84: $ | D84: -55
B86: Class H
B87: Class H comprises account-holders with a household income and household size described under Class D who also meet any of the following conditions: (a) the dwelling to which the account relates is heated primarily by electricity; (b) the account-holder or any member of the account-holder’s household is an Aboriginal person ; or (c) the account-holder or any member of the account-holder’s household regularly uses, for medical purposes, an electricity-intensive medical device at the dwelling to which the account relates. OESP Credit | C87: $ | D87: -60
B89: Class I
B90: Class I comprises account-holders with a household income and household size described under paragraphs (a) or (b) of Class F who also meet any of the following conditions: (a) the dwelling to which the account relates is heated primarily by electricity; (b) the account-holder or any member of the account-holder’s household is an Aboriginal person; or (c) the account-holder or any member of the account-holder’s household regularly uses, for medical purposes, an electricity-intensive medical device at the dwelling to which the account relates. OESP Credit | C90: $ | D90: -75
B91: GENERAL SERVICE LESS THAN 50 KW SERVICE CLASSIFICATION
B92: This classification applies to a non residential account whose average monthly maximum demand is less than, or is forecast to be less than, 50 kW. Multi-unit residential establishments such as apartment buildings supplied through one service (bulk metered) shall normally be classified as general service. Where service is provided to combined residential and business, or residential and agricultural, whether seasonal or all-year premises, and the wiring does not provide for separate metering, the service shall normally be classed as general service. Further servicing details are available in the distributor’s Conditions of Service.
B94: APPLICATION
B96: The application of these rates and charges shall be in accordance with the Licence of the Distributor and any Code or Order of the Ontario Energy Board, and amendments thereto as approved by the Ontario Energy Board, which may be applicable to the administration of this schedule.
B98: No rates and charges for the distribution of electricity and charges to meet the costs of any work or service done or furnished for the purpose of the distribution of electricity shall be made except as permitted by this schedule, unless required by the Distributor’s Licence or a Code or Order of the Ontario Energy Board, and amendments thereto as approved by the Ontario Energy Board, or as specified herein.
B100: Unless specifically noted, this schedule does not contain any charges for the electricity commodity, be it under the Regulated Price Plan, a contract with a retailer or the wholesale market price, as applicable. In addition, the charges in the MONTHLY RATES AND CHARGES - Regulatory Component of this schedule do not apply to a customer that is an embedded wholesale market participant.
B102: It should be noted that this schedule does not list any charges, assessments, or credits that are required by law to be invoiced by a distributor and that are not subject to Ontario Energy Board approval, such as the Debt Retirement Charge, the Global Adjustment and the HST.
B104: MONTHLY RATES AND CHARGES - Delivery Component
A106: GSL_F | B106: Service Charge | C106: $ | D106: 25.12
B107: Rate Rider for Smart Metering Entity Charge - effective until October 31, 2018 | C107: $ | D107: 0.79
A108: GSL_V | B108: Distribution Volumetric Rate | C108: $/kWh | D108: 0.0167
A109: GSL_GA16 | B109: Rate Rider for Disposition of Global Adjustment Account (2018) - effective until December 31, 2017 Applicable only for Non-RPP Customers | C109: $/kWh | D109: 0.0049
A110: GSL_LRVA16 | B110: Rate Rider for Disposition of Lost Revenue Adjustment Mechanism Variance Account (LRAMVA) (2018) - effective until December 31, 2017 | C110: $/kWh | D110: 0.0014
A111: GSL_DVA16 | B111: Rate Rider for Disposition of Deferral/Variance Accounts (2018) - effective until December 31, 2017 | C111: $/kWh | D111: -0.0038
A112: GSL_1576 | B112: Rate Rider for Disposition of Account 1576 - effective until December 31, 2017 | C112: $/kWh | D112: 0.0005
A113: GSL_CBR16 | B113: Rate Rider for Disposition of CBR Class B (2017) - effective until December 31, 2017 | C113: $/kWh | D113: 0.0003
A114: GSL_TN | B114: Retail Transmission Rate - Network Service Rate | C114: $/kWh | D114: 0.0066
A115: GSL_TC | B115: Retail Transmission Rate - Line and Transformation Connection Service Rate | C115: $/kWh | D115: 0.0048
B117: MONTHLY RATES AND CHARGES - Regulatory Component
B119: Wholesale Market Service Rate | C119: $/kWh | D119: 0.0036
B120: Rural or Remote Electricity Rate Protection Charge (RRRP) | C120: $/kWh | D120: 0.0013
B121: Ontario Electricity Support Program Charge (OESP) | C121: $/kWh | D121: 0.0011
B122: Standard Supply Service - Administrative Charge (if applicable) | C122: $ | D122: 0.25
B123: GENERAL SERVICE 50 TO 699 KW SERVICE CLASSIFICATION
B124: This classification applies to a non residential account whose average monthly maximum demand used for billing purposes is equal to or greater than, or is forecast to be equal to or greater than, 50 kW but less than 700 kW. Further servicing details are available in the distributor’s Conditions of Service.
B126: APPLICATION
B128: The application of these rates and charges shall be in accordance with the Licence of the Distributor and any Code or Order of the Ontario Energy Board, and amendments thereto as approved by the Ontario Energy Board, which may be applicable to the administration of this schedule.
B130: No rates and charges for the distribution of electricity and charges to meet the costs of any work or service done or furnished for the purpose of the distribution of electricity shall be made except as permitted by this schedule, unless required by the Distributor’s Licence or a Code or Order of the Ontario Energy Board, and amendments thereto as approved by the Ontario Energy Board, or as specified herein.
B132: Unless specifically noted, this schedule does not contain any charges for the electricity commodity, be it under the Regulated Price Plan, a contract with a retailer or the wholesale market price, as applicable. In addition, the charges in the MONTHLY RATES AND CHARGES - Regulatory Component of this schedule do not apply to a customer that is an embedded wholesale market participant.
B134: It should be noted that this schedule does not list any charges, assessments, or credits that are required by law to be invoiced by a distributor and that are not subject to Ontario Energy Board approval, such as the Debt Retirement Charge, the Global Adjustment and the HST.
B136: MONTHLY RATES AND CHARGES - Delivery Component
A138: GS50_699_F | B138: Service Charge | C138: $ | D138: 125.33
A139: GS50_699_V | B139: Distribution Volumetric Rate | C139: $/kW | D139: 2.8387
A140: GS50_699_GA16 | B140: Rate Rider for Disposition of Global Adjustment Account (2018) - effective until December 31, 2017 Applicable only for Non-RPP Customers | C140: $/kWh | D140: 0.0049
A141: GS50_699_LRVA16 | B141: Rate Rider for Disposition of Lost Revenue Adjustment Mechanism Variance Account (LRAMVA) (2018) - effective until December 31, 2017 | C141: $/kW | D141: 0.0753
A142: GS50_699_DVA16 | B142: Rate Rider for Disposition of Deferral/Variance Accounts (2018) - effective until December 31, 2017 | C142: $/kW | D142: -1.3502
A143: GS50_699_1576 | B143: Rate Rider for Disposition of Account 1576 - effective until December 31, 2017 | C143: $/kW | D143: 0.1771
A144: GS50_699_CBR16 | B144: Rate Rider for Disposition of CBR Class B (2017) - effective until December 31, 2017 | C144: $/kW | D144: 0.1027
A145: GS50_699_TN | B145: Retail Transmission Rate - Network Service Rate | C145: $/kW | D145: 2.5604
A146: GS50_699_TC | B146: Retail Transmission Rate - Line and Transformation Connection Service Rate | C146: $/kW | D146: 1.9177
B148: MONTHLY RATES AND CHARGES - Regulatory Component
B150: Wholesale Market Service Rate | C150: $/kWh | D150: 0.0036
B151: Rural or Remote Electricity Rate Protection Charge (RRRP) | C151: $/kWh | D151: 0.0013
B152: Ontario Electricity Support Program Charge (OESP) | C152: $/kWh | D152: 0.0011
B153: Standard Supply Service - Administrative Charge (if applicable) | C153: $ | D153: 0.25
B154: GENERAL SERVICE 700 TO 4,999 KW SERVICE CLASSIFICATION
B155: This classification applies to a non residential account whose average monthly maximum demand used for billing purposes is equal to or greater than, or is forecast to be equal to or greater than, 700 kW but less than 5,000 kW. Further servicing details are available in the distributor’s Conditions of Service.
B157: APPLICATION
B159: The application of these rates and charges shall be in accordance with the Licence of the Distributor and any Code or Order of the Ontario Energy Board, and amendments thereto as approved by the Ontario Energy Board, which may be applicable to the administration of this schedule.
B161: No rates and charges for the distribution of electricity and charges to meet the costs of any work or service done or furnished for the purpose of the distribution of electricity shall be made except as permitted by this schedule, unless required by the Distributor’s Licence or a Code or Order of the Ontario Energy Board, and amendments thereto as approved by the Ontario Energy Board, or as specified herein.
B163: Unless specifically noted, this schedule does not contain any charges for the electricity commodity, be it under the Regulated Price Plan, a contract with a retailer or the wholesale market price, as applicable. In addition, the charges in the MONTHLY RATES AND CHARGES - Regulatory Component of this schedule do not apply to a customer that is an embedded wholesale market participant.
B165: It should be noted that this schedule does not list any charges, assessments, or credits that are required by law to be invoiced by a distributor and that are not subject to Ontario Energy Board approval, such as the Debt Retirement Charge, the Global Adjustment and the HST.
B167: MONTHLY RATES AND CHARGES - Delivery Component
A169: GS700_F | B169: Service Charge | C169: $ | D169: 1130.84
A170: GS700_V | B170: Distribution Volumetric Rate | C170: $/kW | D170: 3.2953
A171: GS700_GA16 | B171: Rate Rider for Disposition of Global Adjustment Account (2018) - effective until December 31, 2017 Applicable only for Non-RPP Customers | C171: $/kWh | D171: 0.0049
A172: GS700_LRVA16 | B172: Rate Rider for Disposition of Lost Revenue Adjustment Mechanism Variance Account (LRAMVA) (2018) - effective until December 31, 2017 | C172: $/kW | D172: 0.0021
A173: GS700_DVA_nonWMP | B173: Rate Rider for Disposition of Deferral/Variance Accounts (2018) - effective until December 31, 2017 Applicable only for Non-Wholesale Market Participants | C173: $/kW | D173: -1.5808
A174: GS700_DVA16 | B174: Rate Rider for Disposition of Deferral/Variance Accounts (2018) - effective until December 31, 2017 | C174: $/kW | D174: 0.0372
A175: GS700_1576 | B175: Rate Rider for Disposition of Account 1576 - effective until December 31, 2017 | C175: $/kW | D175: 0.2029
A176: GS700_CBR16 | B176: Rate Rider for Disposition of CBR Class B (2017) - Applicable only to Class B customers - effective until December 31, 2017 | C176: $/kW | D176: 0.1137
A177: GS700_CBR16_A | B177: Rate Rider for Disposition of CBR Class B (2017) - For Class A , formerly Class B - effective until December 31, 2017 | C177: $/kW | D177: 0.013
A178: GS700_TN | B178: Retail Transmission Rate - Network Service Rate | C178: $/kW | D178: 2.8714
A179: GS700_TC | B179: Retail Transmission Rate - Line and Transformation Connection Service Rate | C179: $/kW | D179: 2.0614
B181: MONTHLY RATES AND CHARGES - Regulatory Component
B183: Wholesale Market Service Rate | C183: $/kWh | D183: 0.0036
B184: Rural or Remote Electricity Rate Protection Charge (RRRP) | C184: $/kWh | D184: 0.0013
B185: Ontario Electricity Support Program Charge (OESP) | C185: $/kWh | D185: 0.0011
B186: Standard Supply Service - Administrative Charge (if applicable) | C186: $ | D186: 0.25
B187: LARGE USE SERVICE CLASSIFICATION
B188: This classification applies to an account whose average monthly maximum demand over 12 consecutive months used for billing purposes is equal to or greater than 5,000 kW, or is forecast to be equal to or greater than 5,000 kW. Further servicing details are available in the distributor’s Conditions of Service.
B190: APPLICATION
B192: The application of these rates and charges shall be in accordance with the Licence of the Distributor and any Code or Order of the Ontario Energy Board, and amendments thereto as approved by the Ontario Energy Board, which may be applicable to the administration of this schedule.
B194: No rates and charges for the distribution of electricity and charges to meet the costs of any work or service done or furnished for the purpose of the distribution of electricity shall be made except as permitted by this schedule, unless required by the Distributor’s Licence or a Code or Order of the Ontario Energy Board, and amendments thereto as approved by the Ontario Energy Board, or as specified herein.
B196: Unless specifically noted, this schedule does not contain any charges for the electricity commodity, be it under the Regulated Price Plan, a contract with a retailer or the wholesale market price, as applicable. In addition, the charges in the MONTHLY RATES AND CHARGES - Regulatory Component of this schedule do not apply to a customer that is an embedded wholesale market participant.
B198: It should be noted that this schedule does not list any charges, assessments, or credits that are required by law to be invoiced by a distributor and that are not subject to Ontario Energy Board approval, such as the Debt Retirement Charge, the Global Adjustment and the HST.
B200: MONTHLY RATES AND CHARGES - Delivery Component
A202: LU_F | B202: Service Charge | C202: $ | D202: 4705.66
A203: LU_V | B203: Distribution Volumetric Rate | C203: $/kW | D203: 2.4949
A204: LU_GA16 | B204: Rate Rider for Disposition of Global Adjustment Account (2018) - effective until December 31, 2017 Applicable only for Non-RPP Customers | C204: $/kWh | D204: 0.0049
A205: LU_LRVA16 | B205: Rate Rider for Disposition of Lost Revenue Adjustment Mechanism Variance Account (LRAMVA) (2018) - effective until December 31, 2017 | C205: $/kW | D205: 0.0407
A206: LU_DVA16 | B206: Rate Rider for Disposition of Deferral/Variance Accounts (2018) - effective until December 31, 2017 | C206: $/kW | D206: -2.0206
A207: LU_1576 | B207: Rate Rider for Disposition of Account 1576 - effective until December 31, 2017 | C207: $/kW | D207: 0.2634
A208: LU_CBR16 | B208: Rate Rider for Disposition of CBR Class B (2017) - Applicable ony to Class B customers - effective until December 31, 2017 | C208: $/kW | D208: 0.1602
A209: LU_TN | B209: Retail Transmission Rate - Network Service Rate | C209: $/kW | D209: 3.2499
A210: LU_TC | B210: Retail Transmission Rate - Line and Transformation Connection Service Rate | C210: $/kW | D210: 2.3826
B212: MONTHLY RATES AND CHARGES - Regulatory Component
B214: Wholesale Market Service Rate | C214: $/kWh | D214: 0.0036
B215: Rural or Remote Electricity Rate Protection Charge (RRRP) | C215: $/kWh | D215: 0.0013
B216: Ontario Electricity Support Program Charge (OESP) | C216: $/kWh | D216: 0.0011
B217: Standard Supply Service - Administrative Charge (if applicable) | C217: $ | D217: 0.25
B218: UNMETERED SCATTERED LOAD SERVICE CLASSIFICATION
B219: This classification applies to an account whose average monthly maximum demand is less than, or is forecast to be less than, 50 kW and the consumption is unmetered. Such connections include cable TV power packs, bus shelters, telephone booths, traffic lights, railway crossings, etc. The level of the consumption will be agreed to by the distributor and the customer, based on detailed manufacturer information/documentation with regard to electrical consumption of the unmetered load or periodic monitoring of actual consumption. Further servicing details are available in the distributor’s Conditions of Service.
B221: APPLICATION
B223: The application of these rates and charges shall be in accordance with the Licence of the Distributor and any Code or Order of the Ontario Energy Board, and amendments thereto as approved by the Ontario Energy Board, which may be applicable to the administration of this schedule.
B225: No rates and charges for the distribution of electricity and charges to meet the costs of any work or service done or furnished for the purpose of the distribution of electricity shall be made except as permitted by this schedule, unless required by the Distributor’s Licence or a Code or Order of the Ontario Energy Board, and amendments thereto as approved by the Ontario Energy Board, or as specified herein.
B227: Unless specifically noted, this schedule does not contain any charges for the electricity commodity, be it under the Regulated Price Plan, a contract with a retailer or the wholesale market price, as applicable. In addition, the charges in the MONTHLY RATES AND CHARGES - Regulatory Component of this schedule do not apply to a customer that is an embedded wholesale market participant.
B229: It should be noted that this schedule does not list any charges, assessments, or credits that are required by law to be invoiced by a distributor and that are not subject to Ontario Energy Board approval, such as the Debt Retirement Charge, the Global Adjustment and the HST.
B231: MONTHLY RATES AND CHARGES - Delivery Component
A233: USL_F | B233: Service Charge (per connection) | C233: $ | D233: 1.09
A234: USL_V | B234: Distribution Volumetric Rate | C234: $/kWh | D234: 0.0198
A235: USL_GA16 | B235: Rate Rider for Disposition of Global Adjustment Account (2018) - effective until December 31, 2017 Applicable only for Non-RPP Customers | C235: $/kWh | D235: 0.0049
A236: USL_LRVA16 | B236: Rate Rider for Disposition of Lost Revenue Adjustment Mechanism Variance Account (LRAMVA) (2018) - effective until December 31, 2017 | C236: $/kWh | D236: -0.0003
A237: USL_DVA16 | B237: Rate Rider for Disposition of Deferral/Variance Accounts (2018) - effective until December 31, 2017 | C237: $/kWh | D237: -0.0037
A238: USL_1576 | B238: Rate Rider for Disposition of Account 1576 - effective until December 31, 2017 | C238: $/kWh | D238: 0.0005
A239: USL_CBR16 | B239: Rate Rider for Disposition of CBR Class B (2017) - effective until December 31, 2017 | C239: $/kWh | D239: 0.0003
A240: USL_TN | B240: Retail Transmission Rate - Network Service Rate | C240: $/kWh | D240: 0.0066
A241: USL_TC | B241: Retail Transmission Rate - Line and Transformation Connection Service Rate | C241: $/kWh | D241: 0.0048
B243: MONTHLY RATES AND CHARGES - Regulatory Component
B245: Wholesale Market Service Rate | C245: $/kWh | D245: 0.0036
B246: Rural or Remote Electricity Rate Protection Charge (RRRP) | C246: $/kWh | D246: 0.0013
B247: Ontario Electricity Support Program Charge (OESP) | C247: $/kWh | D247: 0.0011
B248: Standard Supply Service - Administrative Charge (if applicable) | C248: $ | D248: 0.25
B249: STREET LIGHTING SERVICE CLASSIFICATION
B250: All service supplied to roadway lighting equipment owned by or operated by the City of Brampton, Regional Municipality of Peel, or the Ministry of Transportation, controlled by photo cells. The consumption for these customers will be based on the calculated connected load times the required lighting times established in the approved OEB street lighting load shape template. Further servicing details are available in the distributor’s Conditions of Service.
B252: APPLICATION
B254: The application of these rates and charges shall be in accordance with the Licence of the Distributor and any Code or Order of the Ontario Energy Board, and amendments thereto as approved by the Ontario Energy Board, which may be applicable to the administration of this schedule.
B256: No rates and charges for the distribution of electricity and charges to meet the costs of any work or service done or furnished for the purpose of the distribution of electricity shall be made except as permitted by this schedule, unless required by the Distributor’s Licence or a Code or Order of the Ontario Energy Board, and amendments thereto as approved by the Ontario Energy Board, or as specified herein.
B258: Unless specifically noted, this schedule does not contain any charges for the electricity commodity, be it under the Regulated Price Plan, a contract with a retailer or the wholesale market price, as applicable. In addition, the charges in the MONTHLY RATES AND CHARGES - Regulatory Component of this schedule do not apply to a customer that is an embedded wholesale market participant.
B260: It should be noted that this schedule does not list any charges, assessments, or credits that are required by law to be invoiced by a distributor and that are not subject to Ontario Energy Board approval, such as the Debt Retirement Charge, the Global Adjustment and the HST.
B262: MONTHLY RATES AND CHARGES - Delivery Component
A264: SL_F | B264: Service Charge (per connection) | C264: $ | D264: 2.3
A265: SL_V | B265: Distribution Volumetric Rate | C265: $/kW | D265: 11.5388
A266: SL_GA16 | B266: Rate Rider for Disposition of Global Adjustment Account (2018) - effective until December 31, 2017 Applicable only for Non-RPP Customers | C266: $/kWh | D266: 0.0049
A267: SL_LRVA16 | B267: Rate Rider for Disposition of Lost Revenue Adjustment Mechanism Variance Account (LRAMVA) (2018) - effective until December 31, 2017 | C267: $/kW | D267: 0.0388
A268: SL_DVA16 | B268: Rate Rider for Disposition of Deferral/Variance Accounts (2018) - effective until December 31, 2017 | C268: $/kW | D268: -1.2356
A269: SL_1576 | B269: Rate Rider for Disposition of Account 1576 - effective until December 31, 2017 | C269: $/kW | D269: 0.164
A270: SL_CBR16 | B270: Rate Rider for Disposition of CBR Class B (2017) - effective until December 31, 2017 | C270: $/kW | D270: 0.094
A271: SL_TN | B271: Retail Transmission Rate - Network Service Rate | C271: $/kW | D271: 2.1319
A272: SL_TC | B272: Retail Transmission Rate - Line and Transformation Connection Service Rate | C272: $/kW | D272: 1.5966
B274: MONTHLY RATES AND CHARGES - Regulatory Component
B276: Wholesale Market Service Rate | C276: $/kWh | D276: 0.0036
B277: Rural or Remote Electricity Rate Protection Charge (RRRP) | C277: $/kWh | D277: 0.0013
B278: Ontario Electricity Support Program Charge (OESP) | C278: $/kWh | D278: 0.0011
B279: Standard Supply Service - Administrative Charge (if applicable) | C279: $ | D279: 0.25
B280: STANDBY POWER SERVICE CLASSIFICATION
B281: This classification refers to an account that has Load Displacement Generation and requires the distributor to provide back-up service. Further servicing details are available in the distributor’s Conditions of Service.
B283: APPLICATION
B285: The application of these rates and charges shall be in accordance with the Licence of the Distributor and any Code or Order of the Ontario Energy Board, and amendments thereto as approved by the Ontario Energy Board, which may be applicable to the administration of this schedule.
B287: No rates and charges for the distribution of electricity and charges to meet the costs of any work or service done or furnished for the purpose of the distribution of electricity shall be made except as permitted by this schedule, unless required by the Distributor’s Licence or a Code or Order of the Ontario Energy Board, and amendments thereto as approved by the Ontario Energy Board, or as specified herein.
B289: Unless specifically noted, this schedule does not contain any charges for the electricity commodity, be it under the Regulated Price Plan, a contract with a retailer or the wholesale market price, as applicable. In addition, the charges in the MONTHLY RATES AND CHARGES - Regulatory Component of this schedule do not apply to a customer that is an embedded wholesale market participant.
... 125 more rows

Sheet 3. Continuity Schedule
A1: Back to Index | B1: Back to Index | CK1: FALSE
C2: INCENTIVE REGULATION MODEL FOR 2018 FILERS | CK2: FALSE
CK3: FALSE
CK4: FALSE
CK5: FALSE
CK6: FALSE
CK7: FALSE
CK8: FALSE
CK9: FALSE
CK10: TRUE
CK11: TRUE
C12: Please complete the following continuity schedule for the following Deferral/Variance Accounts. Enter information into green cells only. Column CE shoudl match the latest 2.1.7 RRR filing. When inputting balances in the continuity schedule, Account 1580 RSVA - Wholesale Market Service Charge is to exclude any amounts relating to CBR. The CBR amounts are to be entered separately in the Class A and Class B 1580 sub-accounts. Only Class B amounts are to be disposed. Class A amounts are not to be disposed. If you have received approval to dispose of balances from prior years, the starting point for entries in the schedule below will be the balance sheet date as per your general ledger for which you received approval. For example, if in the 2016 EDR process (CoS or IRM) you received approval for the December 31, 2014 balances, the starting point for your entries below should be the 2013 year. This will allow for the correct starting point for the 2014 opening balance columns for both principal and interest. Please refer to the footnotes for further instructions.
E16: 2010 | O16: 2011 | Y16: 2012 | AI16: 2013 | AS16: 2014 | BC16: 2015 | BM16: 2016 | BW16: 2017 | CA16: Projected Interest on Dec-31-16 Balances | CE16: 2.1.7 RRR
C17: Account Descriptions | D17: Account Number | E17: Opening Principal Amounts as of Jan 1, 2010 | F17: Transactions2 Debit / (Credit) during 2010 | G17: OEB-Approved Disposition during 2010 | H17: Principal Adjustments1 during 2010 | I17: Closing Principal Balance as of Dec 31, 2010 | J17: Opening Interest Amounts as of Jan 1, 2010 | K17: Interest Jan 1 to Dec 31, 2010 | L17: OEB-Approved Disposition during 2010 | M17: Interest Adjustments1 during 2010 | N17: Closing Interest Amounts as of Dec 31, 2010 | O17: Opening Principal Amounts as of Jan 1, 2011 | P17: Transactions2 Debit / (Credit) during 2011 | Q17: OEB-Approved Disposition during 2011 | R17: Principal Adjustments1 during 2011 | S17: Closing Principal Balance as of Dec 31, 2011 | T17: Opening Interest Amounts as of Jan 1, 2011 | U17: Interest Jan 1 to Dec 31, 2011 | V17: OEB-Approved Disposition during 2011 | W17: Interest Adjustments1 during 2011 | X17: Closing Interest Amounts as of Dec 31, 2011 | Y17: Opening Principal Amounts as of Jan 1, 2012 | Z17: Transactions2 Debit / (Credit) during 2012 | AA17: OEB-Approved Disposition during 2012 | AB17: Principal Adjustments1 during 2012 | AC17: Closing Principal Balance as of Dec 31, 2012 | AD17: Opening Interest Amounts as of Jan 1, 2012 | AE17: Interest Jan 1 to Dec 31, 2012 | AF17: OEB-Approved Disposition during 2012 | AG17: Interest Adjustments1 during 2012 | AH17: Closing Interest Amounts as of Dec 31, 2012 | AI17: Opening Principal Amounts as of Jan 1, 2013 | AJ17: Transactions2 Debit / (Credit) during 2013 | AK17: OEB-Approved Disposition during 2013 | AL17: Principal Adjustments1 during 2013 | AM17: Closing Principal Balance as of Dec 31, 2013 | AN17: Opening Interest Amounts as of Jan 1, 2013 | AO17: Interest Jan 1 to Dec 31, 2013 | AP17: OEB-Approved Disposition during 2013 | AQ17: Interest Adjustments1 during 2013 | AR17: Closing Interest Amounts as of Dec 31, 2013 | AS17: Opening Principal Amounts as of Jan 1, 2014 | AT17: Transactions2 Debit / (Credit) during 2014 | AU17: OEB-Approved Disposition during 2014 | AV17: Principal Adjustments1 during 2014 | AW17: Closing Principal Balance as of Dec 31, 2014 | AX17: Opening Interest Amounts as of Jan 1, 2014 | AY17: Interest Jan 1 to Dec 31. 2014 | AZ17: OEB-Approved Disposition during 2014 | BA17: Interest Adjustments1 during 2014 | BB17: Closing Interest Amounts as of Dec 31, 2014 | BC17: Opening Principal Amounts as of Jan 1, 2015 | BD17: Transactions2 Debit / (Credit) during 2015 | BE17: OEB-Approved Disposition during 2015 | BF17: Principal Adjustments1 during 2015 | BG17: Closing Principal Balance as of Dec 31, 15 | BH17: Opening Interest Amounts as of Jan 1, 15 | BI17: Interest Jan 1 to Dec 31, 15 | BJ17: OEB-Approved Disposition during 2015 | BK17: Interest Adjustments1 during 2015 | BL17: Closing Interest Amounts as of Dec 31, 15 | BM17: Opening Principal Amounts as of Jan 1, 2016 | BN17: Transactions2 Debit / (Credit) during 2016 | BO17: OEB-Approved Disposition during 2016 | BP17: Principal Adjustments1 during 2016 | BQ17: Closing Principal Balance as of Dec 31, 16 | BR17: Opening Interest Amounts as of Jan 1, 16 | BS17: Interest Jan 1 to Dec 31, 16 | BT17: OEB-Approved Disposition during 2016 | BU17: Interest Adjustments1 during 2016 | BV17: Closing Interest Amounts as of Dec 31, 16 | BW17: Principal Disposition during 2017 - instructed by OEB | BX17: Interest Disposition during 2017 - instructed by OEB | BY17: Closing Principal Balances as of Dec 31, 2017 Adjusted for Dispositions during 2017 | BZ17: Closing Interest Balances as of Dec 31, 16 Adjusted for Disposition in 2017 | CA17: Projected Interest from Jan 1, 2016 to December 31, 2016 on Dec 31 -16 balance adjusted for disposition on May 1, 2018 | CB17: Projected Interest from January 1, 2018 to April 30, 2018 on Dec 31 -16 balance adjusted for disposition during 2017 3 | CC17: Total Interest | CD17: Total Claim | CE17: As of Dec 31-16 | CF17: Variance RRR vs. 2016 Balance (Principal + Interest)
CD19: Claim before Forecasted Transactions
C20: Group 1 Accounts
C21: LV Variance Account | D21: 1550 | I21: =E21+F21-G21+H21 -> 0 | N21: =J21+K21-L21+M21 -> 0 | O21: =I21 -> 0 | P21: 67166.5 | S21: =O21+P21-Q21+SUM(R21:R21) -> 67166.5 | T21: =N21 -> 0 | U21: 110.61 | X21: =T21+U21-V21+W21 -> 110.61 | Y21: =S21 -> 67166.5 | Z21: 129687.79 | AA21: 0 | AB21: 0 | AC21: =Y21+Z21-AA21+SUM(AB21:AB21) -> 196854.29 | AD21: =X21 -> 110.61 | AE21: 1934.8 | AH21: =AD21+AE21-AF21+AG21 -> 2045.41 | AI21: =AC21 -> 196854.29 | AJ21: 159066.83 | AM21: =AI21+AJ21-AK21+SUM(AL21:AL21) -> 355921.12 | AN21: =AH21 -> 2045.41 | AO21: 3889.81 | AR21: =AN21+AO21-AP21+AQ21 -> 5935.22 | AS21: =AM21 -> 355921.12 | AT21: =2045.71+153880.84 -> 155926.55 | AU21: =2045.71+196854.29 -> 198900 | AW21: =AS21+AT21-AU21+SUM(AV21:AV21) -> 312947.67 | AX21: =AR21 -> 5935.22 | AY21: =-2045.41+3206.04 -> 1160.63 | AZ21: =-2045.41+4939.41 -> 2894 | BB21: =AX21+AY21-AZ21+BA21 -> 4201.85 | BC21: =AW21 -> 312947.67 | BD21: 248566.56 | BE21: 159066.83 | BG21: =BC21+BD21-BE21+SUM(BF21:BF21) -> 402447.4 | BH21: =BB21 -> 4201.85 | BI21: 3001.42 | BJ21: 3334.09 | BL21: =BH21+BI21-BJ21+BK21 -> 3869.18 | BM21: =BG21 -> 402447.4 | BN21: 247216.54 | BQ21: =BM21+BN21-BO21+SUM(BP21:BP21) -> 649663.94 | BR21: =BL21 -> 3869.18 | BS21: 5671.28 | BV21: =BR21+BS21-BT21+BU21 -> 9540.46 | BW21: 402447.4 | BX21: 8296.1 | BY21: =BQ21-BW21 -> 247216.54 | BZ21: =BV21-BX21 -> 1244.36 | CA21: =+BY21*(1.1%*0.75+1.5%*0.5+1.89%*1/12) -> 4283.026555 | CC21: =BZ21+CA21+CB21 -> 5527.386555 | CD21: =SUM(BY21:CB21) -> 252743.9266 | CE21: 659204.4 | CF21: =CE21-SUM(BQ21,BV21) -> 0
C22: Smart Metering Entity Charge Variance Account | D22: 1551 | I22: =E22+F22-G22+H22 -> 0 | N22: =J22+K22-L22+M22 -> 0 | O22: =I22 -> 0 | P22: 0 | S22: 0 | T22: 0 | U22: 0 | X22: =T22+U22-V22+W22 -> 0 | Y22: 0 | AC22: =Y22+Z22-AA22+SUM(AB22:AB22) -> 0 | AD22: =X22 -> 0 | AH22: =AD22+AE22-AF22+AG22 -> 0 | AI22: 0 | AJ22: -44087.23 | AM22: -44087.23 | AN22: 0 | AO22: -378.86 | AR22: =AN22+AO22-AP22+AQ22 -> -378.86 | AS22: -44087.23 | AT22: -64162.87 | AW22: -108250.1 | AX22: -378.86 | AY22: -1008.84 | BB22: =AX22+AY22-AZ22+BA22 -> -1387.7 | BC22: -108250.1 | BD22: =-54699.37-378.77 -> -55078.14 | BE22: =-44087.23-378.77 -> -44466 | BG22: -118862.24 | BH22: -1387.7 | BI22: =-937.04+378.77 -> -558.27 | BJ22: =-1032.51+378.77 -> -653.74 | BL22: =BH22+BI22-BJ22+BK22 -> -1292.23 | BM22: =BG22 -> -118862.24 | BN22: -59949.3 | BQ22: =BM22+BN22-BO22+SUM(BP22:BP22) -> -178811.54 | BR22: -1292.23 | BS22: -1545.4 | BV22: =BR22+BS22-BT22+BU22 -> -2837.63 | BW22: -118862.24 | BX22: -2599.71 | BY22: =BQ22-BW22 -> -59949.3 | BZ22: =BV22-BX22 -> -237.92 | CA22: =+BY22*(1.1%*0.75+1.5%*0.5+1.89%*1/12) -> -1038.621622 | CC22: =BZ22+CA22+CB22 -> -1276.541622 | CD22: =SUM(BY22:CB22) -> -61225.84162 | CE22: -181649.17 | CF22: =CE22-SUM(BQ22,BV22) -> 0
C23: RSVA - Wholesale Market Service Charge | D23: 1580 | I23: =E23+F23-G23+H23 -> 0 | N23: =J23+K23-L23+M23 -> 0 | O23: =I23 -> 0 | P23: -7817418.24 | S23: =O23+P23-Q23+SUM(R23:R23) -> -7817418.24 | T23: 0 | U23: -123699.46 | X23: =T23+U23-V23+W23 -> -123699.46 | Y23: -7817418.24 | Z23: -4935145 | AA23: 0 | AB23: 0 | AC23: =Y23+Z23-AA23+SUM(AB23:AB23) -> -12752563.24 | AD23: -123699.46 | AE23: -148594.66 | AH23: =AD23+AE23-AF23+AG23 -> -272294.12 | AI23: -12752563.24 | AJ23: -2481578.98 | AM23: -15234142.22 | AN23: -272294.12 | AO23: -209914.28 | AR23: =AN23+AO23-AP23+AQ23 -> -482208.4 | AS23: -15234142.22 | AT23: =-871126.24-272293.76 -> -1143420 | AU23: =-12752563.24-272293.76 -> -13024857 | AW23: -3352705.22 | AX23: -482208.4 | AY23: =-9921.42+272294.12 -> 262372.7 | AZ23: =-459757.12+272294.12 -> -187463 | BB23: =AX23+AY23-AZ23+BA23 -> -32372.7 | BC23: -3352705.22 | BD23: -8458613.72 | BE23: -2481578.98 | BG23: -9329739.96 | BH23: -32372.7 | BI23: -35534.35 | BJ23: -58930.49 | BL23: =BH23+BI23-BJ23+BK23 -> -8976.56 | BM23: -9329739.96 | BN23: =-3723875.51-2366.51 -> -3726242.02 | BQ23: =BM23+BN23-BO23+SUM(BP23:BP23) -> -13055981.98 | BR23: -8976.56 | BS23: -119774.12 | BV23: =BR23+BS23-BT23+BU23 -> -128750.68 | BW23: -9329739.96 | BX23: -111603.7 | BY23: -3726242.02 | BZ23: -17146.98 | CA23: -64557.143 | CC23: -81704.123 | CD23: =SUM(BY23:CB23) -> -3807946.143 | CE23: -12307849.37 | CF23: =CE23-SUM(BQ23,BV23) -> 876883.29
C24: Variance WMS – Sub-account CBR Class A | D24: 1580 | I24: 0 | N24: 0 | O24: 0 | P24: 0 | S24: 0 | T24: 0 | U24: 0 | X24: 0 | Y24: 0 | AC24: 0 | AD24: 0 | AH24: 0 | AI24: 0 | AM24: 0 | AN24: 0 | AR24: 0 | AS24: 0 | AW24: 0 | AX24: 0 | BB24: 0 | BC24: 0 | BD24: 76773.57 | BF24: =84783-76774 -> 8009 | BG24: =BC24+BD24-BE24+SUM(BF24:BF24) -> 84782.57 | BH24: 0 | BI24: 63 | BK24: 7 | BL24: 70 | BM24: 84782.57 | BN24: =-87149.1+2366.51 -> -84782.59 | BQ24: =BM24+BN24-BO24+SUM(BP24:BP24) -> -0.02000000002 | BR24: 70 | BS24: =-36.1799999999999-33.82 -> -70 | BV24: 9.947598301e-14 | BY24: =BQ24-BW24 -> -0.02000000002 | BZ24: 9.947598301e-14 | CA24: -0.0003465000003 | CC24: -0.0003465000002 | CD24: =SUM(BY24:CB24) -> -0.02034650002 | CE24: -2332.71 | CF24: =CE24-SUM(BQ24,BV24) -> -2332.69
C25: Variance WMS – Sub-account CBR Class B | D25: 1580 | I25: 0 | N25: 0 | O25: 0 | P25: 0 | S25: 0 | T25: 0 | U25: 0 | X25: 0 | Y25: 0 | AC25: 0 | AD25: 0 | AH25: 0 | AI25: 0 | AM25: 0 | AN25: 0 | AR25: 0 | AS25: 0 | AW25: 0 | AX25: 0 | BB25: 0 | BC25: 0 | BD25: 887200.84 | BF25: =964946-887201 -> 77745 | BG25: 964945.84 | BH25: 0 | BI25: 734.96808 | BK25: 78 | BL25: 812.96808 | BM25: 964945.84 | BN25: -97871.8 | BQ25: =BM25+BN25-BO25+SUM(BP25:BP25) -> 867074.04 | BR25: 812.96808 | BS25: =8962.48192+33.82 -> 8996.30192 | BV25: 9809.27 | BW25: 964945.84 | BX25: 11427.37 | BY25: -97871.8 | BZ25: -1618.1 | CA25: -1695.628935 | CC25: -3313.728935 | CD25: -101185.5289 | CE25: 876829.49 | CF25: =CE25-SUM(BQ25,BV25) -> -53.82
C26: RSVA - Retail Transmission Network Charge | D26: 1584 | I26: 0 | N26: 0 | O26: =I26 -> 0 | P26: 2802828.02 | S26: 2802828.02 | T26: 0 | U26: 41205.81 | X26: =T26+U26-V26+W26 -> 41205.81 | Y26: 2802828.02 | Z26: -131628.08 | AA26: 0 | AB26: 0 | AC26: 2671199.94 | AD26: 41205.81 | AE26: 40722.63 | AH26: =AD26+AE26-AF26+AG26 -> 81928.44 | AI26: 2671199.94 | AJ26: 1048861.42 | AM26: 3720061.36 | AN26: 81928.44 | AO26: 43640.07 | AR26: =AN26+AO26-AP26+AQ26 -> 125568.51 | AS26: 3720061.36 | AT26: =81928.06+716819.9 -> 798747.96 | AU26: =2671199.94+81928.06 -> 2753128 | AW26: 1765681.32 | AX26: 125568.51 | AY26: =-81928.06+21273.62 -> -60654.44 | AZ26: =-81928.06+121195.44 -> 39267.38 | BB26: =AX26+AY26-AZ26+BA26 -> 25646.69 | BC26: 1765681.32 | BD26: -1213537.23 | BE26: 1048861.42 | BG26: -496717.33 | BH26: 25646.69 | BI26: 2377.21 | BJ26: 19791.33 | BL26: =BH26+BI26-BJ26+BK26 -> 8232.57 | BM26: -496717.33 | BN26: -479527.58 | BQ26: -976244.91 | BR26: 8232.57 | BS26: -8982.35 | BV26: =BR26+BS26-BT26+BU26 -> -749.78 | BW26: -496717.33 | BX26: 2768.68 | BY26: -479527.58 | BZ26: -3518.46 | CA26: -8307.815323 | CC26: -11826.27532 | CD26: -491353.8553 | CE26: -976994.69 | CF26: =CE26-SUM(BQ26,BV26) -> 0
C27: RSVA - Retail Transmission Connection Charge | D27: 1586 | I27: 0 | N27: 0 | O27: 0 | P27: 794420.64 | S27: 794420.64 | T27: 0 | U27: 2379.68 | X27: 2379.68 | Y27: 794420.64 | Z27: -15977.83 | AA27: 0 | AB27: 0 | AC27: 778442.81 | AD27: 2379.68 | AE27: 12855.64 | AH27: 15235.32 | AI27: 778442.81 | AJ27: -300104.84 | AM27: 478337.97 | AN27: 15235.32 | AO27: 7917.27 | AR27: 23152.59 | AS27: 478337.97 | AT27: =15235.19+477699.11 -> 492934.3 | AU27: =15235.19+778442.810000001 -> 793678 | AW27: 177594.27 | AX27: 23152.59 | AY27: =-231.89-15235.32 -> -15467.21 | AZ27: =-15235.32+26678.32 -> 11443 | BB27: -3757.62 | BC27: 177594.27 | BD27: -60225.37 | BE27: -300104.84 | BG27: 417473.74 | BH27: -3757.62 | BI27: 5119.57 | BJ27: -7937.27 | BL27: 9299.22 | BM27: 417473.74 | BN27: 555267.17 | BQ27: 972740.91 | BR27: 9299.22 | BS27: 6812.32 | BV27: 16111.54 | BW27: 417473.74 | BX27: 13891.43 | BY27: 555267.17 | BZ27: 2220.11 | CA27: 9620.00372 | CC27: 11840.11372 | CD27: 567107.2837 | CE27: 988852.45 | CF27: 0
C28: RSVA - Power | D28: 1588 | I28: 0 | N28: 0 | O28: 0 | P28: -429113.32 | S28: -429113.32 | T28: 0 | U28: -6396.41 | X28: -6396.41 | Y28: -429113.32 | Z28: -414329.38 | AA28: 0 | AB28: 0 | AC28: -843442.7 | AD28: -6396.41 | AE28: -18709.04 | AH28: -25105.45 | AI28: -843442.7 | AJ28: -1530583.91 | AM28: -2374026.61 | AN28: -25105.45 | AO28: -30854.78 | AR28: -55960.23 | AS28: -2374026.61 | AT28: =-4590839.52-25105.3 -> -4615944.82 | AU28: =-843442.7-25105.3 -> -868548 | AW28: -6121423.43 | AX28: -55960.23 | AY28: =-22744.8+25105.45 -> 2360.65 | AZ28: =-37504.45+25105.45 -> -12399 | BB28: -41200.58 | BC28: -6121423.43 | BD28: -723029.18 | BE28: -1530583.91 | BG28: -5313868.7 | BH28: -41200.58 | BI28: -60980.25 | BJ28: -40955.36 | BL28: -61225.47 | BM28: -5313868.7 | BN28: -1020480.31 | BP28: =803138.79 -> 803138.79 | BQ28: -5531210.22 | BR28: -61225.47 | BS28: -69198.17 | BV28: -130423.64 | BW28: -5313868.7 | BX28: -119678.03 | BY28: -217341.52 | BZ28: -10745.61 | CA28: -3765.441834 | CC28: -14511.05183 | CD28: =SUM(BY28:CB28) -> -231852.5718 | CE28: -6464772.65 | CF28: -803138.79
C29: RSVA - Global Adjustment | D29: 1589 | I29: 0 | N29: 0 | O29: 0 | P29: 4893434.3 | S29: 4893434.3 | T29: 0 | U29: 22182.53 | X29: 22182.53 | Y29: 4893434.3 | Z29: -2946122.07 | AA29: 0 | AB29: 0 | AC29: 1947312.23 | AD29: 22182.53 | AE29: 26117.1 | AH29: 48299.63 | AI29: 1947312.23 | AJ29: 3459067.38 | AM29: 5406379.61 | AN29: 48299.63 | AO29: 67180.66 | AR29: 115480.29 | AS29: 5406379.61 | AT29: =48299.77+7681841.8 -> 7730141.57 | AU29: =48299.77+1947312.23 -> 1995612 | AW29: 11140909.18 | AX29: 115480.29 | AY29: =-48299.63+56521.81 -> 8222.18 | AZ29: =-48299.63+76924.63 -> 28625 | BB29: 95077.47 | BC29: 11140909.18 | BD29: 1769070.5 | BE29: 3459067.38 | BG29: 9450912.3 | BH29: 95077.47 | BI29: 73364.44 | BJ29: 89403.95 | BL29: 79037.96 | BM29: 9450912.3 | BN29: 8213.26 | BP29: =-1619355.47 -> -1619355.47 | BQ29: 7839770.09 | BR29: 79037.96 | BS29: 114760.96 | BV29: 193798.92 | BW29: 9450912.3 | BX29: 182998 | BY29: -1611142.21 | BZ29: 10800.92 | CA29: -27913.03879 | CC29: -17112.11879 | CD29: -1628254.329 | CE29: 9652924.48 | CF29: 1619355.47
C30: Disposition and Recovery/Refund of Regulatory Balances (2009)4 | D30: 1595 | I30: 0 | N30: 0 | O30: 0 | P30: 0 | S30: 0 | T30: 0 | U30: 0 | X30: 0 | Y30: 0 | Z30: 0 | AC30: 0 | AD30: 0 | AH30: 0 | AI30: 0 | AM30: 0 | AN30: 0 | AR30: 0 | AS30: 0 | AW30: 0 | AX30: 0 | BB30: 0 | BC30: 0 | BE30: 0 | BG30: 0 | BH30: 0 | BL30: 0 | BM30: 0 | BQ30: 0 | BR30: 0 | BV30: 0 | BY30: 0 | BZ30: 0 | CA30: 0 | CC30: 0 | CD30: 0 | CE30: 0 | CF30: 0
C31: Disposition and Recovery/Refund of Regulatory Balances (2010)4 | D31: 1595 | I31: 0 | N31: 0 | O31: 0 | P31: -2388706.54 | S31: -2388706.54 | T31: 0 | U31: 744532.79 | X31: 744532.79 | Y31: -2388706.54 | Z31: 2601535.68 | AC31: 212829.14 | AD31: 744532.79 | AE31: -874564.29 | AH31: -130031.5 | AI31: 212829.14 | AM31: 212829.14 | AN31: -130031.5 | AO31: 3128 | AR31: -126903.5 | AS31: 212829.14 | AT31: -130031.14 | AU31: =-130031.14+212829.14 -> 82798 | AW31: 1.164153218e-10 | AX31: -126903.5 | AY31: 130032.5 | AZ31: =-126903.5+130032.5 -> 3129 | BB31: 0 | BC31: 1.164153218e-10 | BE31: 0 | BG31: 1.164153218e-10 | BH31: 0 | BL31: 0 | BM31: 1.164153218e-10 | BQ31: 1.164153218e-10 | BR31: 0 | BV31: 0 | BY31: 1.164153218e-10 | BZ31: 0 | CA31: 2.016895451e-12 | CC31: 2.016895451e-12 | CD31: 1.184322173e-10 | CE31: 1.176958904e-10 | CF31: 1.28056854e-12
C32: Disposition and Recovery/Refund of Regulatory Balances (2011)4 | D32: 1595 | I32: 0 | N32: 0 | O32: 0 | P32: -132847.62 | S32: =O32+P32-Q32+SUM(R32:R32) -> -132847.62 | T32: 0 | U32: 11550.81 | X32: 11550.81 | Y32: -132847.62 | Z32: =97294.12-98295 -> -1000.88 | AC32: -133848.5 | AD32: 11550.81 | AE32: -4437.07 | AH32: 7113.74 | AI32: -133848.5 | AJ32: -22.78 | AM32: -133871.28 | AN32: 7113.74 | AO32: -1967 | AR32: 5146.74 | AS32: -133871.28 | AT32: 7113.5 | AU32: =-133848.5+7113.5 -> -126735 | AW32: -22.78 | AX32: 5146.74 | AY32: =-6.57-7114.74 -> -7121.31 | AZ32: =-7114.74+5146.74 -> -1968 | BB32: -6.57 | BC32: -22.78 | BD32: -15.04 | BG32: -37.82 | BH32: -6.57 | BI32: 6.99 | BL32: 0.42 | BM32: -37.82 | BN32: 37.82 | BQ32: 0 | BR32: 0.42 | BV32: 0.42 | BY32: 0 | BZ32: 0.42 | CA32: 0 | CC32: 0.42 | CD32: 0.42 | CE32: 0 | CF32: -0.42
C33: Disposition and Recovery/Refund of Regulatory Balances (2012)4 | D33: 1595 | I33: 0 | N33: 0 | O33: 0 | P33: 0 | S33: 0 | T33: 0 | U33: 0 | X33: 0 | Y33: 0 | AC33: 0 | AD33: 0 | AH33: 0 | AI33: 0 | AJ33: -86304 | AM33: -86304 | AN33: 0 | AR33: 0 | AS33: -86304 | AW33: -86304 | AX33: 0 | AY33: -1215.83 | BB33: -1215.83 | BC33: -86304 | BE33: -86304 | BG33: 0 | BH33: -1215.83 | BI33: -53 | BJ33: -1268.83 | BL33: 0 | BM33: 0 | BQ33: 0 | BR33: 0 | BS33: 0 | BV33: 0 | BY33: 0 | BZ33: 0 | CA33: 0 | CC33: 0 | CD33: 0 | CE33: 0 | CF33: 0
C34: Disposition and Recovery/Refund of Regulatory Balances (2013)4 | D34: 1595 | I34: 0 | N34: 0 | O34: 0 | P34: 0 | S34: 0 | T34: 0 | U34: 0 | X34: 0 | Y34: 0 | AC34: 0 | AD34: 0 | AH34: 0 | AI34: 0 | AM34: 0 | AN34: 0 | AR34: 0 | AS34: 0 | AW34: 0 | AX34: 0 | BB34: 0 | BC34: 0 | BG34: 0 | BH34: 0 | BL34: 0 | BM34: 0 | BN34: =-885.81-37.82 -> -923.63 | BQ34: -923.63 | BR34: 0 | BS34: -4.81 | BV34: -4.81 | BY34: -923.63 | BZ34: -4.81 | CA34: -16.00188975 | CC34: -20.81188975 | CD34: -944.4418897 | CE34: -928.02 | CF34: 0.42
C35: Disposition and Recovery/Refund of Regulatory Balances (2014)4 | D35: 1595 | I35: 0 | N35: 0 | O35: 0 | P35: 0 | S35: 0 | T35: 0 | U35: 0 | X35: 0 | Y35: 0 | AC35: 0 | AD35: 0 | AH35: 0 | AI35: 0 | AM35: 0 | AN35: 0 | AR35: 0 | AS35: 0 | AT35: =-86832.55+4134200.72+272807.97 -> 4320176.14 | AU35: 8196023.6 | AW35: -3875847.46 | AX35: 0 | AY35: =-88961.04-272808.53 -> -361769.57 | AZ35: 116471.5 | BB35: -478241.07 | BC35: -3875847.46 | BD35: =3789015+6866.09 -> 3795881.09 | BG35: =BC35+BD35-BE35+SUM(BF35:BF35) -> -79966.37 | BH35: -478241.07 | BI35: =-113674.48+478241.8 -> 364567.32 | BL35: -113673.75 | BM35: -79966.37 | BN35: =343885.48-0.5 -> 343884.98 | BQ35: =BM35+BN35-BO35+SUM(BP35:BP35) -> 263918.61 | BR35: =BL35 -> -113673.75 | BS35: =8099.75-949.32 -> 7150.43 | BV35: -106523.32 | BY35: 263918.61 | BZ35: -106523.32 | CA35: 4572.389918 | CC35: =BZ35+CA35+CB35 -> -101950.9301 | CD35: =SUM(BY35:CB35) -> 161967.6799 | CE35: 157394.97 | CF35: -0.3200000008
C36: Disposition and Recovery/Refund of Regulatory Balances (2015)4 | D36: 1595 | I36: 0 | N36: 0 | O36: 0 | P36: 0 | S36: 0 | T36: 0 | U36: 0 | X36: 0 | Y36: 0 | AC36: 0 | AD36: 0 | AH36: 0 | AI36: 0 | AM36: 0 | AN36: 0 | AR36: 0 | AS36: 0 | AW36: 0 | AX36: 0 | BB36: 0 | BC36: 0 | BD36: =-397083.04-223958 -> -621041.04 | BE36: -223958 | BG36: -397083.04 | BH36: 0 | BI36: =13800.31-2784 -> 11016.31 | BJ36: -2783.68 | BL36: 13799.99 | BM36: -397083.04 | BN36: =-288009.96+260189.4 -> -27820.56 | BQ36: -424903.6 | BR36: 13799.99 | BS36: =-357.11-7502.03 -> -7859.14 | BV36: 5940.85 | BY36: -424903.6 | BZ36: 5940.85 | CA36: -7361.45487 | CC36: -1420.60487 | CD36: =SUM(BY36:CB36) -> -426324.2049 | CE36: -418962.43 | CF36: 0.3200000001
C37: Disposition and Recovery/Refund of Regulatory Balances (2016)4 Not to be disposed of unless rate rider has expired and balance has been audited | D37: 1595 | I37: 0 | N37: 0 | O37: 0 | S37: 0 | T37: 0 | X37: 0 | Y37: 0 | AC37: 0 | AD37: 0 | AH37: 0 | AI37: 0 | AM37: 0 | AN37: 0 | AR37: 0 | AS37: 0 | AW37: 0 | AX37: 0 | BB37: 0 | BC37: 0 | BG37: 0 | BH37: 0 | BL37: 0 | BM37: 0 | BQ37: 0 | BR37: 0 | BV37: 0 | BY37: 0 | BZ37: 0 | CA37: 0 | CC37: 0 | CD37: 0 | CE37: 0 | CF37: 0
C38: Disposition and Recovery/Refund of Regulatory Balances (2017)4 | BW38: =-SUM(BW21:BW37) -> 4023408.95 | BX38: =-SUM(BX21:BX37) -> 14499.86 | BY38: =BQ38-BW38 -> -4023408.95 | BZ38: =BV38-BX38 -> -14499.86 | CA38: -69705.56006 | CC38: =+BV38 -> 0 | CD38: =+BQ38 -> 0 | CE38: 0 | CF38: 0
C40: =C29 -> RSVA - Global Adjustment | D40: 1589 | E40: =E29 -> 0 | F40: 0 | G40: 0 | H40: 0 | I40: 0 | J40: 0 | K40: 0 | L40: 0 | M40: 0 | N40: 0 | O40: 0 | P40: 4893434.3 | Q40: 0 | R40: 0 | S40: 4893434.3 | T40: 0 | U40: 22182.53 | V40: 0 | W40: 0 | X40: 22182.53 | Y40: 4893434.3 | Z40: -2946122.07 | AA40: 0 | AB40: 0 | AC40: 1947312.23 | AD40: 22182.53 | AE40: 26117.1 | AF40: 0 | AG40: 0 | AH40: 48299.63 | AI40: 1947312.23 | AJ40: 3459067.38 | AK40: 0 | AL40: 0 | AM40: 5406379.61 | AN40: 48299.63 | AO40: 67180.66 | AP40: 0 | AQ40: 0 | AR40: 115480.29 | AS40: 5406379.61 | AT40: 7730141.57 | AU40: 1995612 | AV40: 0 | AW40: 11140909.18 | AX40: 115480.29 | AY40: 8222.18 | AZ40: 28625 | BA40: 0 | BB40: 95077.47 | BC40: 11140909.18 | BD40: 1769070.5 | BE40: 3459067.38 | BF40: 0 | BG40: 9450912.3 | BH40: 95077.47 | BI40: 73364.44 | BJ40: 89403.95 | BK40: 0 | BL40: 79037.96 | BM40: 9450912.3 | BN40: 8213.26 | BO40: 0 | BP40: -1619355.47 | BQ40: =BQ29 -> 7839770.09 | BR40: 79037.96 | BS40: 114760.96 | BT40: 0 | BU40: 0 | BV40: 193798.92 | BW40: 9450912.3 | BX40: 182998 | BY40: -1611142.21 | BZ40: 10800.92 | CA40: =CA29 -> -27913.03879 | CB40: =CB29 -> 0 | CC40: =CC29 -> -17112.11879 | CD40: =CD29 -> -1628254.329 | CE40: =CE29 -> 9652924.48 | CF40: =CE40-SUM(BQ40,BV40) -> 1619355.47
C41: Total Group 1 Balance excluding Account 1589 - Global Adjustment | E41: =SUM(E21:E37)-E29 -> 0 | F41: =SUM(F21:F37)-F29 -> 0 | G41: 0 | H41: 0 | I41: 0 | J41: 0 | K41: 0 | L41: 0 | M41: 0 | N41: 0 | O41: 0 | P41: =SUM(P21:P38)-P29 -> -7103670.56 | Q41: =SUM(Q21:Q38)-Q29 -> 0 | R41: 0 | S41: -7103670.56 | T41: 0 | U41: 669683.83 | V41: 0 | W41: 0 | X41: 669683.83 | Y41: -7103670.56 | Z41: -2766857.7 | AA41: 0 | AB41: 0 | AC41: -9870528.26 | AD41: 669683.83 | AE41: -990791.99 | AF41: 0 | AG41: 0 | AH41: -321108.16 | AI41: -9870528.26 | AJ41: -3234753.49 | AK41: 0 | AL41: 0 | AM41: -13105281.75 | AN41: -321108.16 | AO41: -184539.77 | AP41: 0 | AQ41: 0 | AR41: -505647.93 | AS41: -13105281.75 | AT41: -178660.38 | AU41: -1995612.4 | AV41: 0 | AW41: -11288329.73 | AX41: -505647.93 | AY41: -51310.72 | AZ41: -28625.12 | BA41: 0 | BB41: -528333.53 | BC41: -11288329.73 | BD41: -6123117.66 | BE41: -3459067.48 | BF41: 85754 | BG41: -13866625.91 | BH41: -528333.53 | BI41: 289760.9181 | BJ41: -89403.95 | BK41: 85 | BL41: -149083.6619 | BM41: -13866625.91 | BN41: -4351191.28 | BO41: 0 | BP41: 803138.79 | BQ41: -17414678.4 | BR41: -149083.6619 | BS41: -178803.6581 | BT41: 0 | BU41: 0 | BV41: =SUM(BV21:BV38)-BV29 -> -327887.32 | BW41: -9450912.3 | BX41: -182998 | BY41: -7963766.1 | BZ41: -144889.32 | CA41: -137972.2477 | CB41: =SUM(CB21:CB37)-CB29 -> 0 | CC41: =SUM(CC21:CC38)-CC29 -> -198656.1476 | CD41: =SUM(CD21:CD38)-CD29 -> -4139013.298 | CE41: =SUM(CE21:CE38)-CE29-CE24-CE25 -> -18545704.51 | CF41: =CE41-SUM(BQ41,BV41) -> -803138.79
C42: Total Group 1 Balance | E42: =SUM(E40,E41) -> 0 | F42: =SUM(F40,F41) -> 0 | G42: 0 | H42: 0 | I42: 0 | J42: 0 | K42: 0 | L42: 0 | M42: 0 | N42: 0 | O42: 0 | P42: =SUM(P40,P41) -> -2210236.26 | Q42: =SUM(Q40,Q41) -> 0 | R42: 0 | S42: -2210236.26 | T42: 0 | U42: 691866.36 | V42: 0 | W42: 0 | X42: 691866.36 | Y42: -2210236.26 | Z42: -5712979.77 | AA42: 0 | AB42: 0 | AC42: -7923216.03 | AD42: 691866.36 | AE42: -964674.89 | AF42: 0 | AG42: 0 | AH42: -272808.53 | AI42: -7923216.03 | AJ42: 224313.89 | AK42: 0 | AL42: 0 | AM42: -7698902.14 | AN42: -272808.53 | AO42: -117359.11 | AP42: 0 | AQ42: 0 | AR42: -390167.64 | AS42: -7698902.14 | AT42: 7551481.19 | AU42: -0.4000000004 | AV42: 0 | AW42: -147420.55 | AX42: -390167.64 | AY42: -43088.54 | AZ42: -0.12 | BA42: 0 | BB42: -433256.06 | BC42: -147420.55 | BD42: -4354047.16 | BE42: -0.1000000001 | BF42: 85754 | BG42: -4415713.61 | BH42: -433256.06 | BI42: 363125.3581 | BJ42: 0 | BK42: 85 | BL42: -70045.70192 | BM42: -4415713.61 | BN42: -4342978.02 | BO42: 0 | BP42: -816216.68 | BQ42: -9574908.31 | BR42: -70045.70192 | BS42: -64042.69808 | BT42: 0 | BU42: 0 | BV42: -134088.4 | BW42: 0 | BX42: 0 | BY42: -9574908.31 | BZ42: -134088.4 | CA42: -165885.2865 | CB42: 0 | CC42: -215768.2664 | CD42: =SUM(CD40,CD41) -> -5767267.626 | CE42: =SUM(CE40,CE41) -> -8892780.03 | CF42: =CE42-SUM(BQ42,BV42) -> 816216.68
A44: 29 | C44: LRAM Variance Account (only input amounts if applying for disposition of this account) | D44: 1568 | S44: =O44+P44-Q44+SUM(R44:R44) -> 0 | X44: =T44+U44-V44+W44 -> 0 | Y44: =S44 -> 0 | AC44: =Y44+Z44-AA44+SUM(AB44:AB44) -> 0 | AD44: =X44 -> 0 | AH44: =AD44+AE44-AF44+AG44 -> 0 | AI44: =AC44 -> 0 | AM44: =AI44+AJ44-AK44+SUM(AL44:AL44) -> 0 | AN44: =AH44 -> 0 | AR44: =AN44+AO44-AP44+AQ44 -> 0 | AS44: =AM44 -> 0 | AT44: 142020.89 | AW44: =AS44+AT44-AU44+SUM(AV44:AV44) -> 142020.89 | AX44: =AR44 -> 0 | AY44: -174.59 | BB44: =AX44+AY44-AZ44+BA44 -> -174.59 | BC44: =AW44 -> 142020.89 | BD44: 376487.2 | BE44: 0 | BF44: 360540.93 | BG44: =BC44+BD44-BE44+SUM(BF44:BF44) -> 879049.02 | BH44: =BB44 -> -174.59 | BI44: 2707.56 | BK44: 11069.80157 | BL44: =BH44+BI44-BJ44+BK44 -> 13602.77157 | BM44: =BG44 -> 879049.02 | BN44: 579460 | BQ44: =BM44+BN44-BO44+SUM(BP44:BP44) -> 1458509.02 | BR44: =BL44 -> 13602.77157 | BS44: 16554.63843 | BV44: =BR44+BS44-BT44+BU44 -> 30157.41 | BW44: 879049.02 | BX44: 23272.32 | BY44: =BQ44-BW44 -> 579460 | BZ44: =BV44-BX44 -> 6885.09 | CA44: =+BY44*(1.1%*0.75+1.5%*0.5+1.89%*1/12) -> 10039.1445 | CC44: =BZ44+CA44+CB44 -> 16924.2345 | CD44: =SUM(BY44:CB44) -> 596384.2345 | CE44: 1488666.43 | CF44: =CE44-SUM(BQ44,BV44) -> 0
C46: Total including Account 1568 | E46: =SUM(E42,E44) -> 0 | F46: =SUM(F42,F44) -> 0 | G46: 0 | H46: 0 | I46: 0 | J46: 0 | K46: 0 | L46: 0 | M46: 0 | N46: 0 | O46: 0 | P46: -2210236.26 | Q46: 0 | R46: 0 | S46: -2210236.26 | T46: 0 | U46: 691866.36 | V46: 0 | W46: 0 | X46: 691866.36 | Y46: -2210236.26 | Z46: -5712979.77 | AA46: 0 | AB46: 0 | AC46: -7923216.03 | AD46: 691866.36 | AE46: -964674.89 | AF46: 0 | AG46: 0 | AH46: -272808.53 | AI46: -7923216.03 | AJ46: 224313.89 | AK46: 0 | AL46: 0 | AM46: -7698902.14 | AN46: -272808.53 | AO46: -117359.11 | AP46: 0 | AQ46: 0 | AR46: -390167.64 | AS46: -7698902.14 | AT46: 7693502.08 | AU46: -0.4000000004 | AV46: 0 | AW46: -5399.66 | AX46: -390167.64 | AY46: -43263.13 | AZ46: -0.12 | BA46: 0 | BB46: -433430.65 | BC46: -5399.66 | BD46: -3977559.96 | BE46: -0.1000000001 | BF46: 446294.93 | BG46: -3536664.59 | BH46: -433430.65 | BI46: 365832.9181 | BJ46: 0 | BK46: 11154.80157 | BL46: -56442.93035 | BM46: -3536664.59 | BN46: -3763518.02 | BO46: 0 | BP46: -816216.68 | BQ46: -8116399.29 | BR46: -56442.93035 | BS46: -47488.05965 | BT46: 0 | BU46: 0 | BV46: -103930.99 | BW46: 879049.02 | BX46: 23272.32 | BY46: -8995448.31 | BZ46: -127203.31 | CA46: -155846.142 | CB46: =SUM(CB42,CB44) -> 0 | CC46: =SUM(CC42,CC44) -> -198844.0319 | CD46: =SUM(CD42,CD44) -> -5170883.392 | CE46: =SUM(CE42,CE44) -> -7404113.6 | CF46: =SUM(CF42,CF44) -> 816216.68
CD48: =+CD21+CD22+CD23+CD26+CD27+CD28+CD34+CD35+CD36 -> -4037828.168
C49: For all OEB-Approved dispositions, please ensure that the disposition amount has the same sign (e.g: debit balances are to have a positive figure and credit balance are to have a negative figure) as per the related OEB decision.
B52: 1 | C52: Please provide explanations for the nature of the adjustments. If the adjustment relates to previously OEB-Approved disposed balances, please provide amounts for adjustments and include supporting documentations.
B53: 2 | C53: For RSVA accounts only, report the net variance to the account during the year. For all other accounts, record the transactions during the year.
B54: 3 | C54: If the LDC’s rate year begins on January 1, 2017, the projected interest is recorded from January 1, 2016 to December 31, 2016 on the December 31, 2015 balances adjusted for the disposed balances approved by the OEB in the 2016 rate decision. If the LDC’s rate year begins on May 1, 2017, the projected interest is recorded from January 1, 2016 to April 30, 2017 on the December 31, 2015 balances adjusted for the disposed interest balances approved by the OEB in the 2016 rate decision.
B55: 4 | C55: Include Account 1595 as part of Group 1 accounts (lines 30-36) for review and disposition if the recovery (or refund) period has been completed. If the recovery (or refund) period has not been completed, do not include the respective balance in Account 1595 for disposition at this time.

Sheet 4. Billing Det. for Def-Var
A1: Back to Index | K1: Yes | T1: =IF(D18="YES", "YES", "NO") -> NO
B2: INCENTIVE REGULATION MODEL FOR 2018 FILERS
B13: Information from the most recent RRR (2016 for 2018 IRM)
L14: Approved Recoveries (class allocation %)
D15: Total Metered kWh | E15: Total Metered kW | F15: Metered kWh for Non-RPP Customers excluding WMP | G15: Metered kW for Non-RPP Customers excluding WMP | H15: Metered kWh for Wholesale Market Participants (WMP) | I15: Metered kW for Wholesale Market Participants (WMP) | J15: Total Metered kWh less WMP consumption (if applicable) | K15: Total Metered kW less WMP consumption (if applicable) | L15: 1595 Recovery Proportion (2009) 1 | M15: 1595 Recovery Proportion (2010) 1 | N15: 1595 Recovery Proportion (2011) 1 | O15: 1595 Recovery Proportion (2012) 1 | P15: 1595 Recovery Proportion (2013) 1 | Q15: 1595 Recovery Proportion (2014) 1 | R15: 1595 Recovery Proportion (2015) 1 | S15: 1595 Recovery Proportion (2016) 1 | T15: 1568 LRAM Variance Account Class Allocation ($ amounts) | U15: Number of Customers for Residential and GS<50 classes3
B16: Rate Class | C16: Unit
B17: ='Model Specs'!C15 -> RESIDENTIAL SERVICE CLASSIFICATION | C17: kWh | D17: 1311941173 | F17: 91312361 | J17: =D17-H17 -> 1311941173 | K17: =E17-I17 -> 0 | P17: 0.315 | Q17: 0.315 | R17: 0.315 | U17: 146977
B18: ='Model Specs'!C16 -> GENERAL SERVICE LESS THAN 50 kW SERVICE CLASSIFICATION | C18: kWh | D18: 337539785 | F18: 67523320 | J18: =D18-H18 -> 337539785 | K18: =E18-I18 -> 0 | P18: 0.091 | Q18: 0.091 | R18: 0.091 | U18: 9989
B19: ='Model Specs'!C17 -> GENERAL SERVICE 50 to 699 KW SERVICE CLASSIFICATION | C19: kW | D19: 1118515365 | E19: 3142997.73 | F19: 945060807 | G19: 2656072.571 | H19: 4174812.59 | I19: 11167.73 | J19: 1114340552 | K19: =E19-I19 -> 3131830 | P19: 0.278 | Q19: 0.278 | R19: 0.278
B20: ='Model Specs'!C18 -> GENERAL SERVICE 700 to 4,999 KW SERVICE CLASSIFICATION | C20: kW | D20: 852708466 | E20: 2009962.01 | F20: =+D20-H20 -> 790313087.5 | G20: =+E20-I20 -> 1906578 | H20: 62395378.46 | I20: 103384.01 | J20: 790313087.5 | K20: 1906578 | P20: 0.211 | Q20: 0.211 | R20: 0.211
B21: ='Model Specs'!C19 -> LARGE USE SERVICE CLASSIFICATION | C21: kW | D21: 363967969 | E21: 666341.8149 | F21: 363967969 | G21: 666342 | J21: 363967969 | K21: 666341.8149 | P21: 0.1 | Q21: 0.1 | R21: 0.1
B22: ='Model Specs'!C20 -> STANDBY POWER SERVICE CLASSIFICATION | C22: kW | J22: 0 | K22: 0
B23: ='Model Specs'!C21 -> UNMETERED SCATTERED LOAD SERVICE CLASSIFICATION | C23: kWh | D23: 5837113 | F23: 5837113 | J23: 5837113 | K23: 0 | P23: 0.001 | Q23: 0.001 | R23: 0.001
B24: ='Model Specs'!C22 -> STREET LIGHTING SERVICE CLASSIFICATION | C24: kW | D24: 34274583 | E24: 103149.1581 | F24: 34274583 | G24: 103149 | J24: 34274583 | K24: 103149.1581 | P24: 0.004 | Q24: 0.004 | R24: 0.004
B25: ='Model Specs'!C23 -> EMBEDDED DISTRIBUTOR SERVICE CLASSIFICATION | C25: kWh | D25: 5292579 | F25: 5292579 | J25: 5292579 | K25: 0
B26: ='Model Specs'!C24 -> DISTRIBUTED GENERATION [DGEN] SERVICE CLASSIFICATION | C26: kWh | D26: 141477 | F26: 141477 | J26: 141477 | K26: 0
B27: ='Model Specs'!C25 -> ENERGY FROM WASTE SERVICE CLASSIFICATION | C27: kW | D27: 0 | E27: 0 | F27: 0 | G27: 0 | H27: 0 | I27: 0 | J27: 0 | K27: 0
J28: 0 | K28: 0
C29: Total | D29: =SUM(D17:D28) -> 4030218510 | E29: =SUM(E17:E28) -> 5922450.713 | F29: 2303723297 | G29: 5332141.571 | H29: 66570191.05 | I29: 114551.74 | J29: 3963648319 | K29: 5807898.973 | L29: 0 | M29: 0 | N29: 0 | O29: 0 | P29: 1 | Q29: 1 | R29: 1 | S29: 0 | T29: 0 | U29: 156966
B32: Threshold Test | R32: 1568 Account Balance from Continuity Schedule | U32: ='3. Continuity Schedule'!CD44 -> 596384.2345
B33: Total Claim (including Account 1568) | D33: ='3. Continuity Schedule'!CD46-'3. Continuity Schedule'!CD38 -> -5170883.392 | R33: =IF(U32=T29,"Total Balance of Account 1568 in Column R matches the amount entered on the Continuity Schedule","Total Balance of Account 1568 in Column T DOES NOT MATCH the amount entered on the Continuity Schedule") -> Total Balance of Account 1568 in Column T DOES NOT MATCH the amount entered on the Continuity Schedule
B34: Total Claim for Threshold Test (All Group 1 Accounts) | D34: ='3. Continuity Schedule'!CD42-'3. Continuity Schedule'!CD38 -> -5767267.626
B35: Threshold Test (Total claim per kWh) 2 | D35: =IFERROR(D34/D29,"") -> -0.001431006188
B36: Exceeds Threshold? | D36: =IF(D35="","",IF(OR(D35>0.001,D35<-0.001),"Yes","No")) -> Yes
B37: ELECT TO DISPOSE of the Group 1 Account Balances? | D37: Yes
B40: As per Section 3.2.5 of the 2017 Filing Requirements for Electricity Distribution Rate Applications, an applicant may elect to dispose of the Group 1 account balances below the threshold.
B41: 1 Residual Account balance to be allocated to rate classes in proportion to the recovery share as established when rate riders were implemented.
B42: 2 The Threshold Test does not include the amount in 1568.
B43: 3 The proportion of customers for the Residential and GS<50 Classes will be used to allocate Account 1551.
B45: Information from the 2015 RRR
D47: Total Metered kWh | E47: Total Metered kW | F47: Metered kWh for Non-RPP Customers | G47: Metered kW for Non-RPP Customers | H47: Metered kWh for Wholesale Market Participants (WMP) | I47: Metered kW for Wholesale Market Participants (WMP) | J47: Total Metered kWh less WMP consumption (if applicable) | K47: Total Metered kW less WMP consumption (if applicable)
B48: Rate Class | C48: Unit
B49: =B17 -> RESIDENTIAL SERVICE CLASSIFICATION | C49: kWh | J49: =D49-H49 -> 0 | K49: =E49-I49 -> 0
B50: =B18 -> GENERAL SERVICE LESS THAN 50 kW SERVICE CLASSIFICATION | C50: kWh | J50: =D50-H50 -> 0 | K50: =E50-I50 -> 0
B51: GENERAL SERVICE 50 to 699 KW SERVICE CLASSIFICATION | C51: kW | J51: 0 | K51: =E51-I51 -> 0
B52: GENERAL SERVICE 700 to 4,999 KW SERVICE CLASSIFICATION | C52: kW | J52: 0 | K52: =E52-I52 -> 0
B53: LARGE USE SERVICE CLASSIFICATION | C53: kWh | J53: 0 | K53: 0
B54: STANDBY POWER SERVICE CLASSIFICATION | C54: kW | J54: 0 | K54: 0
B55: UNMETERED SCATTERED LOAD SERVICE CLASSIFICATION | C55: kW | J55: 0 | K55: 0
B56: STREET LIGHTING SERVICE CLASSIFICATION | C56: kW | J56: 0 | K56: 0
B57: EMBEDDED DISTRIBUTOR SERVICE CLASSIFICATION | C57: kWh | J57: 0 | K57: 0
B58: DISTRIBUTED GENERATION [DGEN] SERVICE CLASSIFICATION | C58: kWh | J58: 0 | K58: 0
B59: ENERGY FROM WASTE SERVICE CLASSIFICATION | C59: kW | J59: 0 | K59: 0
J60: 0 | K60: 0
C61: Total | D61: =SUM(D49:D60) -> 0 | E61: =SUM(E49:E60) -> 0 | F61: 0 | G61: 0 | H61: 0 | I61: 0 | J61: 0 | K61: 0

Sheet 5. Allocating Def-Var Balances
A1: Back to Index
B2: INCENTIVE REGULATION MODEL FOR 2018 FILERS
B11: No input required. This workshseet allocates the deferral/variance account balances (Group 1 and 1568) to the appropriate classes as per EDDVAR dated July 31, 2009
B13: Allocation of Group 1 Accounts (including Account 1568)
C14: % of Total kWh | D14: % of Total non-RPP kWh | E14: % of Customer Numbers ** | F14: % of Total kWh adjusted for WMP | I14: allocated based on Total less WMP | N14: allocated based on Total less WMP | O14: 1595_(2009) | P14: 1595_(2010) | Q14: 1595_(2011) | R14: 1595_(2012) | S14: 1595_(2013) | T14: 1595_(2014) | U14: 1595_(2015) | V14: 1595_(2016) | W14: 1595_(2017) | X14: 1568
B15: Rate Class | G15: 1550 | H15: 1551 | I15: 1580 | J15: 1580 (Class A) | K15: 1580 (Class B) | L15: 1584 | M15: 1586 | N15: 1588
B16: ='4. Billing Det. for Def-Var'!B17 -> RESIDENTIAL SERVICE CLASSIFICATION | C16: =IFERROR('4. Billing Det. for Def-Var'!D17/'4. Billing Det. for Def-Var'!D$29,"") -> 0.3255260651 | D16: =IFERROR('4. Billing Det. for Def-Var'!F17/'4. Billing Det. for Def-Var'!F$29,"") -> 0.0396368614 | E16: =IFERROR('4. Billing Det. for Def-Var'!U17/'4. Billing Det. for Def-Var'!U$29,"") -> 0.9363620147 | F16: =IFERROR('4. Billing Det. for Def-Var'!J17/'4. Billing Det. for Def-Var'!J$29,"") -> 0.3309933343 | G16: =IFERROR(G$28*C16,"") -> 82274.73589 | H16: =IFERROR(H$28*E16,"") -> -57329.55241 | I16: =IFERROR(I$28*F16,"") -> -1260404.791 | L16: =IFERROR(L$28*$C16,"") -> -159948.4871 | M16: =IFERROR(M$28*$C16,"") -> 184608.2026 | N16: =IFERROR(N$28*$F16,"") -> -76741.65581 | O16: ='4. Billing Det. for Def-Var'!L17*O$28 -> 0 | P16: ='4. Billing Det. for Def-Var'!M17*P$28 -> 0 | Q16: ='4. Billing Det. for Def-Var'!N17*Q$28 -> 0 | R16: ='4. Billing Det. for Def-Var'!O17*R$28 -> 0 | S16: ='4. Billing Det. for Def-Var'!P17*S$28 -> -297.4991953 | T16: ='4. Billing Det. for Def-Var'!Q17*T$28 -> 51019.81917 | U16: ='4. Billing Det. for Def-Var'!R17*U$28 -> -134292.1245 | V16: ='4. Billing Det. for Def-Var'!S17*V$28 -> 0 | W16: ='4. Billing Det. for Def-Var'!T17*W$28 -> 0 | X16: ='4. Billing Det. for Def-Var'!T17 -> 0
B17: ='4. Billing Det. for Def-Var'!B18 -> GENERAL SERVICE LESS THAN 50 kW SERVICE CLASSIFICATION | C17: =IFERROR('4. Billing Det. for Def-Var'!D18/'4. Billing Det. for Def-Var'!D$29,"") -> 0.08375222935 | D17: =IFERROR('4. Billing Det. for Def-Var'!F18/'4. Billing Det. for Def-Var'!F$29,"") -> 0.02931051663 | E17: =IFERROR('4. Billing Det. for Def-Var'!U18/'4. Billing Det. for Def-Var'!U$29,"") -> 0.0636379853 | F17: =IFERROR('4. Billing Det. for Def-Var'!J18/'4. Billing Det. for Def-Var'!J$29,"") -> 0.08515886321 | G17: =IFERROR(G$28*C17,"") -> 21167.8673 | H17: =IFERROR(H$28*E17,"") -> -3896.289209 | I17: =IFERROR(I$28*F17,"") -> -324280.3647 | L17: =IFERROR(L$28*$C17,"") -> -41151.98079 | M17: 47496.49929 | N17: =IFERROR(N$28*$F17,"") -> -19744.30145 | O17: ='4. Billing Det. for Def-Var'!L18*O$28 -> 0 | P17: ='4. Billing Det. for Def-Var'!M18*P$28 -> 0 | Q17: ='4. Billing Det. for Def-Var'!N18*Q$28 -> 0 | R17: ='4. Billing Det. for Def-Var'!O18*R$28 -> 0 | S17: ='4. Billing Det. for Def-Var'!P18*S$28 -> -85.94421197 | T17: ='4. Billing Det. for Def-Var'!Q18*T$28 -> 14739.05887 | U17: ='4. Billing Det. for Def-Var'!R18*U$28 -> -38795.50264 | V17: ='4. Billing Det. for Def-Var'!S18*V$28 -> 0 | W17: ='4. Billing Det. for Def-Var'!T18*W$28 -> 0 | X17: ='4. Billing Det. for Def-Var'!T18 -> 0
B18: ='4. Billing Det. for Def-Var'!B19 -> GENERAL SERVICE 50 to 699 KW SERVICE CLASSIFICATION | C18: =IFERROR('4. Billing Det. for Def-Var'!D19/'4. Billing Det. for Def-Var'!D$29,"") -> 0.2775321889 | D18: =IFERROR('4. Billing Det. for Def-Var'!F19/'4. Billing Det. for Def-Var'!F$29,"") -> 0.4102319095 | E18: =IFERROR('4. Billing Det. for Def-Var'!U19/'4. Billing Det. for Def-Var'!U$29,"") -> 0 | F18: =IFERROR('4. Billing Det. for Def-Var'!J19/'4. Billing Det. for Def-Var'!J$29,"") -> 0.2811401171 | G18: =IFERROR(G$28*C18,"") -> 70144.57518 | H18: =IFERROR(H$28*E18,"") -> 0 | I18: =IFERROR(I$28*F18,"") -> -1070566.424 | L18: -136366.511 | M18: 157390.5258 | N18: =IFERROR(N$28*$F18,"") -> -65183.05919 | O18: ='4. Billing Det. for Def-Var'!L19*O$28 -> 0 | P18: ='4. Billing Det. for Def-Var'!M19*P$28 -> 0 | Q18: ='4. Billing Det. for Def-Var'!N19*Q$28 -> 0 | R18: ='4. Billing Det. for Def-Var'!O19*R$28 -> 0 | S18: ='4. Billing Det. for Def-Var'!P19*S$28 -> -262.5548454 | T18: ='4. Billing Det. for Def-Var'!Q19*T$28 -> 45027.01502 | U18: ='4. Billing Det. for Def-Var'!R19*U$28 -> -118518.129 | V18: ='4. Billing Det. for Def-Var'!S19*V$28 -> 0 | W18: ='4. Billing Det. for Def-Var'!T19*W$28 -> 0 | X18: ='4. Billing Det. for Def-Var'!T19 -> 0
B19: ='4. Billing Det. for Def-Var'!B20 -> GENERAL SERVICE 700 to 4,999 KW SERVICE CLASSIFICATION | C19: =IFERROR('4. Billing Det. for Def-Var'!D20/'4. Billing Det. for Def-Var'!D$29,"") -> 0.2115787181 | D19: =IFERROR('4. Billing Det. for Def-Var'!F20/'4. Billing Det. for Def-Var'!F$29,"") -> 0.3430590335 | E19: =IFERROR('4. Billing Det. for Def-Var'!U20/'4. Billing Det. for Def-Var'!U$29,"") -> 0 | F19: =IFERROR('4. Billing Det. for Def-Var'!J20/'4. Billing Det. for Def-Var'!J$29,"") -> 0.1993903152 | G19: 53475.23599 | H19: 0 | I19: -759267.5816 | L19: -103960.0188 | M19: 119987.8321 | N19: -46229.15737 | O19: ='4. Billing Det. for Def-Var'!L20*O$28 -> 0 | P19: ='4. Billing Det. for Def-Var'!M20*P$28 -> 0 | Q19: ='4. Billing Det. for Def-Var'!N20*Q$28 -> 0 | R19: ='4. Billing Det. for Def-Var'!O20*R$28 -> 0 | S19: ='4. Billing Det. for Def-Var'!P20*S$28 -> -199.2772387 | T19: ='4. Billing Det. for Def-Var'!Q20*T$28 -> 34175.18046 | U19: ='4. Billing Det. for Def-Var'!R20*U$28 -> -89954.40723 | V19: ='4. Billing Det. for Def-Var'!S20*V$28 -> 0 | W19: ='4. Billing Det. for Def-Var'!T20*W$28 -> 0 | X19: ='4. Billing Det. for Def-Var'!T20 -> 0
B20: ='4. Billing Det. for Def-Var'!B21 -> LARGE USE SERVICE CLASSIFICATION | C20: =IFERROR('4. Billing Det. for Def-Var'!D21/'4. Billing Det. for Def-Var'!D$29,"") -> 0.09030973584 | D20: =IFERROR('4. Billing Det. for Def-Var'!F21/'4. Billing Det. for Def-Var'!F$29,"") -> 0.157991183 | E20: =IFERROR('4. Billing Det. for Def-Var'!U21/'4. Billing Det. for Def-Var'!U$29,"") -> 0 | F20: =IFERROR('4. Billing Det. for Def-Var'!J21/'4. Billing Det. for Def-Var'!J$29,"") -> 0.0918265042 | G20: 22825.23724 | H20: 0 | I20: -349670.3825 | L20: -44374.03688 | M20: 51215.30898 | N20: -21290.21116 | O20: ='4. Billing Det. for Def-Var'!L21*O$28 -> 0 | P20: ='4. Billing Det. for Def-Var'!M21*P$28 -> 0 | Q20: ='4. Billing Det. for Def-Var'!N21*Q$28 -> 0 | R20: ='4. Billing Det. for Def-Var'!O21*R$28 -> 0 | S20: ='4. Billing Det. for Def-Var'!P21*S$28 -> -94.44418898 | T20: ='4. Billing Det. for Def-Var'!Q21*T$28 -> 16196.76799 | U20: ='4. Billing Det. for Def-Var'!R21*U$28 -> -42632.42049 | V20: ='4. Billing Det. for Def-Var'!S21*V$28 -> 0 | W20: ='4. Billing Det. for Def-Var'!T21*W$28 -> 0 | X20: ='4. Billing Det. for Def-Var'!T21 -> 0
B21: ='4. Billing Det. for Def-Var'!B22 -> STANDBY POWER SERVICE CLASSIFICATION | C21: =IFERROR('4. Billing Det. for Def-Var'!D22/'4. Billing Det. for Def-Var'!D$29,"") -> 0 | D21: =IFERROR('4. Billing Det. for Def-Var'!F22/'4. Billing Det. for Def-Var'!F$29,"") -> 0 | E21: =IFERROR('4. Billing Det. for Def-Var'!U22/'4. Billing Det. for Def-Var'!U$29,"") -> 0 | F21: =IFERROR('4. Billing Det. for Def-Var'!J22/'4. Billing Det. for Def-Var'!J$29,"") -> 0 | G21: 0 | H21: 0 | I21: 0 | L21: 0 | M21: 0 | N21: 0 | O21: ='4. Billing Det. for Def-Var'!L22*O$28 -> 0 | P21: ='4. Billing Det. for Def-Var'!M22*P$28 -> 0 | Q21: ='4. Billing Det. for Def-Var'!N22*Q$28 -> 0 | R21: ='4. Billing Det. for Def-Var'!O22*R$28 -> 0 | S21: ='4. Billing Det. for Def-Var'!P22*S$28 -> 0 | T21: ='4. Billing Det. for Def-Var'!Q22*T$28 -> 0 | U21: ='4. Billing Det. for Def-Var'!R22*U$28 -> 0 | V21: ='4. Billing Det. for Def-Var'!S22*V$28 -> 0 | W21: ='4. Billing Det. for Def-Var'!T22*W$28 -> 0 | X21: ='4. Billing Det. for Def-Var'!T22 -> 0
B22: ='4. Billing Det. for Def-Var'!B23 -> UNMETERED SCATTERED LOAD SERVICE CLASSIFICATION | C22: =IFERROR('4. Billing Det. for Def-Var'!D23/'4. Billing Det. for Def-Var'!D$29,"") -> 0.001448336606 | D22: =IFERROR('4. Billing Det. for Def-Var'!F23/'4. Billing Det. for Def-Var'!F$29,"") -> 0.002533773483 | E22: =IFERROR('4. Billing Det. for Def-Var'!U23/'4. Billing Det. for Def-Var'!U$29,"") -> 0 | F22: =IFERROR('4. Billing Det. for Def-Var'!J23/'4. Billing Det. for Def-Var'!J$29,"") -> 0.001472661682 | G22: 366.0582809 | H22: 0 | I22: -5607.816372 | L22: -711.6457754 | M22: 821.3622388 | N22: -341.4403984 | O22: ='4. Billing Det. for Def-Var'!L23*O$28 -> 0 | P22: ='4. Billing Det. for Def-Var'!M23*P$28 -> 0 | Q22: ='4. Billing Det. for Def-Var'!N23*Q$28 -> 0 | R22: ='4. Billing Det. for Def-Var'!O23*R$28 -> 0 | S22: ='4. Billing Det. for Def-Var'!P23*S$28 -> -0.9444418897 | T22: ='4. Billing Det. for Def-Var'!Q23*T$28 -> 161.9676799 | U22: ='4. Billing Det. for Def-Var'!R23*U$28 -> -426.3242049 | V22: ='4. Billing Det. for Def-Var'!S23*V$28 -> 0 | W22: ='4. Billing Det. for Def-Var'!T23*W$28 -> 0 | X22: ='4. Billing Det. for Def-Var'!T23 -> 0
B23: ='4. Billing Det. for Def-Var'!B24 -> STREET LIGHTING SERVICE CLASSIFICATION | C23: =IFERROR('4. Billing Det. for Def-Var'!D24/'4. Billing Det. for Def-Var'!D$29,"") -> 0.00850439819 | D23: =IFERROR('4. Billing Det. for Def-Var'!F24/'4. Billing Det. for Def-Var'!F$29,"") -> 0.01487790789 | E23: =IFERROR('4. Billing Det. for Def-Var'!U24/'4. Billing Det. for Def-Var'!U$29,"") -> 0 | F23: =IFERROR('4. Billing Det. for Def-Var'!J24/'4. Billing Det. for Def-Var'!J$29,"") -> 0.008647231097 | G23: 2149.434991 | H23: 0 | I23: -32928.1903 | L23: -4178.668838 | M23: 4822.906157 | N23: -2004.882769 | O23: ='4. Billing Det. for Def-Var'!L24*O$28 -> 0 | P23: ='4. Billing Det. for Def-Var'!M24*P$28 -> 0 | Q23: ='4. Billing Det. for Def-Var'!N24*Q$28 -> 0 | R23: ='4. Billing Det. for Def-Var'!O24*R$28 -> 0 | S23: ='4. Billing Det. for Def-Var'!P24*S$28 -> -3.777767559 | T23: ='4. Billing Det. for Def-Var'!Q24*T$28 -> 647.8707197 | U23: ='4. Billing Det. for Def-Var'!R24*U$28 -> -1705.296819 | V23: ='4. Billing Det. for Def-Var'!S24*V$28 -> 0 | W23: ='4. Billing Det. for Def-Var'!T24*W$28 -> 0 | X23: ='4. Billing Det. for Def-Var'!T24 -> 0
B24: ='4. Billing Det. for Def-Var'!B25 -> EMBEDDED DISTRIBUTOR SERVICE CLASSIFICATION | C24: =IFERROR('4. Billing Det. for Def-Var'!D25/'4. Billing Det. for Def-Var'!D$29,"") -> 0.001313223833 | D24: =IFERROR('4. Billing Det. for Def-Var'!F25/'4. Billing Det. for Def-Var'!F$29,"") -> 0.002297402213 | E24: =IFERROR('4. Billing Det. for Def-Var'!U25/'4. Billing Det. for Def-Var'!U$29,"") -> 0 | F24: =IFERROR('4. Billing Det. for Def-Var'!J25/'4. Billing Det. for Def-Var'!J$29,"") -> 0.001335279665 | G24: =IFERROR(G$28*C24,"") -> 331.909348 | H24: =IFERROR(H$28*E24,"") -> 0 | I24: =IFERROR(I$28*F24,"") -> -5084.673051 | L24: -645.2575933 | M24: 744.7388009 | N24: -309.5880245 | O24: ='4. Billing Det. for Def-Var'!L25*O$28 -> 0 | P24: ='4. Billing Det. for Def-Var'!M25*P$28 -> 0 | Q24: ='4. Billing Det. for Def-Var'!N25*Q$28 -> 0 | R24: ='4. Billing Det. for Def-Var'!O25*R$28 -> 0 | S24: ='4. Billing Det. for Def-Var'!P25*S$28 -> 0 | T24: ='4. Billing Det. for Def-Var'!Q25*T$28 -> 0 | U24: ='4. Billing Det. for Def-Var'!R25*U$28 -> 0 | V24: ='4. Billing Det. for Def-Var'!S25*V$28 -> 0 | W24: ='4. Billing Det. for Def-Var'!T25*W$28 -> 0 | X24: ='4. Billing Det. for Def-Var'!T25 -> 0
B25: ='4. Billing Det. for Def-Var'!B26 -> DISTRIBUTED GENERATION [DGEN] SERVICE CLASSIFICATION | C25: =IFERROR('4. Billing Det. for Def-Var'!D26/'4. Billing Det. for Def-Var'!D$29,"") -> 3.510405196e-05 | D25: =IFERROR('4. Billing Det. for Def-Var'!F26/'4. Billing Det. for Def-Var'!F$29,"") -> 6.141232335e-05 | E25: =IFERROR('4. Billing Det. for Def-Var'!U26/'4. Billing Det. for Def-Var'!U$29,"") -> 0 | F25: =IFERROR('4. Billing Det. for Def-Var'!J26/'4. Billing Det. for Def-Var'!J$29,"") -> 3.569363087e-05 | G25: 8.872335931 | H25: 0 | I25: -135.919424 | L25: -17.24851127 | M25: 19.90776356 | N25: -8.275660116 | O25: ='4. Billing Det. for Def-Var'!L26*O$28 -> 0 | P25: ='4. Billing Det. for Def-Var'!M26*P$28 -> 0 | Q25: ='4. Billing Det. for Def-Var'!N26*Q$28 -> 0 | R25: ='4. Billing Det. for Def-Var'!O26*R$28 -> 0 | S25: ='4. Billing Det. for Def-Var'!P26*S$28 -> 0 | T25: ='4. Billing Det. for Def-Var'!Q26*T$28 -> 0 | U25: ='4. Billing Det. for Def-Var'!R26*U$28 -> 0 | V25: ='4. Billing Det. for Def-Var'!S26*V$28 -> 0 | W25: ='4. Billing Det. for Def-Var'!T26*W$28 -> 0 | X25: ='4. Billing Det. for Def-Var'!T26 -> 0
B26: ='4. Billing Det. for Def-Var'!B27 -> ENERGY FROM WASTE SERVICE CLASSIFICATION | C26: =IFERROR('4. Billing Det. for Def-Var'!D27/'4. Billing Det. for Def-Var'!D$29,"") -> 0 | D26: =IFERROR('4. Billing Det. for Def-Var'!F27/'4. Billing Det. for Def-Var'!F$29,"") -> 0 | E26: =IFERROR('4. Billing Det. for Def-Var'!U27/'4. Billing Det. for Def-Var'!U$29,"") -> 0 | F26: =IFERROR('4. Billing Det. for Def-Var'!J27/'4. Billing Det. for Def-Var'!J$29,"") -> 0 | G26: =IFERROR(G$28*C26,"") -> 0 | H26: =IFERROR(H$28*E26,"") -> 0 | I26: =IFERROR(I$28*F26,"") -> 0 | L26: 0 | M26: 0 | N26: 0 | O26: ='4. Billing Det. for Def-Var'!L27*O$28 -> 0 | P26: ='4. Billing Det. for Def-Var'!M27*P$28 -> 0 | Q26: ='4. Billing Det. for Def-Var'!N27*Q$28 -> 0 | R26: ='4. Billing Det. for Def-Var'!O27*R$28 -> 0 | S26: ='4. Billing Det. for Def-Var'!P27*S$28 -> 0 | T26: ='4. Billing Det. for Def-Var'!Q27*T$28 -> 0 | U26: ='4. Billing Det. for Def-Var'!R27*U$28 -> 0 | V26: ='4. Billing Det. for Def-Var'!S27*V$28 -> 0 | W26: ='4. Billing Det. for Def-Var'!T27*W$28 -> 0 | X26: ='4. Billing Det. for Def-Var'!T27 -> 0
C28: =SUM(C16:C27) -> 1 | D28: =SUM(D16:D27) -> 1 | E28: =SUM(E16:E27) -> 1 | F28: =SUM(F16:F27) -> 1 | G28: ='3. Continuity Schedule'!CD21 -> 252743.9266 | H28: ='3. Continuity Schedule'!CD22 -> -61225.84162 | I28: ='3. Continuity Schedule'!CD23 -> -3807946.143 | L28: ='3. Continuity Schedule'!CD26 -> -491353.8553 | M28: ='3. Continuity Schedule'!CD27 -> 567107.2837 | N28: ='3. Continuity Schedule'!CD28 -> -231852.5718 | O28: =TRANSPOSE('3. Continuity Schedule'!CD30:CD36) -> 0 | P28: 1.184322173e-10 | Q28: 0.42 | R28: 0 | S28: -944.4418897 | T28: 161967.6799 | U28: -426324.2049 | V28: 0 | W28: 0 | X28: =SUM(X16:X26) -> 0
G29: =SUM(G16:G27)-G28 -> 0 | H29: =SUM(H16:H27)-H28 -> 0 | I29: 0 | J29: 0 | K29: 0 | L29: 0 | M29: 0 | N29: 0 | O29: 0 | P29: -1.184322173e-10 | Q29: -0.42 | R29: 0 | S29: 0 | T29: 0 | U29: 0 | V29: 0 | X29: 0
X31: =SUM(G28:X28) -> -4037827.748
B32: ** Used to allocate Account 1551 as this account records the variances arising from the Smart Metering Entity Charges to Residential and GS<50 customers. | X32: =+X31-N28-I28 -> 1970.966488
B34: TO DO:
B35: Hid columns

Sheet 6. GA Calculation
A1: Back to Index
B2: INCENTIVE REGULATION MODEL FOR 2018 FILERS
B13: The purpose of this tab is to calculate the GA rate riders for all current Class B customers of the distributor. Identify the total billed consumption for former Class B customers prior to becoming Class A customers in Column G. Effective January 2017, the billing determinant and all rate riders for the disposition of GA balances will be calculated on an energy basis (kWhs) regardless of the billing determinant used for distribution rates for the particular class (see Chapter 3, Filing Requirements, section 3.2.5.2)
C14: Total Metered Non-RPP consumption minus WMP | E14: Total Metered Class A Consumption in 2016 (partial and/or full year Class A customers)* | G14: Total Metered Consumption for New Class A customer(s) in the period prior to becoming Class A (i.e. Jan. 1 - June 30, 2016) | H14: Total Metered Consumption for New Class B customer(s) in the period after becoming Class B (i.e. Jul 1 - Dec 31, 2016) | I14: Metered Consumption for Current Class B Customers (Non-RPP consumption LESS WMP, Class A and new Class A's former Class B consumption if applicable) | K14: % of total kWh | L14: Total GA $ allocated to Current Class B Customers | M14: GA Rate Rider | O14: Revenue Reconciliation | P14: Variance
C15: kWh | D15: kW | E15: kWh | F15: kW | G15: kWh | H15: kWh | I15: kWh | J15: kW
B17: ='4. Billing Det. for Def-Var'!B17 -> RESIDENTIAL SERVICE CLASSIFICATION | C17: ='4. Billing Det. for Def-Var'!F17-'4. Billing Det. for Def-Var'!H17 -> 91312361 | I17: =C17-E17-G17-H17 -> 91312361 | K17: =IFERROR(I17/I$29,"") -> 0.05316694194 | L17: =IFERROR(L$29*K17,"") -> -84851.87092 | M17: =IFERROR(L17/I17,"") -> -0.0009292484609 | N17: kwh | O17: =IFERROR(ROUND(M17,4)*I17,"") -> -82181.1249 | P17: =IFERROR(L17-O17,"") -> -2670.746019
B18: ='4. Billing Det. for Def-Var'!B18 -> GENERAL SERVICE LESS THAN 50 kW SERVICE CLASSIFICATION | C18: ='4. Billing Det. for Def-Var'!F18-'4. Billing Det. for Def-Var'!H18 -> 67523320 | I18: =C18-E18-G18-H18 -> 67523320 | K18: =IFERROR(I18/I$29,"") -> 0.03931568952 | L18: =IFERROR(L$29*K18,"") -> -62745.94118 | M18: =IFERROR(L18/I18,"") -> -0.0009292484609 | N18: kwh | O18: =IFERROR(ROUND(M18,4)*I18,"") -> -60770.988 | P18: =IFERROR(L18-O18,"") -> -1974.953184
B19: ='4. Billing Det. for Def-Var'!B19 -> GENERAL SERVICE 50 to 699 KW SERVICE CLASSIFICATION | C19: ='4. Billing Det. for Def-Var'!F19-'4. Billing Det. for Def-Var'!H19 -> 940885994.4 | I19: 940885994.4 | K19: 0.547834165 | L19: -874316.8622 | M19: =IFERROR(L19/I19,"") -> -0.0009292484609 | N19: kwh | O19: -846797.395 | P19: -27519.4672
B20: ='4. Billing Det. for Def-Var'!B20 -> GENERAL SERVICE 700 to 4,999 KW SERVICE CLASSIFICATION | C20: ='4. Billing Det. for Def-Var'!F20-'4. Billing Det. for Def-Var'!H20 -> 727917709.1 | E20: 158307064.7 | G20: 26385933.2 | H20: =+'6B. GA Allocation_new Class B '!E33 -> 8376177 | I20: 534848534.2 | K20: 0.3114174319 | L20: -497007.1772 | M20: -0.0009292484609 | N20: kwh | O20: -481363.6808 | P20: -15643.49643
B21: ='4. Billing Det. for Def-Var'!B21 -> LARGE USE SERVICE CLASSIFICATION | C21: ='4. Billing Det. for Def-Var'!F21-'4. Billing Det. for Def-Var'!H21 -> 363967969 | E21: 326618948.3 | I21: 37349020.67 | K21: 0.02174659807 | L21: -34706.51997 | M21: -0.0009292484609 | N21: kwh | O21: -33614.1186 | P21: -1092.40137
B22: ='4. Billing Det. for Def-Var'!B22 -> STANDBY POWER SERVICE CLASSIFICATION | C22: ='4. Billing Det. for Def-Var'!F22-'4. Billing Det. for Def-Var'!H22 -> 0 | I22: 0 | K22: 0 | L22: 0 | N22: kwh
B23: ='4. Billing Det. for Def-Var'!B23 -> UNMETERED SCATTERED LOAD SERVICE CLASSIFICATION | C23: ='4. Billing Det. for Def-Var'!F23-'4. Billing Det. for Def-Var'!H23 -> 5837113 | I23: 5837113 | K23: 0.003398679484 | L23: -5424.128271 | M23: -0.0009292484609 | N23: kwh | O23: -5253.4017 | P23: -170.7265713
B24: ='4. Billing Det. for Def-Var'!B24 -> STREET LIGHTING SERVICE CLASSIFICATION | C24: ='4. Billing Det. for Def-Var'!F24-'4. Billing Det. for Def-Var'!H24 -> 34274583 | I24: 34274583 | K24: 0.01995649597 | L24: -31849.6035 | M24: -0.0009292484609 | N24: kwh | O24: -30847.1247 | P24: -1002.4788
B25: ='4. Billing Det. for Def-Var'!B25 -> EMBEDDED DISTRIBUTOR SERVICE CLASSIFICATION | C25: ='4. Billing Det. for Def-Var'!F25-'4. Billing Det. for Def-Var'!H25 -> 5292579 | I25: 5292579 | K25: 0.003081622656 | L25: -4918.12089 | M25: -0.0009292484609 | N25: kwh | O25: -4763.3211 | P25: -154.7997899
B26: ='4. Billing Det. for Def-Var'!B26 -> DISTRIBUTED GENERATION [DGEN] SERVICE CLASSIFICATION | C26: ='4. Billing Det. for Def-Var'!F26-'4. Billing Det. for Def-Var'!H26 -> 141477 | I26: 141477 | K26: 8.237547866e-05 | L26: -131.4672845 | M26: -0.0009292484609 | N26: kwh | O26: -127.3293 | P26: -4.137984501
B27: ='4. Billing Det. for Def-Var'!B27 -> ENERGY FROM WASTE SERVICE CLASSIFICATION | C27: ='4. Billing Det. for Def-Var'!F27-'4. Billing Det. for Def-Var'!H27 -> 0
C29: =SUM(C17:C28) -> 2237153105 | D29: =SUM(D17:D28) -> 0 | E29: 484926013 | F29: 0 | G29: 26385933.2 | H29: 8376177 | I29: 1717464982 | J29: 0 | K29: 1 | L29: ='6B. GA Allocation_new Class B '!D28 -> -1595951.691 | O29: =SUM(O17:O26) -> -1545718.484 | P29: =SUM(P17:P26) -> -50233.20735
B32: *For new Class A customers (who became Class A in 2016), add their consumption only related to July to December period.
B36: 2015 DATA | C36: Total Metered Non-RPP consumption minus WMP | E36: Total Metered Class A Consumption in 2015 (partial and/or full year Class A customers)* | G36: Total Metered Consumption for New Class A customer(s) in the period prior to becoming Class A (i.e. Jan. 1 - June 30, 2015)
C37: kWh | D37: kW | E37: kWh | F37: kW | G37: kWh
B39: =B17 -> RESIDENTIAL SERVICE CLASSIFICATION | C39: ='4. Billing Det. for Def-Var'!F49-'4. Billing Det. for Def-Var'!H49 -> 0
B40: =B18 -> GENERAL SERVICE LESS THAN 50 kW SERVICE CLASSIFICATION | C40: ='4. Billing Det. for Def-Var'!F50-'4. Billing Det. for Def-Var'!H50 -> 0
B41: GENERAL SERVICE 50 to 699 KW SERVICE CLASSIFICATION | C41: ='4. Billing Det. for Def-Var'!F51-'4. Billing Det. for Def-Var'!H51 -> 0
B42: GENERAL SERVICE 700 to 4,999 KW SERVICE CLASSIFICATION | C42: ='4. Billing Det. for Def-Var'!F52-'4. Billing Det. for Def-Var'!H52 -> 0
B43: LARGE USE SERVICE CLASSIFICATION | C43: ='4. Billing Det. for Def-Var'!F53-'4. Billing Det. for Def-Var'!H53 -> 0
B44: STANDBY POWER SERVICE CLASSIFICATION | C44: ='4. Billing Det. for Def-Var'!F54-'4. Billing Det. for Def-Var'!H54 -> 0
B45: UNMETERED SCATTERED LOAD SERVICE CLASSIFICATION | C45: ='4. Billing Det. for Def-Var'!F55-'4. Billing Det. for Def-Var'!H55 -> 0
B46: STREET LIGHTING SERVICE CLASSIFICATION | C46: ='4. Billing Det. for Def-Var'!F56-'4. Billing Det. for Def-Var'!H56 -> 0
B47: EMBEDDED DISTRIBUTOR SERVICE CLASSIFICATION | C47: ='4. Billing Det. for Def-Var'!F57-'4. Billing Det. for Def-Var'!H57 -> 0
B48: DISTRIBUTED GENERATION [DGEN] SERVICE CLASSIFICATION | C48: ='4. Billing Det. for Def-Var'!F58-'4. Billing Det. for Def-Var'!H58 -> 0
B49: ENERGY FROM WASTE SERVICE CLASSIFICATION | C49: ='4. Billing Det. for Def-Var'!F59-'4. Billing Det. for Def-Var'!H59 -> 0
C51: =SUM(C39:C50) -> 0 | D51: =SUM(D39:D50) -> 0 | E51: 0 | F51: 0 | G51: 0

Sheet 6A. GA Allocation_Class A
A1: Back to Index
B2: INCENTIVE REGULATION MODEL FOR 2018 FILERS
B12: This tab allocates the GA balance to former Class B customers who contributed to the current GA balance but are now Class A customers. The tables below calculate specific amounts for each customer who made the change. Consistent with both decisions for 2016 rates and EDDVAR, distributors are generally expected to settle the amount through 12 equal adjustments to bills. A one-time settlement is acceptable if the affected customer has expressed a clear preference for this approach. (see Filing Requirements section 3.2.5.2)
B14: Year of Group 1 Account Balance Last Disposed | C14: 2015 | D14: (e.g. If in the 2017 EDR process, you received approval to dispose the GA variance account balance as of December 31, 2014, please enter 2014 in cell C16.)
B16: Allocation of total Non-RPP consumption (kWh) between Class B and New Class A (Former Class B) customers
D17: Total | E17: 2016 | F17: 2015 | G17: 2014 | H17: 2013 | I17: 2012
B18: Total Class B Consumption for Years Since Last Disposition (Non-RPP consumption LESS WMP and Class A) | C18: A | D18: =SUM(E18:I18) -> 1752227092 | E18: ='6. GA Calculation'!C29-'6. GA Calculation'!E29 -> 1752227092
B19: New Class A Customer(s)' Former Class B Consumption | C19: B | D19: =SUM(E19:I19) -> 26385933.2 | E19: =E43 -> 26385933.2 | F19: =F43 -> 0 | G19: =G43 -> 0 | H19: =H43 -> 0 | I19: =I43 -> 0
B20: Portion of Consumption of Former Class B Customers | C20: C=B/A | D20: =IFERROR(+D19/D18,0) -> 0.01505851229
B23: Allocation of Total GA Balance $
B25: Total GA Balance | C25: D | D25: ='3. Continuity Schedule'!CD29 -> -1628254.329
B26: New Class A Customer(s)' Former Class B Portion of GA Balance | C26: E=C*D | D26: =+D20*D25 -> -24519.08782
B27: GA Balance to be disposed to Current Class B Customers (if no Class A to Class B Transition Customers) | C27: F=D-E | D27: =+D25-D26 -> -1603735.241
B29: Allocation of GA Balances to Former Class B Customers
B30: # of Former Class B customer(s) | E30: 3
B31: Customer | D31: Total Metered kWh Consumption for each new Class A customer for the period prior to becoming Class A | E31: Metered kWh Consumption for each new Class A customer for the period prior to becoming Class A in 2016 | F31: Metered kWh Consumption for each new Class A customer for the period prior to becoming Class A in 2015 | G31: Metered kWh Consumption for each new Class A customer for the period prior to becoming Class A in 2014 | H31: Metered kWh Consumption for each new Class A customer for the period prior to becoming Class A in 2013 | I31: Metered kWh Consumption for each new Class A customer for the period prior to becoming Class A in 2012 | J31: % of kWh | K31: Customer specific GA allocation for the period prior to becoming Class A | L31: Monthly Equal Payments
B32: Customer 1 | D32: =SUM(E32:I32) -> 10101928.97 | E32: 10101928.97 | J32: =IFERROR(+D32/$D$43,0) -> 0.3828528214 | K32: =+J32*$D$26 -> -9387.201947 | L32: =+K32/12 -> -782.2668289
B33: Customer 2 | D33: 8219287.51 | E33: 8219287.51 | J33: 0.3115026271 | K33: =+J33*$D$26 -> -7637.760268 | L33: =+K33/12 -> -636.4800224
B34: Customer 3 | D34: 8064716.72 | E34: 8064716.72 | J34: 0.3056445515 | K34: -7494.1256 | L34: -624.5104666
B35: Customer 4 | D35: 0 | J35: 0 | K35: 0 | L35: 0
B36: Customer 5 | D36: 0 | J36: 0 | K36: 0 | L36: 0
B37: Customer 6 | D37: 0 | J37: 0 | K37: 0 | L37: 0
B38: Customer 7 | D38: 0 | J38: 0 | K38: 0 | L38: 0
B39: Customer 8 | D39: 0 | J39: 0 | K39: =+J39*$D$26 -> 0 | L39: =+K39/12 -> 0
B40: Customer 9 | D40: 0 | J40: 0 | K40: 0 | L40: 0
B41: Customer 10 | D41: 0 | J41: 0 | K41: 0 | L41: 0
B42: Customer 11 | D42: 0 | J42: 0 | K42: 0 | L42: 0
B43: Total | D43: =SUM(D32:D42) -> 26385933.2 | E43: =SUM(E32:E42) -> 26385933.2 | F43: =SUM(F32:F42) -> 0 | G43: =SUM(G32:G38) -> 0 | H43: 0 | I43: 0 | J43: =SUM(J32:J42) -> 1 | K43: =SUM(K32:K42) -> -24519.08782

Sheet 6B. GA Allocation_new Class B
A1: Back to Index
B2: INCENTIVE REGULATION MODEL FOR 2018 FILERS
B12: This tab allocates the GA balance to former Class A customers who contributed to the current Class B GA balance once switched to Class B customers. The tables below calculate specific amounts for each customer who made the transition. Consistent with both decisions for 2016 rates and EDDVAR, distributors are generally expected to settle the amount through 12 equal adjustments to bills. A one-time settlement is acceptable if the affected customer has expressed a clear preference for this approach. (see Filing Requirements section 3.2.5.2)
B14: Year of Group 1 Account Balance Last Disposed | C14: 2015 | D14: (e.g. If in the 2017 EDR process, you received approval to dispose the GA variance account balance as of December 31, 2014, please enter 2014 in cell C16.)
B16: Allocation of total Non-RPP consumption (kWh) between Class B and New Class B (Former Class A) customers
D17: Total | E17: 2016 | F17: 2015 | G17: 2014 | H17: 2013 | I17: 2012
B18: Total Class B Consumption for Years Since Last Disposition (Non-RPP consumption LESS WMP and Class A) | C18: A | D18: =SUM(E18:I18) -> 1752227092 | E18: ='6. GA Calculation'!C29-'6. GA Calculation'!E29 -> 1752227092
B19: New Class B Customer(s)' Consumption | C19: B | D19: =SUM(E19:I19) -> 8376177 | E19: =E44 -> 8376177 | F19: =F44 -> 0 | G19: =G44 -> 0 | H19: =H44 -> 0 | I19: =I44 -> 0
B20: Portion of Consumption of New Class B Customers | C20: C=B/A | D20: =IFERROR(+D19/D18,0) -> 0.004780303327
B23: Allocation of Total GA Balance $
B25: Total GA Calss B Balance adjusted for Class A | C25: D | D25: ='6A. GA Allocation_Class A'!D25 -> -1628254.329
B26: New Class B Customer(s)' Former Class A Portion of GA Balance attributable to Class B | C26: E=C*D | D26: =+D20*D25 -> -7783.549585
B27: New Class A Customer(s)' Former Class B Portion of GA Balance | C27: F=Sheet 6A | D27: ='6A. GA Allocation_Class A'!D26 -> -24519.08782
B28: GA Balance to be disposed to Current Class B Customers | C28: G=D-E-F | D28: =+D25-D26-D27 -> -1595951.691 | E28: Input into Sheet 6. GA Calculation | O28: s
B30: Allocation of GA Balances to Former Class A Customers
B31: # of Former Class A customer(s) | F31: 9
B32: Customer | D32: Total Metered kWh Consumption for each new Class B customer for the period after becoming Class B | E32: Metered kWh Consumption for each new Class B customer for the period after becoming Class B in 2016 | F32: Metered kWh Consumption for each new Class B customer for the period prior to becoming Class B in 2015 | G32: Metered kWh Consumption for each new Class B customer for the period prior to becoming Class B in 2014 | H32: Metered kWh Consumption for each new Class B customer for the period prior to becoming Class B in 2013 | I32: Metered kWh Consumption for each new Class B customer for the period prior to becoming Class B in 2012 | J32: % of kWh | K32: Customer specific GA allocation for the period after becoming Class B | L32: Monthly Equal Payments
B33: Customer 1 | D33: =SUM(E33:I33) -> 8376177 | E33: 8376177 | J33: =IFERROR(+D33/$D$44,0) -> 1 | K33: =+J33*$D$26 -> -7783.549585 | L33: =+K33/12 -> -648.6291321
B34: Customer 2 | D34: 0 | J34: 0 | K34: =+J34*$D$26 -> 0 | L34: =+K34/12 -> 0
B35: Customer 3 | D35: 0 | J35: 0 | K35: 0 | L35: 0
J36: 0 | K36: 0 | L36: 0
J37: 0 | K37: 0 | L37: 0
J38: 0 | K38: 0 | L38: 0
J39: 0 | K39: 0 | L39: 0
J40: 0 | K40: 0 | L40: 0
J41: 0 | K41: 0 | L41: 0
J42: 0 | K42: 0 | L42: 0
J43: 0 | K43: 0 | L43: 0
B44: Total | D44: =SUM(D33:D43) -> 8376177 | E44: =SUM(E33:E43) -> 8376177 | F44: =SUM(F33:F43) -> 0 | G44: =SUM(G33:G39) -> 0 | H44: 0 | I44: 0 | J44: =SUM(J33:J43) -> 1 | K44: =SUM(K33:K43) -> -7783.549585

Sheet 7. CBR Calculation
A1: Back to Index
B2: INCENTIVE REGULATION MODEL FOR 2018 FILERS
B13: The purpose of this tab is to calculate the CBR rate riders for all current Class B customers of the distributor. Identify and input the total billed consumption for former Class B customers prior to becoming Class A customers in Column H.
B15: Account 1580
B16: Variance WMS – Sub-account CBR Class A | C16: ='3. Continuity Schedule'!CD24 -> -0.02034650002
B17: Variance WMS – Sub-account CBR Class B | C17: ='3. Continuity Schedule'!CD25 -> -101185.5289
C19: Total Metered LESS WMP | E19: Total Metered Class A Consumption/Demand in 2016 (partial and/or full year Class A customers)* | G19: Total Metered Consumption/Demand for New Class A customer(s) in the period prior to becoming Class A (i.e. Jan 1 - Jun 30, 2016) | I19: Total Metered Consumption for New Class B customer(s) in the period after becoming Class B (i.e. Jul 1 - Dec 31, 2016) | K19: Metered Consumption for Current Class B Customers (metered consumption/demand LESS WMP, Class A and new Class A's former Class B, new Class B's former Class A, if applicable) | M19: % of total kWh | N19: Total CBR $ allocated to Current Class B Customers | O19: CBR Rate Rider to 4th Decimal | Q19: Revenue Reconciliation | R19: Variance | T19: CBR Rate Rider to 5th Decimal
C20: kWh | D20: kW | E20: kWh | F20: kW | G20: kWh | H20: kW | I20: kWh | J20: kW | K20: kWh | L20: kW
B22: ='4. Billing Det. for Def-Var'!B17 -> RESIDENTIAL SERVICE CLASSIFICATION | C22: ='4. Billing Det. for Def-Var'!D17-'4. Billing Det. for Def-Var'!H17 -> 1311941173 | D22: ='4. Billing Det. for Def-Var'!E17-'4. Billing Det. for Def-Var'!I17 -> 0 | E22: ='6. GA Calculation'!E17 -> 0 | G22: ='6. GA Calculation'!G17 -> 0 | K22: =C22-E22-G22-I22 -> 1311941173 | L22: =D22-F22-H22-J22 -> 0 | M22: =IFERROR(K22/K$34,"") -> 0.3809397027 | N22: =IFERROR(N$34*M22,"") -> -38160.40772 | O22: 0 | P22: kwh | Q22: =IFERROR(IF(L22=0,ROUND(O22,5)*K22,ROUND(O22,5)*L22),"") -> 0 | R22: =IFERROR(N22-Q22,"") -> -38160.40772 | T22: =IFERROR(IF($L22=0,$N22/$K22,$N22/$L22),"") -> -2.90869808e-05
B23: ='4. Billing Det. for Def-Var'!B18 -> GENERAL SERVICE LESS THAN 50 kW SERVICE CLASSIFICATION | C23: ='4. Billing Det. for Def-Var'!D18-'4. Billing Det. for Def-Var'!H18 -> 337539785 | D23: ='4. Billing Det. for Def-Var'!E18-'4. Billing Det. for Def-Var'!I18 -> 0 | E23: ='6. GA Calculation'!E18 -> 0 | G23: ='6. GA Calculation'!G18 -> 0 | K23: =C23-E23-G23-I23 -> 337539785 | L23: =D23-F23-H23-J23 -> 0 | M23: =IFERROR(K23/K$34,"") -> 0.0980092004 | N23: =IFERROR(N$34*M23,"") -> -9818.013247 | O23: 0 | P23: kwh | Q23: =IFERROR(IF(L23=0,ROUND(O23,5)*K23,ROUND(O23,5)*L23),"") -> 0 | R23: =IFERROR(N23-Q23,"") -> -9818.013247 | T23: =IFERROR(IF($L23=0,$N23/$K23,$N23/$L23),"") -> -2.90869808e-05
B24: ='4. Billing Det. for Def-Var'!B19 -> GENERAL SERVICE 50 to 699 KW SERVICE CLASSIFICATION | C24: ='4. Billing Det. for Def-Var'!D19-'4. Billing Det. for Def-Var'!H19 -> 1114340552 | D24: ='4. Billing Det. for Def-Var'!E19-'4. Billing Det. for Def-Var'!I19 -> 3131830 | E24: ='6. GA Calculation'!E19 -> 0 | G24: ='6. GA Calculation'!G19 -> 0 | K24: 1114340552 | L24: 3131830 | M24: 0.3235637142 | N24: -32412.80226 | O24: 0 | P24: kW | Q24: 0 | R24: -32412.80226 | T24: -0.01034947691
B25: ='4. Billing Det. for Def-Var'!B20 -> GENERAL SERVICE 700 to 4,999 KW SERVICE CLASSIFICATION | C25: ='4. Billing Det. for Def-Var'!D20-'4. Billing Det. for Def-Var'!H20 -> 790313087.5 | D25: ='4. Billing Det. for Def-Var'!E20-'4. Billing Det. for Def-Var'!I20 -> 1906578 | E25: ='6. GA Calculation'!E20 -> 158307064.7 | F25: 320165.2 | G25: ='6. GA Calculation'!G20 -> 26385933.2 | H25: 57079.92 | I25: ='6. GA Calculation'!H20 -> 8376177 | J25: 18169.92 | K25: 597243912.6 | L25: 1511162.96 | M25: 0.1734177745 | N25: -17372.02222 | O25: 0 | P25: kW | Q25: 0 | R25: -17372.02222 | T25: -0.01149579674
B26: ='4. Billing Det. for Def-Var'!B21 -> LARGE USE SERVICE CLASSIFICATION | C26: ='4. Billing Det. for Def-Var'!D21-'4. Billing Det. for Def-Var'!H21 -> 363967969 | D26: ='4. Billing Det. for Def-Var'!E21-'4. Billing Det. for Def-Var'!I21 -> 666341.8149 | E26: ='6. GA Calculation'!E21 -> 326618948.3 | F26: 594015.6 | G26: ='6. GA Calculation'!G21 -> 0 | K26: 37349020.67 | L26: 72326.21492 | M26: 0.01084478872 | N26: -1086.370247 | O26: 0 | P26: kW | Q26: 0 | R26: -1086.370247 | T26: -0.01502042169
B27: ='4. Billing Det. for Def-Var'!B22 -> STANDBY POWER SERVICE CLASSIFICATION | C27: ='4. Billing Det. for Def-Var'!D22-'4. Billing Det. for Def-Var'!H22 -> 0 | D27: ='4. Billing Det. for Def-Var'!E22-'4. Billing Det. for Def-Var'!I22 -> 0 | E27: ='6. GA Calculation'!E22 -> 0 | G27: ='6. GA Calculation'!G22 -> 0 | K27: 0 | L27: 0 | M27: 0 | N27: 0 | O27: 0 | P27: kW | Q27: 0 | R27: 0
B28: ='4. Billing Det. for Def-Var'!B23 -> UNMETERED SCATTERED LOAD SERVICE CLASSIFICATION | C28: ='4. Billing Det. for Def-Var'!D23-'4. Billing Det. for Def-Var'!H23 -> 5837113 | D28: ='4. Billing Det. for Def-Var'!E23-'4. Billing Det. for Def-Var'!I23 -> 0 | E28: ='6. GA Calculation'!E23 -> 0 | G28: ='6. GA Calculation'!G23 -> 0 | K28: 5837113 | L28: 0 | M28: 0.001694883991 | N28: -169.7839938 | O28: 0 | P28: kWh | Q28: 0 | R28: -169.7839938 | T28: -2.90869808e-05
B29: ='4. Billing Det. for Def-Var'!B24 -> STREET LIGHTING SERVICE CLASSIFICATION | C29: ='4. Billing Det. for Def-Var'!D24-'4. Billing Det. for Def-Var'!H24 -> 34274583 | D29: ='4. Billing Det. for Def-Var'!E24-'4. Billing Det. for Def-Var'!I24 -> 103149.1581 | E29: ='6. GA Calculation'!E24 -> 0 | G29: ='6. GA Calculation'!G24 -> 0 | K29: 34274583 | L29: 103149.1581 | M29: 0.009952084534 | N29: -996.9441378 | O29: 0 | P29: kW | Q29: 0 | R29: -996.9441378 | T29: -0.009665072952
B30: ='4. Billing Det. for Def-Var'!B25 -> EMBEDDED DISTRIBUTOR SERVICE CLASSIFICATION | C30: ='4. Billing Det. for Def-Var'!D25-'4. Billing Det. for Def-Var'!H25 -> 5292579 | D30: ='4. Billing Det. for Def-Var'!E25-'4. Billing Det. for Def-Var'!I25 -> 0 | E30: ='6. GA Calculation'!E25 -> 0 | G30: ='6. GA Calculation'!G25 -> 0 | K30: 5292579 | L30: 0 | M30: 0.001536771246 | N30: -153.9451438 | O30: 0 | P30: kWh | Q30: 0 | R30: -153.9451438 | T30: -2.90869808e-05
B31: ='4. Billing Det. for Def-Var'!B26 -> DISTRIBUTED GENERATION [DGEN] SERVICE CLASSIFICATION | C31: ='4. Billing Det. for Def-Var'!D26-'4. Billing Det. for Def-Var'!H26 -> 141477 | D31: ='4. Billing Det. for Def-Var'!E26-'4. Billing Det. for Def-Var'!I26 -> 0 | E31: ='6. GA Calculation'!E26 -> 0 | G31: ='6. GA Calculation'!G26 -> 0 | K31: 141477 | L31: 0 | M31: 4.107974307e-05 | N31: -4.115138783 | O31: 0 | P31: kWh | Q31: 0 | R31: -4.115138783 | T31: -2.90869808e-05
B32: ='4. Billing Det. for Def-Var'!B27 -> ENERGY FROM WASTE SERVICE CLASSIFICATION | C32: ='4. Billing Det. for Def-Var'!D27-'4. Billing Det. for Def-Var'!H27 -> 0 | D32: ='4. Billing Det. for Def-Var'!E27-'4. Billing Det. for Def-Var'!I27 -> 0 | E32: ='6. GA Calculation'!E27 -> 0 | G32: ='6. GA Calculation'!G27 -> 0 | K32: 0 | L32: 0 | M32: 0 | N32: 0 | O32: =IFERROR(IF(L32=0,N32/K32,N32/L32),"") ->  | T32: =IFERROR(IF(Q32=0,S32/P32,S32/Q32),"") -> 
B33: ='4. Billing Det. for Def-Var'!B28 -> 0
C34: =SUM(C22:C33) -> 3963648319 | D34: =SUM(D22:D33) -> 5807898.973 | E34: 484926013 | F34: 914180.8 | G34: 26385933.2 | H34: =SUM(H22:H33) -> 57079.92 | I34: =SUM(I22:I33) -> 8376177 | J34: 18169.92 | K34: 3443960196 | L34: 4818468.333 | M34: 1 | N34: ='7B. CBR Allocation_new Class B'!D28 -> -100174.4041 | Q34: =SUM(Q22:Q33) -> 0 | R34: =SUM(R22:R33) -> -100174.4041
N35: from Sheet 7B
Q36: NOTE: if rate rider is at 5 decimal places, then the balance dispostion is in full
B37: *For new Class A customers (who became Class A in 2016), add their consumption only related to July to December period.

Sheet 7A. CBR Allocation_Class A
A1: Back to Index
B2: INCENTIVE REGULATION MODEL FOR 2018 FILERS
B12: This tab allocates the CBR balance to former Class B customers who contributed to the current CBR balance but are now Class A customers. The tables below calculate specific amounts for each customer who made the change. Consistent with both decisions for 2016 rates and EDDVAR, distributors are generally expected to settle the amount through 12 equal adjustments to bills. A one-time settlement is acceptable if the affected customer has expressed a clear preference for this approach. (see Filing Requirements section 3.2.5.2)
B14: Year of Group 1 Account Balance Last Disposed | C14: 2015
B16: Allocation of total Non-RPP consumption (kWh) between Class B and New Class A (Former Class B) customers
D17: Total | E17: 2016
B18: Total MeteredConsumption for Years Since Last Disposition (consumption LESS WMP and Class A) | C18: A | D18: =SUM(E18:I18) -> 3478722306 | E18: ='7. CBR Calculation'!C34-'7. CBR Calculation'!E34 -> 3478722306
B19: New Class A Customer(s)' Former Class B Consumption | C19: B | D19: =SUM(E19:I19) -> 26385933.2 | E19: =E44 -> 26385933.2
B20: Portion of Consumption of Former Class B Customers | C20: C=B/A | D20: =IFERROR(+D19/D18,0) -> 0.007584949553
B23: Allocation of Total CBR Class B Balance $
B25: Total CBR-Class B Balance | C25: D | D25: ='7. CBR Calculation'!C17 -> -101185.5289
B26: New Class A Customer(s)' Former Class B Portion of CBR-Class B Balance | C26: E=C*D | D26: =+D20*D25 -> -767.4871325
B27: CBR-Class B Balance to be disposed to Current Class B Customers (if no Class A to Class B Transition Customers) | C27: F=D-E | D27: =+D25-D26 -> -100418.0418 | O27: s
B29: Allocation of CBR Class B Balances to Former Class B Customers
B31: # of Former Class B customer(s) | E31: 2
B32: Customer | D32: Total Metered kWh Consumption for each new Class A customer for the period prior to becoming Class A | E32: Metered kWh Consumption for each new Class A customer for the period prior to becoming Class A in 2016 | J32: % of kWh | K32: Customer specific CBR-Class B allocation for the period prior to becoming Class A | L32: Monthly Equal Payments
B33: Customer 1 | D33: =SUM(E33:I33) -> 10101928.97 | E33: ='6A. GA Allocation_Class A'!E32 -> 10101928.97 | J33: =IFERROR(+D33/$D$44,0) -> 0.3828528214 | K33: =+J33*$D$26 -> -293.834614 | L33: =+K33/12 -> -24.48621784
B34: Customer 2 | D34: 8219287.51 | E34: ='6A. GA Allocation_Class A'!E33 -> 8219287.51 | J34: 0.3115026271 | K34: =+J34*$D$26 -> -239.074258 | L34: =+K34/12 -> -19.92285484
B35: Customer 3 | D35: 8064716.72 | E35: ='6A. GA Allocation_Class A'!E34 -> 8064716.72 | J35: 0.3056445515 | K35: -234.5782604 | L35: -19.54818837
B36: Customer 4 | D36: 0 | E36: ='6A. GA Allocation_Class A'!E35 -> 0 | J36: 0 | K36: 0 | L36: 0
B37: Customer 5 | D37: 0 | E37: ='6A. GA Allocation_Class A'!E36 -> 0 | J37: 0 | K37: 0 | L37: 0
B38: Customer 6 | D38: 0 | E38: ='6A. GA Allocation_Class A'!E37 -> 0 | J38: 0 | K38: 0 | L38: 0
B39: Customer 7 | D39: 0 | E39: ='6A. GA Allocation_Class A'!E38 -> 0 | J39: 0 | K39: 0 | L39: 0
B40: Customer 8 | D40: 0 | E40: ='6A. GA Allocation_Class A'!E39 -> 0 | J40: 0 | K40: 0 | L40: 0
B41: Customer 9 | D41: 0 | E41: ='6A. GA Allocation_Class A'!E40 -> 0 | J41: 0 | K41: 0 | L41: 0
B42: Customer 10 | D42: 0 | E42: ='6A. GA Allocation_Class A'!E41 -> 0 | J42: 0 | K42: 0 | L42: 0
B43: Customer 11 | D43: 0 | E43: ='6A. GA Allocation_Class A'!E42 -> 0 | J43: 0 | K43: 0 | L43: 0
B44: Total | D44: =SUM(D33:D43) -> 26385933.2 | E44: =SUM(E33:E43) -> 26385933.2 | F44: =SUM(F33:F43) -> 0 | G44: =SUM(G33:G39) -> 0 | H44: 0 | I44: 0 | J44: =SUM(J33:J43) -> 1 | K44: =SUM(K33:K43) -> -767.4871325

Sheet 7B. CBR Allocation_new Class B
A1: Back to Index
B2: INCENTIVE REGULATION MODEL FOR 2018 FILERS
B12: This tab allocates the CBR-Class B balance to former Class A customers who contributed to the current CBR-Class B balance once switched to Class B customers. The tables below calculate specific amounts for each customer who made the transition. Consistent with both decisions for 2016 rates and EDDVAR, distributors are generally expected to settle the amount through 12 equal adjustments to bills. A one-time settlement is acceptable if the affected customer has expressed a clear preference for this approach. (see Filing Requirements section 3.2.5.2)
B14: Year of Group 1 Account Balance Last Disposed | C14: 2015
B16: Allocation of total Non-RPP consumption (kWh) between Class B and New Class B (Former Class A) customers
D17: Total | E17: 2016 | F17: 2015 | G17: 2014 | H17: 2013 | I17: 2012
B18: Total Class B Consumption for Years Since Last Disposition (Non-RPP consumption LESS WMP and Class A) | C18: A | D18: =SUM(E18:I18) -> 3478722306 | E18: ='7. CBR Calculation'!C34-'7. CBR Calculation'!E34 -> 3478722306
B19: New Class B Customer(s)' Consumption | C19: B | D19: =SUM(E19:I19) -> 8376177 | E19: =E45 -> 8376177 | F19: =F45 -> 0 | G19: =G45 -> 0 | H19: =H45 -> 0 | I19: =I45 -> 0
B20: Portion of Consumption of New Class B Customers | C20: C=B/A | D20: =IFERROR(+D19/D18,0) -> 0.002407831457
B23: Allocation of Total CBR-Class B Balance $
B25: Total CBR-Calss B Balance adjusted for Class A | C25: D | D25: ='7. CBR Calculation'!C17 -> -101185.5289
B26: New Class B Customer(s)' Former Class A Portion of CBR-Class B Balance attributable to Class B | C26: E=C*D | D26: =+D20*D25 -> -243.6376996
B27: New Class A Customer(s)' Former Class B Portion of CBR-Class B Balance | C27: F=Sheet 6A | D27: ='7A. CBR Allocation_Class A'!D26 -> -767.4871325
B28: CBR-Class B Balance to be disposed to Current Class B Customers | C28: G=D-E-F | D28: =+D25-D26-D27 -> -100174.4041 | E28: Input into Sheet 7. CBR Calculation
B30: Allocation of CBR-Class B Balances to Former Class A Customers
B32: # of Former Class B customer(s) | E32: 2
B33: Customer | D33: Total Metered kWh Consumption for each new Class B customer for the period after becoming Class B | E33: Metered kWh Consumption for each new Class B customer for the period after becoming Class B in 2016 | J33: % of kWh | K33: Customer specific CBR-Class B allocation for the period after becoming Class B | L33: Monthly Equal Payments
B34: Customer 1 | D34: =SUM(E34:I34) -> 8376177 | E34: ='6B. GA Allocation_new Class B '!E33 -> 8376177 | J34: =IFERROR(+D34/$D$45,0) -> 1 | K34: =+J34*$D$26 -> -243.6376996 | L34: =+K34/12 -> -20.30314163
J35: 0 | K35: =+J35*$D$26 -> 0 | L35: =+K35/12 -> 0
J36: 0 | K36: 0 | L36: 0
J37: 0 | K37: 0 | L37: 0
J38: 0 | K38: 0 | L38: 0
J39: 0 | K39: 0 | L39: 0
J40: 0 | K40: 0 | L40: 0
J41: 0 | K41: 0 | L41: 0
J42: 0 | K42: 0 | L42: 0
J43: 0 | K43: 0 | L43: 0
J44: 0 | K44: 0 | L44: 0
B45: Total | D45: =SUM(D34:D44) -> 8376177 | E45: =SUM(E34:E44) -> 8376177 | F45: =SUM(F34:F44) -> 0 | G45: =SUM(G34:G40) -> 0 | H45: 0 | I45: 0 | J45: =SUM(J34:J44) -> 1 | K45: =SUM(K34:K44) -> -243.6376996

Sheet 8. Calculation of Def-Var RR
A1: Back to Index
B2: INCENTIVE REGULATION MODEL FOR 2018 FILERS
B11: Input required at cell D13 only. This workshseet calculates rate riders related to the Deferral/Variance Account Disposition (if applicable) and rate riders for Account 1568. Rate Riders will not be generated for the microFIT class.
B12: Default Rate Rider Recovery Period (in months) | D12: 12
B13: Proposed Rate Rider Recovery Period (in months) | D13: 12 | E13: =IF(D13>0, "Rate Rider Recovery to be used below", "If no rate rider recovery period is proposed then the default recovery period of 12 months will be used") -> Rate Rider Recovery to be used below
D15: Total Metered kWh | E15: Metered kW or kVA | F15: Total Metered kWh less WMP consumption | G15: Total Metered kW less WMP consumption | H15: Allocation of Group 1 Account Balances to All Classes 2 | I15: Allocation of Group 1 Account Balances to Non-WMP Classes Only (if Applicable) 2 | J15: Deferral/Variance Account Rate Rider 2 | K15: Deferral/Variance Account Rate Rider for Non-WMP (if applicable) 2 | L15: Account 1568 Rate Rider
B16: Rate Class | C16: Unit | M16: Revenue Reconciliation: | O16: Revenue Reconcilation 1
B17: ='4. Billing Det. for Def-Var'!B17 -> RESIDENTIAL SERVICE CLASSIFICATION | C17: ='4. Billing Det. for Def-Var'!C17 -> kWh | D17: ='4. Billing Det. for Def-Var'!D17 -> 1311941173 | E17: ='4. Billing Det. for Def-Var'!E17 -> 0 | F17: ='4. Billing Det. for Def-Var'!J17 -> 1311941173 | G17: ='4. Billing Det. for Def-Var'!K17 -> 0 | H17: =SUM('5. Allocating Def-Var Balances'!G16:V16)-I17 -> -1371111.352 | J17: =IF(ISERROR(H17/D17),0,IF(OR(ISBLANK(D$13), OR(D$13=0, D$13="")), H17/D17/(D$12/12), H17/D17/(D$13/12))) -> -0.001045101244 | K17: =IF(ISERROR(I17/F17),0,IF(OR(ISBLANK(D$13), OR(D$13=0, D$13="")), I17/F17/(D$12/12), I17/F17/(D$13/12))) -> 0 | L17: =IF(ISERROR('4. Billing Det. for Def-Var'!T17/D17), 0, IF(OR(ISBLANK(D$13), OR(D$13=0, D$13="")), ('4. Billing Det. for Def-Var'!T17/D17)/(D$12/12), ('4. Billing Det. for Def-Var'!T17/D17)/(D$13/12))) -> 0 | M17: =J17*D17 -> -1371111.352 | N17: =K17*F17 -> 0
B18: ='4. Billing Det. for Def-Var'!B18 -> GENERAL SERVICE LESS THAN 50 kW SERVICE CLASSIFICATION | C18: ='4. Billing Det. for Def-Var'!C18 -> kWh | D18: ='4. Billing Det. for Def-Var'!D18 -> 337539785 | E18: ='4. Billing Det. for Def-Var'!E18 -> 0 | F18: ='4. Billing Det. for Def-Var'!J18 -> 337539785 | G18: ='4. Billing Det. for Def-Var'!K18 -> 0 | H18: =SUM('5. Allocating Def-Var Balances'!G17:V17)-I18 -> -344550.9575 | J18: =IF(ISERROR(H18/D18),0,IF(OR(ISBLANK(D$13), OR(D$13=0, D$13="")), H18/D18/(D$12/12), H18/D18/(D$13/12))) -> -0.001020771396 | K18: =IF(ISERROR(I18/F18),0,IF(OR(ISBLANK(D$13), OR(D$13=0, D$13="")), I18/F18/(D$12/12), I18/F18/(D$13/12))) -> 0 | L18: =IF(ISERROR('4. Billing Det. for Def-Var'!T18/D18), 0, IF(OR(ISBLANK(D$13), OR(D$13=0, D$13="")), ('4. Billing Det. for Def-Var'!T18/D18)/(D$12/12), ('4. Billing Det. for Def-Var'!T18/D18)/(D$13/12))) -> 0 | M18: =J18*D18 -> -344550.9575 | N18: =K18*F18 -> 0
B19: ='4. Billing Det. for Def-Var'!B19 -> GENERAL SERVICE 50 to 699 KW SERVICE CLASSIFICATION | C19: ='4. Billing Det. for Def-Var'!C19 -> kW | D19: ='4. Billing Det. for Def-Var'!D19 -> 1118515365 | E19: ='4. Billing Det. for Def-Var'!E19 -> 3142997.73 | F19: ='4. Billing Det. for Def-Var'!J19 -> 1114340552 | G19: ='4. Billing Det. for Def-Var'!K19 -> 3131830 | H19: =SUM('5. Allocating Def-Var Balances'!G18:V18)-I19 -> 17414.9212 | I19: ='5. Allocating Def-Var Balances'!I18+'5. Allocating Def-Var Balances'!N18 -> -1135749.484 | J19: =IF(ISERROR(H19/E19),0,IF(OR(ISBLANK(D$13), OR(D$13=0, D$13="")), H19/E19/(D$12/12), H19/E19/(D$13/12))) -> 0.005540863436 | K19: =IF(ISERROR(I19/G19),0,IF(OR(ISBLANK(D$13), OR(D$13=0, D$13="")), I19/G19/(D$12/12), I19/G19/(D$13/12))) -> -0.362647233 | L19: =IF(ISERROR('4. Billing Det. for Def-Var'!T19/E19), 0, IF(OR(ISBLANK(D13), OR(D13=0, D13="")), ('4. Billing Det. for Def-Var'!T19/E19)/(D12/12), ('4. Billing Det. for Def-Var'!T19/E19)/(D13/12))) -> 0 | M19: =J19*E19 -> 17414.9212 | N19: =K19*G19 -> -1135749.484
B20: ='4. Billing Det. for Def-Var'!B20 -> GENERAL SERVICE 700 to 4,999 KW SERVICE CLASSIFICATION | C20: ='4. Billing Det. for Def-Var'!C20 -> kW | D20: ='4. Billing Det. for Def-Var'!D20 -> 852708466 | E20: ='4. Billing Det. for Def-Var'!E20 -> 2009962.01 | F20: ='4. Billing Det. for Def-Var'!J20 -> 790313087.5 | G20: ='4. Billing Det. for Def-Var'!K20 -> 1906578 | H20: =SUM('5. Allocating Def-Var Balances'!G19:V19)-I20 -> 13524.54526 | I20: ='5. Allocating Def-Var Balances'!I19+'5. Allocating Def-Var Balances'!N19 -> -805496.739 | J20: =IF(ISERROR(H20/E20),0,IF(OR(ISBLANK(D$13), OR(D$13=0, D$13="")), H20/E20/(D$12/12), H20/E20/(D$13/12))) -> 0.006728756657 | K20: =IF(ISERROR(I20/G20),0,IF(OR(ISBLANK(D$13), OR(D$13=0, D$13="")), I20/G20/(D$12/12), I20/G20/(D$13/12))) -> -0.4224829716 | L20: =IF(ISERROR('4. Billing Det. for Def-Var'!T20/E20), 0, IF(OR(ISBLANK(D13), OR(D13=0, D13="")), ('4. Billing Det. for Def-Var'!T20/E20)/(D12/12), ('4. Billing Det. for Def-Var'!T20/E20)/(D13/12))) -> 0 | M20: =J20*E20 -> 13524.54526 | N20: =K20*G20 -> -805496.739
B21: ='4. Billing Det. for Def-Var'!B21 -> LARGE USE SERVICE CLASSIFICATION | C21: ='4. Billing Det. for Def-Var'!C21 -> kW | D21: ='4. Billing Det. for Def-Var'!D21 -> 363967969 | E21: ='4. Billing Det. for Def-Var'!E21 -> 666341.8149 | F21: ='4. Billing Det. for Def-Var'!J21 -> 363967969 | G21: ='4. Billing Det. for Def-Var'!K21 -> 666341.8149 | H21: =SUM('5. Allocating Def-Var Balances'!G20:V20)-I21 -> -367824.181 | J21: =IF(ISERROR(H21/E21),0,IF(OR(ISBLANK(D$13), OR(D$13=0, D$13="")), H21/E21/(D$12/12), H21/E21/(D$13/12))) -> -0.5520052513 | K21: =IF(ISERROR(I21/G21),0,IF(OR(ISBLANK(D$13), OR(D$13=0, D$13="")), I21/G21/(D$12/12), I21/G21/(D$13/12))) -> 0 | L21: =IF(ISERROR('4. Billing Det. for Def-Var'!T21/E21), 0, IF(OR(ISBLANK(D$13), OR(D$13=0, D$13="")), ('4. Billing Det. for Def-Var'!T21/E21)/(D$12/12), ('4. Billing Det. for Def-Var'!T21/E21)/(D$13/12))) -> 0 | M21: =J21*E21 -> -367824.181 | N21: =K21*G21 -> 0
B22: ='4. Billing Det. for Def-Var'!B22 -> STANDBY POWER SERVICE CLASSIFICATION | C22: ='4. Billing Det. for Def-Var'!C22 -> kW | D22: ='4. Billing Det. for Def-Var'!D22 -> 0 | E22: ='4. Billing Det. for Def-Var'!E22 -> 0 | F22: ='4. Billing Det. for Def-Var'!J22 -> 0 | G22: ='4. Billing Det. for Def-Var'!K22 -> 0 | H22: =SUM('5. Allocating Def-Var Balances'!G21:V21)-I22 -> 0 | J22: =IF(ISERROR(H22/E22),0,IF(OR(ISBLANK(D$13), OR(D$13=0, D$13="")), H22/E22/(D$12/12), H22/E22/(D$13/12))) -> 0 | K22: 0 | L22: =IF(ISERROR('4. Billing Det. for Def-Var'!T22/E22), 0, IF(OR(ISBLANK(D13), OR(D13=0, D13="")), ('4. Billing Det. for Def-Var'!T22/E22)/(D12/12), ('4. Billing Det. for Def-Var'!T22/E22)/(D13/12))) -> 0 | M22: =J22*E22 -> 0 | N22: =K22*G22 -> 0
B23: ='4. Billing Det. for Def-Var'!B23 -> UNMETERED SCATTERED LOAD SERVICE CLASSIFICATION | C23: ='4. Billing Det. for Def-Var'!C23 -> kWh | D23: ='4. Billing Det. for Def-Var'!D23 -> 5837113 | E23: ='4. Billing Det. for Def-Var'!E23 -> 0 | F23: ='4. Billing Det. for Def-Var'!J23 -> 5837113 | G23: ='4. Billing Det. for Def-Var'!K23 -> 0 | H23: =SUM('5. Allocating Def-Var Balances'!G22:V22)-I23 -> -5738.782993 | J23: =IF(ISERROR(H23/D23),0,IF(OR(ISBLANK(D$13), OR(D$13=0, D$13="")), H23/D23/(D$12/12), H23/D23/(D$13/12))) -> -0.0009831543423 | K23: =IF(ISERROR(I23/F23),0,IF(OR(ISBLANK(D$13), OR(D$13=0, D$13="")), I23/F23/(D$12/12), I23/F23/(D$13/12))) -> 0 | L23: =IF(ISERROR('4. Billing Det. for Def-Var'!T23/D23), 0, IF(OR(ISBLANK(D13), OR(D13=0, D13="")), ('4. Billing Det. for Def-Var'!T23/D23)/(D12/12), ('4. Billing Det. for Def-Var'!T23/D23)/(D13/12))) -> 0 | M23: =J23*D23 -> -5738.782993 | N23: =K23*F23 -> 0
B24: ='4. Billing Det. for Def-Var'!B24 -> STREET LIGHTING SERVICE CLASSIFICATION | C24: ='4. Billing Det. for Def-Var'!C24 -> kW | D24: ='4. Billing Det. for Def-Var'!D24 -> 34274583 | E24: ='4. Billing Det. for Def-Var'!E24 -> 103149.1581 | F24: ='4. Billing Det. for Def-Var'!J24 -> 34274583 | G24: ='4. Billing Det. for Def-Var'!K24 -> 103149.1581 | H24: =SUM('5. Allocating Def-Var Balances'!G23:V23)-I24 -> -33200.60463 | J24: =IF(ISERROR(H24/E24),0,IF(OR(ISBLANK(D$13), OR(D$13=0, D$13="")), H24/E24/(D$12/12), H24/E24/(D$13/12))) -> -0.3218698557 | K24: =IF(ISERROR(I24/G24),0,IF(OR(ISBLANK(D$13), OR(D$13=0, D$13="")), I24/G24/(D$12/12), I24/G24/(D$13/12))) -> 0 | L24: =IF(ISERROR('4. Billing Det. for Def-Var'!T24/E24), 0, IF(OR(ISBLANK(D13), OR(D13=0, D13="")), ('4. Billing Det. for Def-Var'!T24/E24)/(D12/12), ('4. Billing Det. for Def-Var'!T24/E24)/(D13/12))) -> 0 | M24: =J24*E24 -> -33200.60463 | N24: =K24*G24 -> 0
B25: ='4. Billing Det. for Def-Var'!B25 -> EMBEDDED DISTRIBUTOR SERVICE CLASSIFICATION | C25: ='4. Billing Det. for Def-Var'!C25 -> kWh | D25: ='4. Billing Det. for Def-Var'!D25 -> 5292579 | E25: ='4. Billing Det. for Def-Var'!E25 -> 0 | F25: ='4. Billing Det. for Def-Var'!J25 -> 5292579 | G25: ='4. Billing Det. for Def-Var'!K25 -> 0 | H25: =SUM('5. Allocating Def-Var Balances'!G24:V24)-I25 -> -4962.870519 | J25: =IF(ISERROR(H25/D25),0,IF(OR(ISBLANK(D$13), OR(D$13=0, D$13="")), H25/D25/(D$12/12), H25/D25/(D$13/12))) -> -0.0009377036261 | K25: =IF(ISERROR(I25/G25),0,IF(OR(ISBLANK(D$13), OR(D$13=0, D$13="")), I25/G25/(D$12/12), I25/G25/(D$13/12))) -> 0 | L25: =IF(ISERROR('4. Billing Det. for Def-Var'!T25/D25), 0, IF(OR(ISBLANK(D13), OR(D13=0, D13="")), ('4. Billing Det. for Def-Var'!T25/D25)/(D12/12), ('4. Billing Det. for Def-Var'!T25/D25)/(D13/12))) -> 0 | M25: =J25*D25 -> -4962.870519 | N25: =K25*G25 -> 0
B26: ='4. Billing Det. for Def-Var'!B26 -> DISTRIBUTED GENERATION [DGEN] SERVICE CLASSIFICATION | C26: ='4. Billing Det. for Def-Var'!C26 -> kWh | D26: ='4. Billing Det. for Def-Var'!D26 -> 141477 | E26: ='4. Billing Det. for Def-Var'!E26 -> 0 | F26: ='4. Billing Det. for Def-Var'!J26 -> 141477 | G26: ='4. Billing Det. for Def-Var'!K26 -> 0 | H26: =SUM('5. Allocating Def-Var Balances'!G25:V25)-I26 -> -132.6634959 | J26: =IF(ISERROR(H26/D26),0,IF(OR(ISBLANK(D$13), OR(D$13=0, D$13="")), H26/D26/(D$12/12), H26/D26/(D$13/12))) -> -0.0009377036261 | K26: 0 | L26: =IF(ISERROR('4. Billing Det. for Def-Var'!T26/D26), 0, IF(OR(ISBLANK(D13), OR(D13=0, D13="")), ('4. Billing Det. for Def-Var'!T26/D26)/(D12/12), ('4. Billing Det. for Def-Var'!T26/D26)/(D13/12))) -> 0 | M26: =J26*D26 -> -132.6634959 | N26: 0
B27: ='4. Billing Det. for Def-Var'!B27 -> ENERGY FROM WASTE SERVICE CLASSIFICATION | C27: ='4. Billing Det. for Def-Var'!C27 -> kW | D27: ='4. Billing Det. for Def-Var'!D27 -> 0 | E27: ='4. Billing Det. for Def-Var'!E27 -> 0 | F27: ='4. Billing Det. for Def-Var'!J27 -> 0 | G27: ='4. Billing Det. for Def-Var'!K27 -> 0 | H27: =SUM('5. Allocating Def-Var Balances'!G26:V26)-I27 -> 0 | J27: =IF(ISERROR(H27/E27),0,IF(OR(ISBLANK(D$13), OR(D$13=0, D$13="")), H27/E27/(D$12/12), H27/E27/(D$13/12))) -> 0 | K27: 0 | L27: =IF(ISERROR('4. Billing Det. for Def-Var'!T27/D27), 0, IF(OR(ISBLANK(D13), OR(D13=0, D13="")), ('4. Billing Det. for Def-Var'!T27/D27)/(D12/12), ('4. Billing Det. for Def-Var'!T27/D27)/(D13/12))) -> 0 | M27: =SUM(M17:M26) -> -2096581.946 | N27: =SUM(N17:N26) -> -1941246.223 | O27: =SUM(M27:N27) -> -4037828.168
O28: =O27-'3. Continuity Schedule'!CD41+'3. Continuity Schedule'!CD24+'7. CBR Calculation'!N34+'7A. CBR Allocation_Class A'!K44+'7B. CBR Allocation_new Class B'!K45 -> -0.4200000004
B30: 1 When calculating the revenue reconciliation for distributors with Class A customers, the balances of sub-account 1580-CBR Class A and B will not be taken into consideration since the rate riders, if any, are calculated outside of the model.
B31: 2 Only for rate classes with WMP customers are the Deferral/Variance Account Rate Riders for Non-WMP (column H and J) calculated separately. For all rate classes without WMP customers, balances in account 1580 and 1588 are included in column H and disposed through a combined Deferral/Variance Account and Rate Rider.

Sheet 9. STS-Tax Change
A1: Back to Index | U1: Tax Rates | V1: Effective
B2: INCENTIVE REGULATION MODEL FOR 2018 FILERS | U2: Federal & Provincial | V2: 2016-01-01
U3: As of June 20, 2012
U5: Federal income tax | V5: 0.38
U6: General corporate rate | V6: -0.1
U7: Federal tax abatement | V7: =SUM(V5:V6) -> 0.28
U8: Adjusted federal rate | V8: -0.13
U9: Rate reduction | V9: =V7+V8 -> 0.15
U10: Ontario income tax | V10: 0.115
U12: Combined federal and Ontario | V12: =V9+V10 -> 0.265
B13: Summary - Sharing of Tax Change Forecast Amounts
U14: Federal & Ontario Small Business
B15: ="For the " & '1. Information Sheet'!G32 & " year, enter any Tax Credits from the Cost of Service Tax Calculation (Positive #)" -> For the 2015 year, enter any Tax Credits from the Cost of Service Tax Calculation (Positive #) | M15: ='[3]8. STS - Tax Change'!$L$15 -> 87800 | U15: Federal small business threshold | V15: 500000
U16: Ontario Small Business Threshold | V16: 500000
B18: 1. Tax Related Amounts Forecast from Capital Tax Rate Changes | M18: ='1. Information Sheet'!G32 -> 2015 | O18: 2018 | U18: Federal small business rate | V18: 0.105
B19: Taxable Capital (if you are not claiming capital tax, please enter your OEB-Approved Rate Base) | M19: ='[3]8. STS - Tax Change'!$L$19 -> 404618521.9 | O19: =M19 -> 404618521.9
U20: Ontario small business rate | V20: 0.045
B21: Deduction from taxable capital up to $15,000,000 | O21: =M21 -> 0
B23: Net Taxable Capital | M23: =M19-M21 -> 404618521.9 | O23: =O19-O21 -> 404618521.9
B25: Rate | O25: 0 | U25: Ontario Tax Rate (Maximum 11.5%)
U26: Federal tax rate (Maximum 15%)
B27: Ontario Capital Tax (Deductible, not grossed-up) | M27: =IF(M23>0, M23*M25, 0)*181/365 -> 0 | O27: 0 | U27: Combined tax rate (Maximum 26.5%)
B29: 2. Tax Related Amounts Forecast from lncome Tax Rate Changes
B30: Regulatory Taxable Income | M30: ='[3]8. STS - Tax Change'!$L$30 -> 5574756.881 | O30: =M30 -> 5574756.881
B32: Corporate Tax Rate | M32: ='[3]8. STS - Tax Change'!$L$32 -> 0.265 | O32: =IF(ratebase>15000000, 26.5%, IF(ratebase<10000000, 15%, 15%+11.5%*((ratebase-10000000)/5000000))) -> 0.265
B34: Tax Impact | M34: =M30*M32-M15 -> 1389510.574 | O34: =O30*O32-M15 -> 1389510.574
B36: Grossed-up Tax Amount | M36: =M34/(1-M32) -> 1890490.576 | O36: =O34/(1-O32) -> 1890490.576
B38: Tax Related Amounts Forecast from Capital Tax Rate Changes | M38: =M27 -> 0 | O38: =O27 -> 0
B40: Tax Related Amounts Forecast from lncome Tax Rate Changes | M40: =M36 -> 1890490.576 | O40: =O36 -> 1890490.576
B42: Total Tax Related Amounts | M42: =SUM(M40,M38) -> 1890490.576 | O42: =SUM(O40,O38) -> 1890490.576
B44: Incremental Tax Savings | O44: =O42-M42 -> 0
B46: Sharing of Tax Amount (50%) | O46: =0.5*O44 -> 0

Sheet 10. Shared Tax - RR
A1: Back to Index
B2: INCENTIVE REGULATION MODEL FOR 2018 FILERS
B12: Calculation of Rebased Revenue Requirement and Allocation of Tax Sharing Amount. Enter data from the last OEB-Approved Cost of Service application in columns D through I.
B13: As per Chapter 3 Filing Requirements, shared tax rate riders are based on a 1 year disposition.
B15: Rate Class | D15: Re-based Billed Customers or Connections | E15: Re-based Billed kWh | F15: Re-based Billed kW | G15: Re-based Service Charge | H15: Re-based Distribution Volumetric Rate kWh | I15: Re-based Distribution Volumetric Rate kW | J15: Service Charge Revenue | K15: Distribution Volumetric Rate Revenue kWh | L15: Distribution Volumetric Rate Revenue kW | M15: Revenue Requirement from Rates | N15: Service Charge % Revenue | O15: Distribution Volumetric Rate % Revenue kWh | P15: Distribution Volumetric Rate % Revenue kW | Q15: Total % Revenue
D16: A | E16: B | F16: C | G16: D | H16: E | I16: F | J16: G = A * D *12 | K16: H = B * E | L16: I = C * F | M16: J = G + H + I | N16: K = G / J | O16: L = H / J | P16: M = I / J | Q16: N = J / R
B17: ='4. Billing Det. for Def-Var'!B17 -> RESIDENTIAL SERVICE CLASSIFICATION | C17: ='4. Billing Det. for Def-Var'!C17 -> kWh | D17: 140979.1817 | E17: 1308264983 | F17: 0 | G17: 11.07 | H17: 0.0155 | I17: 0 | J17: =G17*D17*12 -> 18727674.5 | K17: =E17*H17 -> 20278107.24 | L17: =F17*I17 -> 0 | M17: =J17+K17+L17 -> 39005781.74 | N17: =IF(ISERROR(J17/M17),0,J17/M17) -> 0.4801256035 | O17: =IF(ISERROR(K17/M17),0,K17/M17) -> 0.5198743965 | P17: =IF(ISERROR(L17/M17),0,L17/M17) -> 0 | Q17: =IF(ISERROR(M17/M$30),0,M17/M$30) -> 0.5606736075
B18: ='4. Billing Det. for Def-Var'!B18 -> GENERAL SERVICE LESS THAN 50 kW SERVICE CLASSIFICATION | C18: ='4. Billing Det. for Def-Var'!C18 -> kWh | D18: 8989.460008 | E18: 354668870.3 | F18: 0 | G18: 24.39 | H18: 0.0161 | I18: 0 | J18: 2631035.155 | K18: 5710168.812 | L18: 0 | M18: 8341203.967 | N18: =IF(ISERROR(J18/M18),0,J18/M18) -> 0.3154263061 | O18: =IF(ISERROR(K18/M18),0,K18/M18) -> 0.6845736939 | P18: =IF(ISERROR(L18/M18),0,L18/M18) -> 0 | Q18: =IF(ISERROR(M18/M$30),0,M18/M$30) -> 0.1198974283
B19: ='4. Billing Det. for Def-Var'!B19 -> GENERAL SERVICE 50 to 699 KW SERVICE CLASSIFICATION | C19: ='4. Billing Det. for Def-Var'!C19 -> kW | D19: 1490.72449 | E19: 1064497599 | F19: 2979825.698 | G19: 121.18 | H19: 0 | I19: 2.7446 | J19: 2167751.925 | K19: 0 | L19: 8178429.611 | M19: 10346181.54 | N19: 0.2095219301 | O19: 0 | P19: =IF(ISERROR(L19/M19),0,L19/M19) -> 0.7904780699 | Q19: 0.1487172072
B20: ='4. Billing Det. for Def-Var'!B20 -> GENERAL SERVICE 700 to 4,999 KW SERVICE CLASSIFICATION | C20: ='4. Billing Det. for Def-Var'!C20 -> kW | D20: 114.6164114 | E20: 806154179.9 | F20: 1969146.402 | G20: 1093.35 | H20: 0 | I20: 3.1861 | J20: 1503790.241 | K20: 0 | L20: 6273897.352 | M20: 7777687.593 | N20: 0.1933467015 | O20: 0 | P20: 0.8066532985 | Q20: 0.1117973789
B21: ='4. Billing Det. for Def-Var'!B21 -> LARGE USE SERVICE CLASSIFICATION | C21: ='4. Billing Det. for Def-Var'!C21 -> kW | D21: 6 | E21: 382619513.4 | F21: 719987.0916 | G21: 4549.67 | H21: 0 | I21: 2.4122 | J21: 327576.24 | K21: 0 | L21: 1736752.862 | M21: 2064329.102 | N21: 0.1586841166 | O21: 0 | P21: 0.8413158834 | Q21: 0.02967290472
B22: ='4. Billing Det. for Def-Var'!B22 -> STANDBY POWER SERVICE CLASSIFICATION | C22: ='4. Billing Det. for Def-Var'!C22 -> kW | D22: 1 | E22: 0 | F22: 54580 | G22: 0 | H22: 0 | I22: 1.6224 | J22: 0 | K22: 0 | L22: 88550.592 | M22: 88550.592 | N22: 0 | O22: 0 | P22: 1 | Q22: 0.001272836427
B23: ='4. Billing Det. for Def-Var'!B23 -> UNMETERED SCATTERED LOAD SERVICE CLASSIFICATION | C23: ='4. Billing Det. for Def-Var'!C23 -> kWh | D23: 1561.718162 | E23: 5931732.904 | F23: 0 | G23: 1.05 | H23: 0.0192 | I23: 0 | J23: 19677.64884 | K23: 113889.2718 | L23: 0 | M23: 133566.9206 | N23: 0.1473242682 | O23: 0.8526757318 | P23: 0 | Q23: 0.001919906329
B24: ='4. Billing Det. for Def-Var'!B24 -> STREET LIGHTING SERVICE CLASSIFICATION | C24: ='4. Billing Det. for Def-Var'!C24 -> kW | D24: 22334.56352 | E24: 33306954.55 | F24: 100671.8914 | G24: 2.22 | H24: 0 | I24: 11.1563 | J24: 594992.7721 | K24: 0 | L24: 1123125.823 | M24: 1718118.595 | N24: 0.3463048325 | O24: 0 | P24: 0.6536951675 | Q24: 0.02469643493
B25: ='4. Billing Det. for Def-Var'!B25 -> EMBEDDED DISTRIBUTOR SERVICE CLASSIFICATION | C25: ='4. Billing Det. for Def-Var'!C25 -> kWh | D25: 1 | E25: 17012414 | F25: 40073 | G25: 4021.92 | H25: 0 | I25: 0 | J25: 48263.04 | K25: 0 | L25: 0 | M25: 48263.04 | N25: 1 | O25: 0 | P25: 0 | Q25: 0.0006937385059
B26: ='4. Billing Det. for Def-Var'!B26 -> DISTRIBUTED GENERATION [DGEN] SERVICE CLASSIFICATION | C26: ='4. Billing Det. for Def-Var'!C26 -> kWh | D26: 67.58333333 | E26: 178815.8383 | F26: 0 | G26: 55.59 | H26: 0 | I26: 0 | J26: =G26*D26*12 -> 45083.49 | K26: =E26*H26 -> 0 | L26: =F26*I26 -> 0 | M26: =J26+K26+L26 -> 45083.49 | N26: =IF(ISERROR(J26/M26),0,J26/M26) -> 1 | O26: =IF(ISERROR(K26/M26),0,K26/M26) -> 0 | P26: =IF(ISERROR(L26/M26),0,L26/M26) -> 0 | Q26: 0.0006480352873
B27: ='4. Billing Det. for Def-Var'!B27 -> ENERGY FROM WASTE SERVICE CLASSIFICATION | C27: ='4. Billing Det. for Def-Var'!C27 -> kW | D27: 1 | E27: 0 | F27: 0 | G27: 61 | H27: 0 | I27: 0 | J27: 732 | K27: 0 | L27: 0 | M27: 732 | N27: 1 | O27: 0 | P27: 0 | Q27: 1.052185246e-05
J28: 0 | K28: 0 | L28: 0 | M28: 0 | N28: 0 | O28: 0 | P28: 0 | Q28: 0
J29: 0 | K29: 0 | L29: 0 | M29: 0 | N29: 0 | O29: 0 | P29: 0 | Q29: 0
B30: Total | D30: =SUM(D17:D29) -> 175546.8476 | E30: =SUM(E17:E29) -> 3972635063 | F30: 5864284.083 | J30: =SUM(J17:J29) -> 26066577.01 | K30: =SUM(K17:K29) -> 26102165.32 | L30: 17400756.24 | M30: 69569498.58 | Q30: =SUM(Q17:Q29) -> 1
B33: Rate Class | D33: Total kWh (most recent RRR filing) | E33: Total kW (most recent RRR filing) | F33: Allocation of Tax Savings by Rate Class | G33: Distribution Rate Rider
B34: =B17 -> RESIDENTIAL SERVICE CLASSIFICATION | C34: kWh | D34: ='4. Billing Det. for Def-Var'!D17 -> 1311941173 | E34: ='4. Billing Det. for Def-Var'!E17 -> 0 | F34: =F$48*Q17 -> 0 | G34: =ROUND(F34/'4. Billing Det. for Def-Var'!U17,2) -> 0 | H34: $/Customer | I34: If the allocated tax sharing amount does not produce a rate rider in one or more rate class (except for the Standby rate class), a distributor is required to transfer the entire OEB-approved tax sharing amount into account 1595 for disposition at a later date (see Filing Requirements, Appendix B)
B35: GENERAL SERVICE LESS THAN 50 kW SERVICE CLASSIFICATION | C35: kWh | D35: ='4. Billing Det. for Def-Var'!D18 -> 337539785 | E35: ='4. Billing Det. for Def-Var'!E18 -> 0 | F35: 0 | G35: =IFERROR(ROUND(IF(E35<>0,F35/E35,F35/D35),4),"") -> 0 | H35: $/kWh
B36: GENERAL SERVICE 50 to 699 KW SERVICE CLASSIFICATION | C36: kW | D36: ='4. Billing Det. for Def-Var'!D19 -> 1118515365 | E36: ='4. Billing Det. for Def-Var'!E19 -> 3142997.73 | F36: 0 | G36: =IFERROR(ROUND(IF(E36<>0,F36/E36,F36/D36),4),"") -> 0 | H36: $/kW
B37: GENERAL SERVICE 700 to 4,999 KW SERVICE CLASSIFICATION | C37: kW | D37: ='4. Billing Det. for Def-Var'!D20 -> 852708466 | E37: ='4. Billing Det. for Def-Var'!E20 -> 2009962.01 | F37: 0 | G37: 0 | H37: $/kW
B38: LARGE USE SERVICE CLASSIFICATION | C38: kW | D38: ='4. Billing Det. for Def-Var'!D21 -> 363967969 | E38: ='4. Billing Det. for Def-Var'!E21 -> 666341.8149 | F38: 0 | G38: 0 | H38: $/kWh
B39: STANDBY POWER SERVICE CLASSIFICATION | C39: kW | D39: ='4. Billing Det. for Def-Var'!D22 -> 0 | E39: ='4. Billing Det. for Def-Var'!E22 -> 0 | F39: 0 | H39: $/kWh
B40: UNMETERED SCATTERED LOAD SERVICE CLASSIFICATION | C40: kWh | D40: ='4. Billing Det. for Def-Var'!D23 -> 5837113 | E40: ='4. Billing Det. for Def-Var'!E23 -> 0 | F40: 0 | G40: 0 | H40: $/kW
B41: STREET LIGHTING SERVICE CLASSIFICATION | C41: kW | D41: ='4. Billing Det. for Def-Var'!D24 -> 34274583 | E41: ='4. Billing Det. for Def-Var'!E24 -> 103149.1581 | F41: 0 | G41: 0 | H41: $/kW
B42: EMBEDDED DISTRIBUTOR SERVICE CLASSIFICATION | C42: kWh | D42: ='4. Billing Det. for Def-Var'!D25 -> 5292579 | E42: ='4. Billing Det. for Def-Var'!E25 -> 0 | F42: 0 | G42: 0 | H42: $/kWh
B43: DISTRIBUTED GENERATION [DGEN] SERVICE CLASSIFICATION | C43: kWh | D43: ='4. Billing Det. for Def-Var'!D26 -> 141477 | E43: ='4. Billing Det. for Def-Var'!E26 -> 0 | F43: =F$48*Q30 -> 0 | G43: 0 | H43: $/kWh
B44: ENERGY FROM WASTE SERVICE CLASSIFICATION | C44: kW | D44: ='4. Billing Det. for Def-Var'!D27 -> 0 | E44: ='4. Billing Det. for Def-Var'!E27 -> 0 | F44: =F$48*Q31 -> 0 | H44: $/kW
F45: 0 | G45: =IFERROR(ROUND(IF(E45<>"",F45/E45,F45/D45),4),"") -> 
F46: 0
D48: =SUM(D34:D47) -> 4030218510 | E48: =SUM(E34:E47) -> 5922450.713 | F48: =ROUND('9. STS-Tax Change'!O46,2) -> 0

Sheet 11. RTSR - Current Rates
A1: Back to Index | B1: Back to Index | BA1: 1
B2: INCENTIVE REGULATION MODEL FOR 2018 FILERS
B13: Columns F and G must match the data from the most recent RRR filing. Rates have been imported from Tab 2. As well, the Loss Factor has been imported from "Model Specs" tab. If the data needs to be modified, please make the necessary adjustments and note the changes in your manager's summary.
B15: Rate Class | C15: Rate Description | D15: Unit | E15: Rate | F15: Non-Loss Adjusted Metered kWh | G15: Non-Loss Adjusted Metered kW | H15: Applicable Loss Factor | I15: Loss Adjusted Billed kWh
A16: R_TN | B16: ='Model Specs'!C15 -> RESIDENTIAL SERVICE CLASSIFICATION | C16: Retail Transmission Rate – Network Service Rate | D16: $/kWh | E16: =VLOOKUP(A16,RATES,4,FALSE) -> 0.0074 | F16: ='4. Billing Det. for Def-Var'!D17 -> 1311941173 | G16: 0 | H16: =LLF -> 1.0341 | I16: =F16*H16 -> 1356678367
A17: R_TC | B17: =B16 -> RESIDENTIAL SERVICE CLASSIFICATION | C17: Retail Transmission Rate – Line and Transformation Connection Service Rate | D17: $/kWh | E17: 0.0057 | F17: =F16 -> 1311941173 | G17: 0 | H17: 1.0341 | I17: =F17*H17 -> 1356678367
A18: GSL_TN | B18: ='Model Specs'!C16 -> GENERAL SERVICE LESS THAN 50 kW SERVICE CLASSIFICATION | C18: Retail Transmission Rate – Network Service Rate | D18: $/kWh | E18: 0.0066 | F18: ='4. Billing Det. for Def-Var'!D18 -> 337539785 | G18: 0 | H18: 1.0341 | I18: 349049891.7
A19: GSL_TC | B19: =B18 -> GENERAL SERVICE LESS THAN 50 kW SERVICE CLASSIFICATION | C19: Retail Transmission Rate – Line and Transformation Connection Service Rate | D19: $/kWh | E19: 0.0048 | F19: =F18 -> 337539785 | G19: 0 | H19: 1.0341 | I19: 349049891.7
A20: GS50_699_TN | B20: ='Model Specs'!C17 -> GENERAL SERVICE 50 to 699 KW SERVICE CLASSIFICATION | C20: Retail Transmission Rate – Network Service Rate | D20: $/kW | E20: 2.5604 | F20: ='4. Billing Det. for Def-Var'!D19 -> 1118515365 | G20: ='4. Billing Det. for Def-Var'!E19 -> 3142997.73 | H20: 1.0341 | I20: 1156656739
A21: GS50_699_TC | B21: =B20 -> GENERAL SERVICE 50 to 699 KW SERVICE CLASSIFICATION | C21: Retail Transmission Rate – Line and Transformation Connection Service Rate | D21: $/kW | E21: 1.9177 | F21: =F20 -> 1118515365 | G21: =G20 -> 3142997.73 | H21: 1.0341 | I21: 1156656739
A22: GS700_TN | B22: ='Model Specs'!C18 -> GENERAL SERVICE 700 to 4,999 KW SERVICE CLASSIFICATION | C22: Retail Transmission Rate – Network Service Rate | D22: $/kW | E22: 2.8714 | F22: ='4. Billing Det. for Def-Var'!D20 -> 852708466 | G22: ='4. Billing Det. for Def-Var'!E20 -> 2009962.01 | H22: 1.0341 | I22: 881785824.7
A23: GS700_TC | B23: =B22 -> GENERAL SERVICE 700 to 4,999 KW SERVICE CLASSIFICATION | C23: Retail Transmission Rate – Line and Transformation Connection Service Rate | D23: $/kW | E23: 2.0614 | F23: =F22 -> 852708466 | G23: =G22 -> 2009962.01 | H23: 1.0341 | I23: 881785824.7
A24: LU_TN | B24: ='Model Specs'!C19 -> LARGE USE SERVICE CLASSIFICATION | C24: Retail Transmission Rate – Network Service Rate | D24: $/kW | E24: 3.2499 | F24: ='4. Billing Det. for Def-Var'!D21 -> 363967969 | G24: ='4. Billing Det. for Def-Var'!E21 -> 666341.8149 | H24: 1.0341 | I24: 376379276.7
A25: LU_TC | B25: =B24 -> LARGE USE SERVICE CLASSIFICATION | C25: Retail Transmission Rate – Line and Transformation Connection Service Rate | D25: $/kW | E25: 2.3826 | F25: =F24 -> 363967969 | G25: =G24 -> 666341.8149 | H25: 1.0341 | I25: 376379276.7
A26: USL_TN | B26: ='Model Specs'!C21 -> UNMETERED SCATTERED LOAD SERVICE CLASSIFICATION | C26: Retail Transmission Rate – Network Service Rate | D26: $/kWh | E26: 0.0066 | F26: ='4. Billing Det. for Def-Var'!D23 -> 5837113 | G26: ='4. Billing Det. for Def-Var'!E23 -> 0 | H26: 1.0341 | I26: 6036158.553
A27: USL_TC | B27: =B26 -> UNMETERED SCATTERED LOAD SERVICE CLASSIFICATION | C27: Retail Transmission Rate – Line and Transformation Connection Service Rate | D27: $/kWh | E27: 0.0048 | F27: =F26 -> 5837113 | G27: =G26 -> 0 | H27: 1.0341 | I27: 6036158.553
A28: SL_TN | B28: ='4. Billing Det. for Def-Var'!B24 -> STREET LIGHTING SERVICE CLASSIFICATION | C28: Retail Transmission Rate – Network Service Rate | D28: $/kW | E28: 2.1319 | F28: ='4. Billing Det. for Def-Var'!D24 -> 34274583 | G28: ='4. Billing Det. for Def-Var'!E24 -> 103149.1581 | H28: 1.0341 | I28: 35443346.28
A29: SL_TC | B29: =B28 -> STREET LIGHTING SERVICE CLASSIFICATION | C29: Retail Transmission Rate – Line and Transformation Connection Service Rate | D29: $/kW | E29: 1.5966 | F29: =F28 -> 34274583 | G29: =G28 -> 103149.1581 | H29: 1.0341 | I29: 35443346.28
A30: EMD_TN | B30: ='Model Specs'!C23 -> EMBEDDED DISTRIBUTOR SERVICE CLASSIFICATION | C30: Retail Transmission Rate – Network Service Rate | D30: $/kW | E30: 2.8714 | F30: ='4. Billing Det. for Def-Var'!D25 -> 5292579 | G30: ='4. Billing Det. for Def-Var'!E25 -> 0 | H30: 1.0341 | I30: 5473055.944
A31: EMD_TC | B31: =B30 -> EMBEDDED DISTRIBUTOR SERVICE CLASSIFICATION | C31: Retail Transmission Rate – Line and Transformation Connection Service Rate | D31: $/kW | E31: 2.0614 | F31: =F30 -> 5292579 | G31: =G30 -> 0 | H31: 1.0341 | I31: 5473055.944
A32: DG_TN | B32: ='Model Specs'!C24 -> DISTRIBUTED GENERATION [DGEN] SERVICE CLASSIFICATION | C32: Retail Transmission Rate – Network Service Rate | D32: $/kWh | E32: 0.0066 | F32: ='4. Billing Det. for Def-Var'!D26 -> 141477 | G32: ='4. Billing Det. for Def-Var'!E26 -> 0 | H32: 1.0341 | I32: 146301.3657
A33: DG_TC | B33: =B32 -> DISTRIBUTED GENERATION [DGEN] SERVICE CLASSIFICATION | C33: Retail Transmission Rate – Line and Transformation Connection Service Rate | D33: $/kWh | E33: 0.0048 | F33: =F32 -> 141477 | G33: =G32 -> 0 | H33: 1.0341 | I33: 146301.3657

Sheet 12. RTSR-UTRs & Sub-Tx
A1: Back to Index
B2: INCENTIVE REGULATION MODEL FOR 2018 FILERS
B12: Uniform Transmission Rates | C12: Unit | E12: 2016 | H12: 2017 | J12: 2018
B14: Rate Description | E14: Rate | H14: Rate | J14: Rate
B16: Network Service Rate | C16: kW | E16: 3.66 | H16: 3.66 | J16: 3.61
B18: Line Connection Service Rate | C18: kW | E18: 0.87 | H18: 0.87 | J18: 0.95
B20: Transformation Connection Service Rate | C20: kW | E20: 2.02 | H20: 2.02 | J20: 2.34
B23: Hydro One Sub-Transmission Rates | C23: Unit | E23: 2016 | H23: 2017 | J23: 2018
E24: 2016-01-01 | F24: Feb - Dec 2016 | H24: Jan - Dec 2017
B27: Rate Description | E27: Rate | F27: Rate | H27: Rate | J27: Rate
B29: Network Service Rate | C29: kW | E29: 3.4121 | F29: 3.3396 | H29: 3.1942 | J29: =H29 -> 3.1942
B31: Line Connection Service Rate | C31: kW | E31: 0.7879 | F31: 0.7791 | H31: 0.771 | J31: =H31 -> 0.771
B33: Transformation Connection Service Rate | C33: kW | E33: 1.8018 | F33: 1.7713 | H33: 1.7493 | J33: =H33 -> 1.7493
B35: Both Line and Transformation Connection Service Rate | C35: kW | E35: =SUM(E33,E31) -> 2.5897 | F35: 2.5504 | H35: =SUM(H33,H31) -> 2.5203 | J35: =H35 -> 2.5203
B38: If needed, add extra host here. (I) | C38: Unit | E38: 2016 | H38: 2017 | J38: 2018
B42: Rate Description | E42: Rate | H42: Rate | J42: Rate
B44: Network Service Rate | C44: kW
B46: Line Connection Service Rate | C46: kW
B48: Transformation Connection Service Rate | C48: kW
B50: Both Line and Transformation Connection Service Rate | C50: kW | E50: =F48+F46 -> 0 | H50: =H48+H46 -> 0 | J50: =J48+J46 -> 0
B53: If needed, add extra host here. (II) | C53: Unit | E53: 2016 | H53: 2017 | J53: 2018
B57: Rate Description | E57: Rate | H57: Rate | J57: Rate
B59: Network Service Rate | C59: kW
B61: Line Connection Service Rate | C61: kW
B63: Transformation Connection Service Rate | C63: kW
B65: Both Line and Transformation Connection Service Rate | C65: kW | E65: =F63+F61 -> 0 | H65: =H63+H61 -> 0 | J65: =J63+J61 -> 0
E67: Historical 2016 | H67: Current 2017 | J67: Forecast 2018
B68: Low Voltage Switchgear Credit (if applicable, enter as a negative value) | C68: $

Sheet 13. RTSR-Historic Wholesale
A1: Back to Index
B2: INCENTIVE REGULATION MODEL FOR 2018 FILERS
B13: In the green shaded cells, enter billing detail for wholesale transmission for the same reporting period as the billing determinants on Tab 10. For Hydro One Sub-transmission Rates, if you are charged a combined Line and Transformer connection rate, please ensure that both the Line Connection and Transformation Connection columns are completed. If any of the Hydro One Sub-transmission rates (column E, I and M) are highlighted in orange, please double check the billing data entered in "Units Billed" and "Amount" columns. The highlighted rates do not match the Hydro One Sub-transmission rates approved for that time period. If data has been entered correctly, please provide explanation for the discrepancy in rates.
B16: IESO | D16: Network | H16: Line Connection | L16: Transformation Connection | P16: Total Line
B17: Month | D17: Units Billed | E17: Rate | F17: Amount | H17: Units Billed | I17: Rate | J17: Amount | L17: Units Billed | M17: Rate | N17: Amount | P17: Amount
B19: January | D19: 573967 | E19: =IF(D19<>0,F19/D19,0) -> 3.66 | F19: 2100719.22 | H19: 598224 | I19: =IF(H19<>0,J19/H19,0) -> 0.87 | J19: 520454.88 | L19: 514549 | M19: =IF(L19<>0,N19/L19,0) -> 2.02 | N19: 1039388.98 | P19: =J19+N19 -> 1559843.86
B20: February | D20: 574060 | E20: 3.66 | F20: 2101059.6 | H20: 598164 | I20: 0.87 | J20: 520402.68 | L20: 513329 | M20: 2.02 | N20: 1036924.58 | P20: 1557327.26
B21: March | D21: 575036 | E21: 3.66 | F21: 2104631.76 | H21: 594794 | I21: 0.87 | J21: 517470.78 | L21: 514095 | M21: 2.02 | N21: 1038471.9 | P21: 1555942.68
B22: April | D22: 537184 | E22: 3.66 | F22: 1966093.44 | H22: 569430 | I22: 0.87 | J22: 495404.1 | L22: 496177 | M22: 2.02 | N22: 1002277.54 | P22: 1497681.64
B23: May | D23: 637994 | E23: 3.66 | F23: 2335058.04 | H23: 692774 | I23: 0.87 | J23: 602713.38 | L23: 589765 | M23: 2.02 | N23: 1191325.3 | P23: 1794038.68
B24: June | D24: 772216 | E24: 3.66 | F24: 2826310.56 | H24: 796894 | I24: 0.87 | J24: 693297.78 | L24: 682616 | M24: 2.02 | N24: 1378884.32 | P24: 2072182.1
B25: July | D25: 805454 | E25: 3.66 | F25: 2947961.64 | H25: 824143 | I25: 0.87 | J25: 717004.41 | L25: 705178 | M25: 2.02 | N25: 1424459.56 | P25: 2141463.97
B26: August | D26: 816096 | E26: 3.66 | F26: 2986911.36 | H26: 845022 | I26: 0.87 | J26: 735169.14 | L26: 724253 | M26: 2.02 | N26: 1462991.06 | P26: 2198160.2
B27: September | D27: 818873 | E27: 3.66 | F27: 2997075.18 | H27: 831177 | I27: 0.87 | J27: 723123.99 | L27: 707586 | M27: 2.02 | N27: 1429323.72 | P27: 2152447.71
B28: October | D28: 543313 | E28: 3.66 | F28: 1988525.58 | H28: 568053 | I28: 0.87 | J28: 494206.11 | L28: 493624 | M28: 2.02 | N28: 997120.48 | P28: 1491326.59
B29: November | D29: 552278 | E29: 3.66 | F29: 2021337.48 | H29: 571572 | I29: 0.87 | J29: 497267.64 | L29: 491207 | M29: 2.02 | N29: 992238.14 | P29: 1489505.78
B30: December | D30: 577823 | E30: 3.66 | F30: 2114832.18 | H30: 605107 | I30: 0.87 | J30: 526443.09 | L30: 520327 | M30: 2.02 | N30: 1051060.54 | P30: 1577503.63
B32: Total | D32: =SUM(D19:D30) -> 7784294 | E32: =IF(D32<>0,F32/D32,0) -> 3.66 | F32: =SUM(F19:F30) -> 28490516.04 | H32: =SUM(H19:H30) -> 8095354 | I32: =IF(H32<>0,J32/H32,0) -> 0.87 | J32: =SUM(J19:J30) -> 7042957.98 | L32: =SUM(L19:L30) -> 6952706 | M32: =IF(L32<>0,N32/L32,0) -> 2.02 | N32: =SUM(N19:N30) -> 14044466.12 | P32: =SUM(P19:P30) -> 21087424.1
B34: Hydro One | D34: Network | H34: Line Connection | L34: Transformation Connection | P34: Total Line
B36: Month | D36: Units Billed | E36: Rate | F36: Amount | H36: Units Billed | I36: Rate | J36: Amount | L36: Units Billed | M36: Rate | N36: Amount | P36: Amount
B38: January | D38: 12599.92 | E38: =IF(D38<>0,F38/D38,0) -> 3.412099442 | F38: 42992.18 | H38: 12599.92 | I38: =IF(H38<>0,J38/H38,0) -> 0.7879002406 | J38: 9927.48 | L38: 12599.92 | M38: =IF(L38<>0,N38/L38,0) -> 1.801799535 | N38: 22702.53 | P38: =J38+N38 -> 32630.01
B39: February | D39: 11944.47 | E39: =IF(D39<>0,F39/D39,0) -> 3.339601506 | F39: 39889.77 | H39: 12133.63 | I39: 0.7790999066 | J39: 9453.31 | L39: 12133.63 | M39: 1.771300097 | N39: 21492.3 | P39: =J39+N39 -> 30945.61
B40: March | D40: 11361.07 | E40: 3.339600935 | F40: 37941.44 | H40: 11822.82 | I40: 0.7791000793 | J40: 9211.16 | L40: 11822.82 | M40: 1.771299064 | N40: 20941.75 | P40: 30152.91
B41: April | D41: 11597.59 | E41: 3.339600727 | F41: 38731.32 | H41: 11844.52 | I41: 0.7790995329 | J41: 9228.06 | L41: 11844.52 | M41: 1.771299301 | N41: 20980.19 | P41: 30208.25
B42: May | D42: 12061.79 | E42: 3.339600507 | F42: 40281.56 | H42: 12061.79 | I42: 0.7790999512 | J42: 9397.34 | L42: 12061.79 | M42: 1.771300114 | N42: 21365.05 | P42: 30762.39
B43: June | D43: 25781.72 | E43: 3.339599918 | F43: 86100.63 | H43: 25781.72 | I43: 0.7791000756 | J43: 20086.54 | L43: 25781.72 | M43: 1.771299975 | N43: 45667.16 | P43: 65753.7
B44: July | D44: 11498.61 | E44: 3.339599308 | F44: 38400.75 | H44: 11498.61 | I44: 0.7791002565 | J44: 8958.57 | L44: 11498.61 | M44: 1.771300183 | N44: 20367.49 | P44: 29326.06
B45: August | D45: 11745.82 | E45: 3.339600811 | F45: 39226.35 | H45: 11745.82 | I45: 0.7791001395 | J45: 9151.17 | L45: 11745.82 | M45: 1.771299918 | N45: 20805.37 | P45: 29956.54
B46: September | D46: 11650.01 | E46: 3.339601425 | F46: 38906.39 | H46: 11650.01 | I46: 0.7791006188 | J46: 9076.53 | L46: 11650.01 | M46: 1.771300625 | N46: 20635.67 | P46: 29712.2
B47: October | D47: 20781.48 | E47: 3.339599008 | F47: 69401.81 | H47: 20781.48 | I47: 0.7790999486 | J47: 16190.85 | L47: 20781.48 | M47: 1.771299734 | N47: 36810.23 | P47: 53001.08
B48: November | D48: 8700.51 | E48: 3.339599633 | F48: 29056.22 | H48: 8700.51 | I48: 0.7791003056 | J48: 6778.57 | L48: 8700.51 | M48: 1.771299613 | N48: 15411.21 | P48: 22189.78
B49: December | D49: 11883.08 | E49: 3.339598825 | F49: 39684.72 | H49: 11883.08 | I49: 0.7790993581 | J49: 9258.1 | L49: 11883.08 | M49: 1.771299192 | N49: 21048.49 | P49: 30306.59
B51: Total | D51: =SUM(D38:D49) -> 161606.07 | E51: =IF(D51<>0,F51/D51,0) -> 3.345252688 | F51: =SUM(F38:F49) -> 540613.14 | H51: =SUM(H38:H49) -> 162503.91 | I51: =IF(H51<>0,J51/H51,0) -> 0.7797823449 | J51: =SUM(J38:J49) -> 126717.68 | L51: =SUM(L38:L49) -> 162503.91 | M51: =IF(L51<>0,N51/L51,0) -> 1.773664646 | N51: =SUM(N38:N49) -> 288227.44 | P51: =SUM(P38:P49) -> 414945.12
B53: Add Extra Host Here (I) | D53: Network | H53: Line Connection | L53: Transformation Connection | P53: Total Line
B54: (if needed)
B55: Month | D55: Units Billed | E55: Rate | F55: Amount | H55: Units Billed | I55: Rate | J55: Amount | L55: Units Billed | M55: Rate | N55: Amount | P55: Amount
B57: January | E57: =IF(D57<>0,F57/D57,0) -> 0 | I57: =IF(H57<>0,J57/H57,0) -> 0 | M57: =IF(L57<>0,N57/L57,0) -> 0 | P57: =J57+N57 -> 0
B58: February | E58: 0 | I58: 0 | M58: 0 | P58: 0
B59: March | E59: 0 | I59: 0 | M59: 0 | P59: 0
B60: April | E60: 0 | I60: 0 | M60: 0 | P60: 0
B61: May | E61: 0 | I61: 0 | M61: 0 | P61: 0
B62: June | E62: 0 | I62: 0 | M62: 0 | P62: 0
B63: July | E63: 0 | I63: 0 | M63: 0 | P63: 0
B64: August | E64: 0 | I64: 0 | M64: 0 | P64: 0
B65: September | E65: 0 | I65: 0 | M65: 0 | P65: 0
B66: October | E66: 0 | I66: 0 | M66: 0 | P66: 0
B67: November | E67: 0 | I67: 0 | M67: 0 | P67: 0
B68: December | E68: 0 | I68: 0 | M68: 0 | P68: 0
B70: Total | D70: =SUM(D57:D68) -> 0 | E70: =IF(D70<>0,F70/D70,0) -> 0 | F70: =SUM(F57:F68) -> 0 | H70: =SUM(H57:H68) -> 0 | I70: =IF(H70<>0,J70/H70,0) -> 0 | J70: =SUM(J57:J68) -> 0 | L70: =SUM(L57:L68) -> 0 | M70: =IF(L70<>0,N70/L70,0) -> 0 | N70: =SUM(N57:N68) -> 0 | P70: =SUM(P57:P68) -> 0
B72: Add Extra Host Here (II) | D72: Network | H72: Line Connection | L72: Transformation Connection | P72: Total Line
B73: (if needed)
B74: Month | D74: Units Billed | E74: Rate | F74: Amount | H74: Units Billed | I74: Rate | J74: Amount | L74: Units Billed | M74: Rate | N74: Amount | P74: Amount
B76: January | E76: =IF(D76<>0,F76/D76,0) -> 0 | I76: =IF(H76<>0,J76/H76,0) -> 0 | M76: =IF(L76<>0,N76/L76,0) -> 0 | P76: =J76+N76 -> 0
B77: February | E77: 0 | I77: 0 | M77: 0 | P77: 0
B78: March | E78: 0 | I78: 0 | M78: 0 | P78: 0
B79: April | E79: 0 | I79: 0 | M79: 0 | P79: 0
B80: May | E80: 0 | I80: 0 | M80: 0 | P80: 0
B81: June | E81: 0 | I81: 0 | M81: 0 | P81: 0
B82: July | E82: 0 | I82: 0 | M82: 0 | P82: 0
B83: August | E83: 0 | I83: 0 | M83: 0 | P83: 0
B84: September | E84: 0 | I84: 0 | M84: 0 | P84: 0
B85: October | E85: 0 | I85: 0 | M85: 0 | P85: 0
B86: November | E86: 0 | I86: 0 | M86: 0 | P86: 0
B87: December | E87: 0 | I87: 0 | M87: 0 | P87: 0
B89: Total | D89: =SUM(D76:D87) -> 0 | E89: =IF(D89<>0,F89/D89,0) -> 0 | F89: =SUM(F76:F87) -> 0 | H89: =SUM(H76:H87) -> 0 | I89: =IF(H89<>0,J89/H89,0) -> 0 | J89: =SUM(J76:J87) -> 0 | L89: =SUM(L76:L87) -> 0 | M89: =IF(L89<>0,N89/L89,0) -> 0 | N89: =SUM(N76:N87) -> 0 | P89: =SUM(P76:P87) -> 0
B91: Total | D91: Network | H91: Line Connection | L91: Transformation Connection | P91: Total Line
B93: Month | D93: Units Billed | E93: Rate | F93: Amount | H93: Units Billed | I93: Rate | J93: Amount | L93: Units Billed | M93: Rate | N93: Amount | P93: Amount
B95: January | D95: =D19+D38+D57+D76 -> 586566.92 | E95: =IF(D95<>0,F95/D95,0) -> 3.654674901 | F95: =F19+F38+F57+F76 -> 2143711.4 | H95: =H19+H38+H57+H76 -> 610823.92 | I95: =IF(H95<>0,J95/H95,0) -> 0.8683064671 | J95: =J19+J38+J57+J76 -> 530382.36 | L95: =L19+L38+L57+L76 -> 527148.92 | M95: =IF(L95<>0,N95/L95,0) -> 2.01478457 | N95: =N19+N38+N57+N76 -> 1062091.51 | P95: =J95+N95 -> 1592473.87
B96: February | D96: =D20+D39+D58+D77 -> 586004.47 | E96: 3.65346935 | F96: =F20+F39+F58+F77 -> 2140949.37 | H96: =H20+H39+H58+H77 -> 610297.63 | I96: 0.8681927701 | J96: =J20+J39+J58+J77 -> 529855.99 | L96: =L20+L39+L58+L77 -> 525462.63 | M96: 2.014257189 | N96: =N20+N39+N58+N77 -> 1058416.88 | P96: 1588272.87
B97: March | D97: 586397.07 | E97: 3.653792472 | F97: 2142573.2 | H97: 606616.82 | I97: 0.8682283818 | J97: 526681.94 | L97: 525917.82 | M97: 2.014409114 | N97: 1059413.65 | P97: 1586095.59
B98: April | D98: 548781.59 | E98: 3.653228892 | F98: 2004824.76 | H98: 581274.52 | I98: 0.8681477385 | J98: 504632.16 | L98: 508021.52 | M98: 2.014201544 | N98: 1023257.73 | P98: 1527889.89
B99: May | D99: 650055.79 | E99: 3.654054985 | F99: 2375339.6 | H99: 704835.79 | I99: 0.8684444358 | J99: 612110.72 | L99: 601826.79 | M99: 2.015015566 | N99: 1212690.35 | P99: 1824801.07
B100: June | D100: 797997.72 | E100: 3.64964851 | F100: 2912411.19 | H100: 822675.72 | I100: 0.8671512999 | J100: 713384.32 | L100: 708397.72 | M100: 2.010948708 | N100: 1424551.48 | P100: 2137935.8
B101: July | D101: 816952.61 | E101: 3.655490359 | F101: 2986362.39 | H101: 835641.61 | I101: 0.8687491998 | J101: 725962.98 | L101: 716676.61 | M101: 2.016009773 | N101: 1444827.05 | P101: 2170790.03
B102: August | D102: 827841.82 | E102: 3.655454021 | F102: 3026137.71 | H102: 856767.82 | I102: 0.8687538124 | J102: 744320.31 | L102: 735998.82 | M102: 2.01603099 | N102: 1483796.43 | P102: 2228116.74
B103: September | D103: 830523.01 | E103: 3.655505667 | F103: 3035981.57 | H103: 842827.01 | I103: 0.8687435397 | J103: 732200.52 | L103: 719236.01 | M103: 2.015971628 | N103: 1449959.39 | P103: 2182159.91
B104: October | D104: 564094.48 | E104: 3.648196292 | F104: 2057927.39 | H104: 588834.48 | I104: 0.8667919039 | J104: 510396.96 | L104: 514405.48 | M104: 2.009952752 | N104: 1033930.71 | P104: 1544327.67
B105: November | D105: 560978.51 | E105: 3.655030743 | F105: 2050393.7 | H105: 580272.51 | I105: 0.868637065 | J105: 504046.21 | L105: 499907.51 | M105: 2.015671559 | N105: 1007649.35 | P105: 1511695.56
B106: December | D106: 589706.08 | E106: 3.653543643 | F106: 2154516.9 | H106: 616990.08 | I106: 0.8682492756 | J106: 535701.19 | L106: 532210.08 | M106: 2.014447058 | N106: 1072109.03 | P106: 1607810.22
B108: Total | D108: =SUM(D95:D106) -> 7945900.07 | E108: =IF(D108<>0,F108/D108,0) -> 3.653598576 | F108: =SUM(F95:F106) -> 29031129.18 | H108: =SUM(H95:H106) -> 8257857.91 | I108: =IF(H108<>0,J108/H108,0) -> 0.8682246338 | J108: =SUM(J95:J106) -> 7169675.66 | L108: =SUM(L95:L106) -> 7115209.91 | M108: =IF(L108<>0,N108/L108,0) -> 2.01437396 | N108: =SUM(N95:N106) -> 14332693.56 | P108: =SUM(P95:P106) -> 21502369.22
N110: Low Voltage Switchgear Credit (if applicable) | P110: ='12. RTSR-UTRs & Sub-Tx'!F68 -> 0
N112: Total including deduction for Low Voltage Switchgear Credit | P112: =P108+P110 -> 21502369.22

Sheet 14. RTSR-Current Wholesale
A1: Back to Index
B2: INCENTIVE REGULATION MODEL FOR 2018 FILERS
B13: The purpose of this sheet is to calculate the expected billing when current 2017 Uniform Transmission Rates are applied against historical 2016 transmission units.
B16: IESO | D16: Network | H16: Line Connection | L16: Transformation Connection | P16: Total Line
B18: Month | D18: Units Billed | E18: Rate | F18: Amount | H18: Units Billed | I18: Rate | J18: Amount | L18: Units Billed | M18: Rate | N18: Amount | P18: Amount
B20: January | D20: ='13. RTSR-Historic Wholesale'!D19 -> 573967 | E20: ='12. RTSR-UTRs & Sub-Tx'!H16 -> 3.66 | F20: =D20*E20 -> 2100719.22 | H20: ='13. RTSR-Historic Wholesale'!H19 -> 598224 | I20: ='12. RTSR-UTRs & Sub-Tx'!H18 -> 0.87 | J20: =H20*I20 -> 520454.88 | L20: ='13. RTSR-Historic Wholesale'!L19 -> 514549 | M20: ='12. RTSR-UTRs & Sub-Tx'!H20 -> 2.02 | N20: =L20*M20 -> 1039388.98 | P20: =J20+N20 -> 1559843.86
B21: February | D21: ='13. RTSR-Historic Wholesale'!D20 -> 574060 | E21: =E20 -> 3.66 | F21: =D21*E21 -> 2101059.6 | H21: ='13. RTSR-Historic Wholesale'!H20 -> 598164 | I21: =I20 -> 0.87 | J21: =H21*I21 -> 520402.68 | L21: ='13. RTSR-Historic Wholesale'!L20 -> 513329 | M21: =M20 -> 2.02 | N21: =L21*M21 -> 1036924.58 | P21: 1557327.26
B22: March | D22: ='13. RTSR-Historic Wholesale'!D21 -> 575036 | E22: =E21 -> 3.66 | F22: 2104631.76 | H22: ='13. RTSR-Historic Wholesale'!H21 -> 594794 | I22: =I21 -> 0.87 | J22: 517470.78 | L22: ='13. RTSR-Historic Wholesale'!L21 -> 514095 | M22: =M21 -> 2.02 | N22: 1038471.9 | P22: 1555942.68
B23: April | D23: ='13. RTSR-Historic Wholesale'!D22 -> 537184 | E23: 3.66 | F23: 1966093.44 | H23: ='13. RTSR-Historic Wholesale'!H22 -> 569430 | I23: 0.87 | J23: 495404.1 | L23: ='13. RTSR-Historic Wholesale'!L22 -> 496177 | M23: 2.02 | N23: 1002277.54 | P23: 1497681.64
B24: May | D24: ='13. RTSR-Historic Wholesale'!D23 -> 637994 | E24: 3.66 | F24: 2335058.04 | H24: ='13. RTSR-Historic Wholesale'!H23 -> 692774 | I24: 0.87 | J24: 602713.38 | L24: ='13. RTSR-Historic Wholesale'!L23 -> 589765 | M24: 2.02 | N24: 1191325.3 | P24: 1794038.68
B25: June | D25: ='13. RTSR-Historic Wholesale'!D24 -> 772216 | E25: 3.66 | F25: 2826310.56 | H25: ='13. RTSR-Historic Wholesale'!H24 -> 796894 | I25: 0.87 | J25: 693297.78 | L25: ='13. RTSR-Historic Wholesale'!L24 -> 682616 | M25: 2.02 | N25: 1378884.32 | P25: 2072182.1
B26: July | D26: ='13. RTSR-Historic Wholesale'!D25 -> 805454 | E26: 3.66 | F26: 2947961.64 | H26: ='13. RTSR-Historic Wholesale'!H25 -> 824143 | I26: 0.87 | J26: 717004.41 | L26: ='13. RTSR-Historic Wholesale'!L25 -> 705178 | M26: 2.02 | N26: 1424459.56 | P26: 2141463.97
B27: August | D27: ='13. RTSR-Historic Wholesale'!D26 -> 816096 | E27: 3.66 | F27: 2986911.36 | H27: ='13. RTSR-Historic Wholesale'!H26 -> 845022 | I27: 0.87 | J27: 735169.14 | L27: ='13. RTSR-Historic Wholesale'!L26 -> 724253 | M27: 2.02 | N27: 1462991.06 | P27: 2198160.2
B28: September | D28: ='13. RTSR-Historic Wholesale'!D27 -> 818873 | E28: 3.66 | F28: 2997075.18 | H28: ='13. RTSR-Historic Wholesale'!H27 -> 831177 | I28: 0.87 | J28: 723123.99 | L28: ='13. RTSR-Historic Wholesale'!L27 -> 707586 | M28: 2.02 | N28: 1429323.72 | P28: 2152447.71
B29: October | D29: ='13. RTSR-Historic Wholesale'!D28 -> 543313 | E29: 3.66 | F29: 1988525.58 | H29: ='13. RTSR-Historic Wholesale'!H28 -> 568053 | I29: 0.87 | J29: 494206.11 | L29: ='13. RTSR-Historic Wholesale'!L28 -> 493624 | M29: 2.02 | N29: 997120.48 | P29: 1491326.59
B30: November | D30: ='13. RTSR-Historic Wholesale'!D29 -> 552278 | E30: 3.66 | F30: 2021337.48 | H30: ='13. RTSR-Historic Wholesale'!H29 -> 571572 | I30: 0.87 | J30: 497267.64 | L30: ='13. RTSR-Historic Wholesale'!L29 -> 491207 | M30: 2.02 | N30: 992238.14 | P30: 1489505.78
B31: December | D31: ='13. RTSR-Historic Wholesale'!D30 -> 577823 | E31: 3.66 | F31: 2114832.18 | H31: ='13. RTSR-Historic Wholesale'!H30 -> 605107 | I31: 0.87 | J31: 526443.09 | L31: ='13. RTSR-Historic Wholesale'!L30 -> 520327 | M31: 2.02 | N31: 1051060.54 | P31: 1577503.63
B33: Total | D33: =SUM(D20:D31) -> 7784294 | E33: =IF(D33<>0,F33/D33,0) -> 3.66 | F33: =SUM(F20:F31) -> 28490516.04 | H33: =SUM(H20:H31) -> 8095354 | I33: =IF(H33<>0,J33/H33,0) -> 0.87 | J33: =SUM(J20:J31) -> 7042957.98 | L33: =SUM(L20:L31) -> 6952706 | M33: =IF(L33<>0,N33/L33,0) -> 2.02 | N33: =SUM(N20:N31) -> 14044466.12 | P33: =SUM(P20:P31) -> 21087424.1
B35: Hydro One | D35: Network | H35: Line Connection | L35: Transformation Connection | P35: Total Line
B37: Month | D37: Units Billed | E37: Rate | F37: Amount | H37: Units Billed | I37: Rate | J37: Amount | L37: Units Billed | M37: Rate | N37: Amount | P37: Amount
B39: January | D39: ='13. RTSR-Historic Wholesale'!D38 -> 12599.92 | E39: ='12. RTSR-UTRs & Sub-Tx'!H29 -> 3.1942 | F39: =D39*E39 -> 40246.66446 | H39: ='13. RTSR-Historic Wholesale'!H38 -> 12599.92 | I39: ='12. RTSR-UTRs & Sub-Tx'!H31 -> 0.771 | J39: =H39*I39 -> 9714.53832 | L39: ='13. RTSR-Historic Wholesale'!L38 -> 12599.92 | M39: ='12. RTSR-UTRs & Sub-Tx'!H33 -> 1.7493 | N39: =L39*M39 -> 22041.04006 | P39: =J39+N39 -> 31755.57838
B40: February | D40: ='13. RTSR-Historic Wholesale'!D39 -> 11944.47 | E40: =E39 -> 3.1942 | F40: =D40*E40 -> 38153.02607 | H40: ='13. RTSR-Historic Wholesale'!H39 -> 12133.63 | I40: =I39 -> 0.771 | J40: =H40*I40 -> 9355.02873 | L40: ='13. RTSR-Historic Wholesale'!L39 -> 12133.63 | M40: =M39 -> 1.7493 | N40: =L40*M40 -> 21225.35896 | P40: 30580.38769
B41: March | D41: ='13. RTSR-Historic Wholesale'!D40 -> 11361.07 | E41: =E40 -> 3.1942 | F41: 36289.52979 | H41: ='13. RTSR-Historic Wholesale'!H40 -> 11822.82 | I41: =I40 -> 0.771 | J41: 9115.39422 | L41: ='13. RTSR-Historic Wholesale'!L40 -> 11822.82 | M41: =M40 -> 1.7493 | N41: 20681.65903 | P41: 29797.05325
B42: April | D42: ='13. RTSR-Historic Wholesale'!D41 -> 11597.59 | E42: 3.1942 | F42: 37045.02198 | H42: ='13. RTSR-Historic Wholesale'!H41 -> 11844.52 | I42: 0.771 | J42: 9132.12492 | L42: ='13. RTSR-Historic Wholesale'!L41 -> 11844.52 | M42: =M41 -> 1.7493 | N42: 20719.61884 | P42: 29851.74376
B43: May | D43: ='13. RTSR-Historic Wholesale'!D42 -> 12061.79 | E43: 3.1942 | F43: 38527.76962 | H43: ='13. RTSR-Historic Wholesale'!H42 -> 12061.79 | I43: 0.771 | J43: 9299.64009 | L43: ='13. RTSR-Historic Wholesale'!L42 -> 12061.79 | M43: 1.7493 | N43: 21099.68925 | P43: 30399.32934
B44: June | D44: ='13. RTSR-Historic Wholesale'!D43 -> 25781.72 | E44: 3.1942 | F44: 82351.97002 | H44: ='13. RTSR-Historic Wholesale'!H43 -> 25781.72 | I44: 0.771 | J44: 19877.70612 | L44: ='13. RTSR-Historic Wholesale'!L43 -> 25781.72 | M44: 1.7493 | N44: 45099.9628 | P44: 64977.66892
B45: July | D45: ='13. RTSR-Historic Wholesale'!D44 -> 11498.61 | E45: 3.1942 | F45: 36728.86006 | H45: ='13. RTSR-Historic Wholesale'!H44 -> 11498.61 | I45: 0.771 | J45: 8865.42831 | L45: ='13. RTSR-Historic Wholesale'!L44 -> 11498.61 | M45: 1.7493 | N45: 20114.51847 | P45: 28979.94678
B46: August | D46: ='13. RTSR-Historic Wholesale'!D45 -> 11745.82 | E46: 3.1942 | F46: 37518.49824 | H46: ='13. RTSR-Historic Wholesale'!H45 -> 11745.82 | I46: 0.771 | J46: 9056.02722 | L46: ='13. RTSR-Historic Wholesale'!L45 -> 11745.82 | M46: 1.7493 | N46: 20546.96293 | P46: 29602.99015
B47: September | D47: ='13. RTSR-Historic Wholesale'!D46 -> 11650.01 | E47: 3.1942 | F47: 37212.46194 | H47: ='13. RTSR-Historic Wholesale'!H46 -> 11650.01 | I47: 0.771 | J47: 8982.15771 | L47: ='13. RTSR-Historic Wholesale'!L46 -> 11650.01 | M47: 1.7493 | N47: 20379.36249 | P47: 29361.5202
B48: October | D48: ='13. RTSR-Historic Wholesale'!D47 -> 20781.48 | E48: 3.1942 | F48: 66380.20342 | H48: ='13. RTSR-Historic Wholesale'!H47 -> 20781.48 | I48: 0.771 | J48: 16022.52108 | L48: ='13. RTSR-Historic Wholesale'!L47 -> 20781.48 | M48: 1.7493 | N48: 36353.04296 | P48: 52375.56404
B49: November | D49: ='13. RTSR-Historic Wholesale'!D48 -> 8700.51 | E49: 3.1942 | F49: 27791.16904 | H49: ='13. RTSR-Historic Wholesale'!H48 -> 8700.51 | I49: 0.771 | J49: 6708.09321 | L49: ='13. RTSR-Historic Wholesale'!L48 -> 8700.51 | M49: 1.7493 | N49: 15219.80214 | P49: 21927.89535
B50: December | D50: ='13. RTSR-Historic Wholesale'!D49 -> 11883.08 | E50: 3.1942 | F50: 37956.93414 | H50: ='13. RTSR-Historic Wholesale'!H49 -> 11883.08 | I50: 0.771 | J50: 9161.85468 | L50: ='13. RTSR-Historic Wholesale'!L49 -> 11883.08 | M50: 1.7493 | N50: 20787.07184 | P50: 29948.92652
B52: Total | D52: =SUM(D39:D50) -> 161606.07 | E52: =IF(D52<>0,F52/D52,0) -> 3.1942 | F52: =SUM(F39:F50) -> 516202.1088 | H52: =SUM(H39:H50) -> 162503.91 | I52: =IF(H52<>0,J52/H52,0) -> 0.771 | J52: =SUM(J39:J50) -> 125290.5146 | L52: =SUM(L39:L50) -> 162503.91 | M52: =IF(L52<>0,N52/L52,0) -> 1.7493 | N52: =SUM(N39:N50) -> 284268.0898 | P52: =SUM(P39:P50) -> 409558.6044
B54: ='[1]12. RTSR - Historical Wholesale'!B53 -> Add Extra Host Here (I) | D54: Network | H54: Line Connection | L54: Transformation Connection | P54: Total Line
B56: Month | D56: Units Billed | E56: Rate | F56: Amount | H56: Units Billed | I56: Rate | J56: Amount | L56: Units Billed | M56: Rate | N56: Amount | P56: Amount
B58: January | D58: ='13. RTSR-Historic Wholesale'!D57 -> 0 | E58: ='12. RTSR-UTRs & Sub-Tx'!H44 -> 0 | F58: =D58*E58 -> 0 | H58: ='13. RTSR-Historic Wholesale'!H57 -> 0 | I58: ='12. RTSR-UTRs & Sub-Tx'!H46 -> 0 | J58: =H58*I58 -> 0 | L58: ='13. RTSR-Historic Wholesale'!L57 -> 0 | M58: ='12. RTSR-UTRs & Sub-Tx'!H48 -> 0 | N58: =L58*M58 -> 0 | P58: =J58+N58 -> 0
B59: February | D59: ='13. RTSR-Historic Wholesale'!D58 -> 0 | E59: =E58 -> 0 | F59: =D59*E59 -> 0 | H59: ='13. RTSR-Historic Wholesale'!H58 -> 0 | I59: =I58 -> 0 | J59: =H59*I59 -> 0 | L59: ='13. RTSR-Historic Wholesale'!L58 -> 0 | M59: =M58 -> 0 | N59: =L59*M59 -> 0 | P59: 0
B60: March | D60: ='13. RTSR-Historic Wholesale'!D59 -> 0 | E60: =E59 -> 0 | F60: 0 | H60: ='13. RTSR-Historic Wholesale'!H59 -> 0 | I60: =I59 -> 0 | J60: 0 | L60: ='13. RTSR-Historic Wholesale'!L59 -> 0 | M60: =M59 -> 0 | N60: 0 | P60: 0
B61: April | D61: ='13. RTSR-Historic Wholesale'!D60 -> 0 | E61: 0 | F61: 0 | H61: ='13. RTSR-Historic Wholesale'!H60 -> 0 | I61: 0 | J61: 0 | L61: ='13. RTSR-Historic Wholesale'!L60 -> 0 | M61: 0 | N61: 0 | P61: 0
B62: May | D62: ='13. RTSR-Historic Wholesale'!D61 -> 0 | E62: 0 | F62: 0 | H62: ='13. RTSR-Historic Wholesale'!H61 -> 0 | I62: 0 | J62: 0 | L62: ='13. RTSR-Historic Wholesale'!L61 -> 0 | M62: 0 | N62: 0 | P62: 0
B63: June | D63: ='13. RTSR-Historic Wholesale'!D62 -> 0 | E63: 0 | F63: 0 | H63: ='13. RTSR-Historic Wholesale'!H62 -> 0 | I63: 0 | J63: 0 | L63: ='13. RTSR-Historic Wholesale'!L62 -> 0 | M63: 0 | N63: 0 | P63: 0
B64: July | D64: ='13. RTSR-Historic Wholesale'!D63 -> 0 | E64: 0 | F64: 0 | H64: ='13. RTSR-Historic Wholesale'!H63 -> 0 | I64: 0 | J64: 0 | L64: ='13. RTSR-Historic Wholesale'!L63 -> 0 | M64: 0 | N64: 0 | P64: 0
B65: August | D65: ='13. RTSR-Historic Wholesale'!D64 -> 0 | E65: 0 | F65: 0 | H65: ='13. RTSR-Historic Wholesale'!H64 -> 0 | I65: 0 | J65: 0 | L65: ='13. RTSR-Historic Wholesale'!L64 -> 0 | M65: 0 | N65: 0 | P65: 0
B66: September | D66: ='13. RTSR-Historic Wholesale'!D65 -> 0 | E66: 0 | F66: 0 | H66: ='13. RTSR-Historic Wholesale'!H65 -> 0 | I66: 0 | J66: 0 | L66: ='13. RTSR-Historic Wholesale'!L65 -> 0 | M66: 0 | N66: 0 | P66: 0
B67: October | D67: ='13. RTSR-Historic Wholesale'!D66 -> 0 | E67: 0 | F67: 0 | H67: ='13. RTSR-Historic Wholesale'!H66 -> 0 | I67: 0 | J67: 0 | L67: ='13. RTSR-Historic Wholesale'!L66 -> 0 | M67: 0 | N67: 0 | P67: 0
B68: November | D68: ='13. RTSR-Historic Wholesale'!D67 -> 0 | E68: 0 | F68: 0 | H68: ='13. RTSR-Historic Wholesale'!H67 -> 0 | I68: 0 | J68: 0 | L68: ='13. RTSR-Historic Wholesale'!L67 -> 0 | M68: 0 | N68: 0 | P68: 0
B69: December | D69: ='13. RTSR-Historic Wholesale'!D68 -> 0 | E69: 0 | F69: 0 | H69: ='13. RTSR-Historic Wholesale'!H68 -> 0 | I69: 0 | J69: 0 | L69: ='13. RTSR-Historic Wholesale'!L68 -> 0 | M69: 0 | N69: 0 | P69: 0
B71: Total | D71: =SUM(D58:D69) -> 0 | E71: =IF(D71<>0,F71/D71,0) -> 0 | F71: =SUM(F58:F69) -> 0 | H71: =SUM(H58:H69) -> 0 | I71: =IF(H71<>0,J71/H71,0) -> 0 | J71: =SUM(J58:J69) -> 0 | L71: =SUM(L58:L69) -> 0 | M71: =IF(L71<>0,N71/L71,0) -> 0 | N71: =SUM(N58:N69) -> 0 | P71: =SUM(P58:P69) -> 0
B73: ='[1]12. RTSR - Historical Wholesale'!B72 -> Add Extra Host Here (II) | D73: Network | H73: Line Connection | L73: Transformation Connection | P73: Total Line
B75: Month | D75: Units Billed | E75: Rate | F75: Amount | H75: Units Billed | I75: Rate | J75: Amount | L75: Units Billed | M75: Rate | N75: Amount | P75: Amount
B77: January | D77: ='13. RTSR-Historic Wholesale'!D76 -> 0 | E77: ='12. RTSR-UTRs & Sub-Tx'!H59 -> 0 | F77: =D77*E77 -> 0 | H77: ='13. RTSR-Historic Wholesale'!H76 -> 0 | I77: ='12. RTSR-UTRs & Sub-Tx'!H61 -> 0 | J77: =H77*I77 -> 0 | L77: ='13. RTSR-Historic Wholesale'!L76 -> 0 | M77: ='12. RTSR-UTRs & Sub-Tx'!H63 -> 0 | N77: =L77*M77 -> 0 | P77: =J77+N77 -> 0
B78: February | D78: ='13. RTSR-Historic Wholesale'!D77 -> 0 | E78: =E77 -> 0 | F78: =D78*E78 -> 0 | H78: ='13. RTSR-Historic Wholesale'!H77 -> 0 | I78: =I77 -> 0 | J78: =H78*I78 -> 0 | L78: ='13. RTSR-Historic Wholesale'!L77 -> 0 | M78: =M77 -> 0 | N78: =L78*M78 -> 0 | P78: 0
B79: March | D79: ='13. RTSR-Historic Wholesale'!D78 -> 0 | E79: =E78 -> 0 | F79: 0 | H79: ='13. RTSR-Historic Wholesale'!H78 -> 0 | I79: =I78 -> 0 | J79: 0 | L79: ='13. RTSR-Historic Wholesale'!L78 -> 0 | M79: =M78 -> 0 | N79: 0 | P79: 0
B80: April | D80: ='13. RTSR-Historic Wholesale'!D79 -> 0 | E80: 0 | F80: 0 | H80: ='13. RTSR-Historic Wholesale'!H79 -> 0 | I80: 0 | J80: 0 | L80: ='13. RTSR-Historic Wholesale'!L79 -> 0 | M80: =M79 -> 0 | N80: 0 | P80: 0
B81: May | D81: ='13. RTSR-Historic Wholesale'!D80 -> 0 | E81: 0 | F81: 0 | H81: ='13. RTSR-Historic Wholesale'!H80 -> 0 | I81: 0 | J81: 0 | L81: ='13. RTSR-Historic Wholesale'!L80 -> 0 | M81: 0 | N81: 0 | P81: 0
B82: June | D82: ='13. RTSR-Historic Wholesale'!D81 -> 0 | E82: 0 | F82: 0 | H82: ='13. RTSR-Historic Wholesale'!H81 -> 0 | I82: 0 | J82: 0 | L82: ='13. RTSR-Historic Wholesale'!L81 -> 0 | M82: 0 | N82: 0 | P82: 0
B83: July | D83: ='13. RTSR-Historic Wholesale'!D82 -> 0 | E83: 0 | F83: 0 | H83: ='13. RTSR-Historic Wholesale'!H82 -> 0 | I83: 0 | J83: 0 | L83: ='13. RTSR-Historic Wholesale'!L82 -> 0 | M83: 0 | N83: 0 | P83: 0
B84: August | D84: ='13. RTSR-Historic Wholesale'!D83 -> 0 | E84: 0 | F84: 0 | H84: ='13. RTSR-Historic Wholesale'!H83 -> 0 | I84: 0 | J84: 0 | L84: ='13. RTSR-Historic Wholesale'!L83 -> 0 | M84: 0 | N84: 0 | P84: 0
B85: September | D85: ='13. RTSR-Historic Wholesale'!D84 -> 0 | E85: 0 | F85: 0 | H85: ='13. RTSR-Historic Wholesale'!H84 -> 0 | I85: 0 | J85: 0 | L85: ='13. RTSR-Historic Wholesale'!L84 -> 0 | M85: 0 | N85: 0 | P85: 0
B86: October | D86: ='13. RTSR-Historic Wholesale'!D85 -> 0 | E86: 0 | F86: 0 | H86: ='13. RTSR-Historic Wholesale'!H85 -> 0 | I86: 0 | J86: 0 | L86: ='13. RTSR-Historic Wholesale'!L85 -> 0 | M86: 0 | N86: 0 | P86: 0
B87: November | D87: ='13. RTSR-Historic Wholesale'!D86 -> 0 | E87: 0 | F87: 0 | H87: ='13. RTSR-Historic Wholesale'!H86 -> 0 | I87: 0 | J87: 0 | L87: ='13. RTSR-Historic Wholesale'!L86 -> 0 | M87: 0 | N87: 0 | P87: 0
B88: December | D88: ='13. RTSR-Historic Wholesale'!D87 -> 0 | E88: 0 | F88: 0 | H88: ='13. RTSR-Historic Wholesale'!H87 -> 0 | I88: 0 | J88: 0 | L88: ='13. RTSR-Historic Wholesale'!L87 -> 0 | M88: 0 | N88: 0 | P88: 0
B90: Total | D90: =SUM(D77:D88) -> 0 | E90: =IF(D90<>0,F90/D90,0) -> 0 | F90: =SUM(F77:F88) -> 0 | H90: =SUM(H77:H88) -> 0 | I90: =IF(H90<>0,J90/H90,0) -> 0 | J90: =SUM(J77:J88) -> 0 | L90: =SUM(L77:L88) -> 0 | M90: =IF(L90<>0,N90/L90,0) -> 0 | N90: =SUM(N77:N88) -> 0 | P90: =SUM(P77:P88) -> 0
B92: Total | D92: Network | H92: Line Connection | L92: Transformation Connection | P92: Total Line
B94: Month | D94: Units Billed | E94: Rate | F94: Amount | H94: Units Billed | I94: Rate | J94: Amount | L94: Units Billed | M94: Rate | N94: Amount | P94: Amount
B96: January | D96: =D20+D39+D58+D77 -> 586566.92 | E96: =IF(D96<>0,F96/D96,0) -> 3.649994249 | F96: =F20+F39+F58+F77 -> 2140965.884 | H96: =H20+H39+H58+H77 -> 610823.92 | I96: =IF(H96<>0,J96/H96,0) -> 0.8679578533 | J96: =J20+J39+J58+J77 -> 530169.4183 | L96: =L20+L39+L58+L77 -> 527148.92 | M96: =IF(L96<>0,N96/L96,0) -> 2.013529725 | N96: =N20+N39+N58+N77 -> 1061430.02 | P96: =J96+N96 -> 1591599.438
B97: February | D97: =D21+D40+D59+D78 -> 586004.47 | E97: 3.650505646 | F97: =F21+F40+F59+F78 -> 2139212.626 | H97: =H21+H40+H59+H78 -> 610297.63 | I97: 0.8680317319 | J97: =J21+J40+J59+J78 -> 529757.7087 | L97: =L21+L40+L59+L78 -> 525462.63 | M97: 2.013749177 | N97: =N21+N40+N59+N78 -> 1058149.939 | P97: 1587907.648
B98: March | D98: 586397.07 | E98: 3.650975421 | F98: 2140921.29 | H98: 606616.82 | I98: 0.8680705131 | J98: 526586.1742 | L98: 525917.82 | M98: 2.013914568 | N98: 1059153.559 | P98: 1585739.733
B99: April | D99: 548781.59 | E99: 3.650156088 | F99: 2003138.462 | H99: 581274.52 | I99: 0.8679826959 | J99: 504536.2249 | L99: 508021.52 | M99: 2.01368863 | N99: 1022997.159 | P99: 1527533.384
B100: May | D100: 650055.79 | E100: 3.651357078 | F100: 2373585.81 | H100: 704835.79 | I100: 0.8683058221 | J100: 612013.0201 | L100: 601826.79 | M100: 2.014574641 | N100: 1212424.989 | P100: 1824438.009
B101: June | D101: 797997.72 | E101: 3.644950928 | F101: 2908662.53 | H101: 822675.72 | I101: 0.8668974528 | J101: 713175.4861 | L101: 708397.72 | M101: 2.010148032 | N101: 1423984.283 | P101: 2137159.769
B102: July | D102: 816952.61 | E102: 3.653443864 | F102: 2984690.5 | H102: 835641.61 | I102: 0.8686377385 | J102: 725869.8383 | L102: 716676.61 | M102: 2.015656795 | N102: 1444574.078 | P102: 2170443.917
B103: August | D103: 827841.82 | E103: 3.653391004 | F103: 3024429.858 | H103: 856767.82 | I103: 0.8686427639 | J103: 744225.1672 | L103: 735998.82 | M103: 2.015679893 | N103: 1483538.023 | P103: 2227763.19
B104: September | D104: 830523.01 | E104: 3.653466075 | F104: 3034287.642 | H104: 842827.01 | I104: 0.8686315685 | J104: 732106.1477 | L104: 719236.01 | M104: 2.015615267 | N104: 1449703.082 | P104: 2181809.23
B105: October | D105: 564094.48 | E105: 3.64283973 | F105: 2054905.783 | H105: 588834.48 | I105: 0.8665060359 | J105: 510228.6311 | L105: 514405.48 | M105: 2.009063984 | N105: 1033473.523 | P105: 1543702.154
B106: November | D106: 560978.51 | E106: 3.652775663 | F106: 2049128.649 | H106: 580272.51 | I106: 0.8685156104 | J106: 503975.7332 | L106: 499907.51 | M106: 2.015288672 | N106: 1007457.942 | P106: 1511433.675
B107: December | D107: 589706.08 | E107: 3.650613733 | F107: 2152789.114 | H107: 616990.08 | I107: 0.8680932839 | J107: 535604.9447 | L107: 532210.08 | M107: 2.013955865 | N107: 1071847.612 | P107: 1607452.557
B109: Total | D109: =SUM(D96:D107) -> 7945900.07 | E109: =IF(D109<>0,F109/D109,0) -> 3.650526422 | F109: =SUM(F96:F107) -> 29006718.15 | H109: =SUM(H96:H107) -> 8257857.91 | I109: =IF(H109<>0,J109/H109,0) -> 0.8680518087 | J109: =SUM(J96:J107) -> 7168248.495 | L109: =SUM(L96:L107) -> 7115209.91 | M109: =IF(L109<>0,N109/L109,0) -> 2.013817497 | N109: =SUM(N96:N107) -> 14328734.21 | P109: =SUM(P96:P107) -> 21496982.7
N111: Low Voltage Switchgear Credit (if applicable) | P111: ='12. RTSR-UTRs & Sub-Tx'!H68 -> 0
N113: Total including deduction for Low Voltage Switchgear Credit | P113: =P109+P111 -> 21496982.7

Sheet 15. RTSR-Forecast Wholesale
A1: Back to Index
B2: INCENTIVE REGULATION MODEL FOR 2018 FILERS
B13: The purpose of this sheet is to calculate the expected billing when forecasted 2018 Uniform Transmission Rates are applied against historical 2016 transmission units.
B16: IESO | D16: Network | H16: Line Connection | L16: Transformation Connection | P16: Total Line
B18: Month | D18: Units Billed | E18: Rate | F18: Amount | H18: Units Billed | I18: Rate | J18: Amount | L18: Units Billed | M18: Rate | N18: Amount | P18: Amount
B20: January | D20: ='13. RTSR-Historic Wholesale'!D19 -> 573967 | E20: ='12. RTSR-UTRs & Sub-Tx'!J16 -> 3.61 | F20: =D20*E20 -> 2072020.87 | H20: ='13. RTSR-Historic Wholesale'!H19 -> 598224 | I20: ='12. RTSR-UTRs & Sub-Tx'!J18 -> 0.95 | J20: =H20*I20 -> 568312.8 | L20: ='13. RTSR-Historic Wholesale'!L19 -> 514549 | M20: ='12. RTSR-UTRs & Sub-Tx'!J20 -> 2.34 | N20: =L20*M20 -> 1204044.66 | P20: =J20+N20 -> 1772357.46
B21: February | D21: ='13. RTSR-Historic Wholesale'!D20 -> 574060 | E21: =E20 -> 3.61 | F21: 2072356.6 | H21: ='13. RTSR-Historic Wholesale'!H20 -> 598164 | I21: =I20 -> 0.95 | J21: 568255.8 | L21: ='13. RTSR-Historic Wholesale'!L20 -> 513329 | M21: =M20 -> 2.34 | N21: 1201189.86 | P21: 1769445.66
B22: March | D22: ='13. RTSR-Historic Wholesale'!D21 -> 575036 | E22: 3.61 | F22: 2075879.96 | H22: ='13. RTSR-Historic Wholesale'!H21 -> 594794 | I22: 0.95 | J22: 565054.3 | L22: ='13. RTSR-Historic Wholesale'!L21 -> 514095 | M22: 2.34 | N22: 1202982.3 | P22: 1768036.6
B23: April | D23: ='13. RTSR-Historic Wholesale'!D22 -> 537184 | E23: 3.61 | F23: 1939234.24 | H23: ='13. RTSR-Historic Wholesale'!H22 -> 569430 | I23: 0.95 | J23: 540958.5 | L23: ='13. RTSR-Historic Wholesale'!L22 -> 496177 | M23: 2.34 | N23: 1161054.18 | P23: 1702012.68
B24: May | D24: ='13. RTSR-Historic Wholesale'!D23 -> 637994 | E24: 3.61 | F24: 2303158.34 | H24: ='13. RTSR-Historic Wholesale'!H23 -> 692774 | I24: 0.95 | J24: 658135.3 | L24: ='13. RTSR-Historic Wholesale'!L23 -> 589765 | M24: 2.34 | N24: 1380050.1 | P24: 2038185.4
B25: June | D25: ='13. RTSR-Historic Wholesale'!D24 -> 772216 | E25: 3.61 | F25: 2787699.76 | H25: ='13. RTSR-Historic Wholesale'!H24 -> 796894 | I25: 0.95 | J25: 757049.3 | L25: ='13. RTSR-Historic Wholesale'!L24 -> 682616 | M25: 2.34 | N25: 1597321.44 | P25: 2354370.74
B26: July | D26: ='13. RTSR-Historic Wholesale'!D25 -> 805454 | E26: 3.61 | F26: 2907688.94 | H26: ='13. RTSR-Historic Wholesale'!H25 -> 824143 | I26: 0.95 | J26: 782935.85 | L26: ='13. RTSR-Historic Wholesale'!L25 -> 705178 | M26: 2.34 | N26: 1650116.52 | P26: 2433052.37
B27: August | D27: ='13. RTSR-Historic Wholesale'!D26 -> 816096 | E27: 3.61 | F27: 2946106.56 | H27: ='13. RTSR-Historic Wholesale'!H26 -> 845022 | I27: 0.95 | J27: 802770.9 | L27: ='13. RTSR-Historic Wholesale'!L26 -> 724253 | M27: 2.34 | N27: 1694752.02 | P27: 2497522.92
B28: September | D28: ='13. RTSR-Historic Wholesale'!D27 -> 818873 | E28: 3.61 | F28: 2956131.53 | H28: ='13. RTSR-Historic Wholesale'!H27 -> 831177 | I28: 0.95 | J28: 789618.15 | L28: ='13. RTSR-Historic Wholesale'!L27 -> 707586 | M28: 2.34 | N28: 1655751.24 | P28: 2445369.39
B29: October | D29: ='13. RTSR-Historic Wholesale'!D28 -> 543313 | E29: 3.61 | F29: 1961359.93 | H29: ='13. RTSR-Historic Wholesale'!H28 -> 568053 | I29: 0.95 | J29: 539650.35 | L29: ='13. RTSR-Historic Wholesale'!L28 -> 493624 | M29: 2.34 | N29: 1155080.16 | P29: 1694730.51
B30: November | D30: ='13. RTSR-Historic Wholesale'!D29 -> 552278 | E30: 3.61 | F30: 1993723.58 | H30: ='13. RTSR-Historic Wholesale'!H29 -> 571572 | I30: 0.95 | J30: 542993.4 | L30: ='13. RTSR-Historic Wholesale'!L29 -> 491207 | M30: 2.34 | N30: 1149424.38 | P30: 1692417.78
B31: December | D31: ='13. RTSR-Historic Wholesale'!D30 -> 577823 | E31: 3.61 | F31: 2085941.03 | H31: ='13. RTSR-Historic Wholesale'!H30 -> 605107 | I31: 0.95 | J31: 574851.65 | L31: ='13. RTSR-Historic Wholesale'!L30 -> 520327 | M31: 2.34 | N31: 1217565.18 | P31: 1792416.83
B33: Total | D33: =SUM(D20:D31) -> 7784294 | E33: =IF(D33<>0,F33/D33,0) -> 3.61 | F33: =SUM(F20:F31) -> 28101301.34 | H33: =SUM(H20:H31) -> 8095354 | I33: =IF(H33<>0,J33/H33,0) -> 0.95 | J33: =SUM(J20:J31) -> 7690586.3 | L33: =SUM(L20:L31) -> 6952706 | M33: =IF(L33<>0,N33/L33,0) -> 2.34 | N33: =SUM(N20:N31) -> 16269332.04 | P33: =SUM(P20:P31) -> 23959918.34
B35: Hydro One | D35: Network | H35: Line Connection | L35: Transformation Connection | P35: Total Line
B37: Month | D37: Units Billed | E37: Rate | F37: Amount | H37: Units Billed | I37: Rate | J37: Amount | L37: Units Billed | M37: Rate | N37: Amount | P37: Amount
B39: January | D39: ='13. RTSR-Historic Wholesale'!D38 -> 12599.92 | E39: ='12. RTSR-UTRs & Sub-Tx'!J29 -> 3.1942 | F39: =D39*E39 -> 40246.66446 | H39: ='13. RTSR-Historic Wholesale'!H38 -> 12599.92 | I39: ='12. RTSR-UTRs & Sub-Tx'!J31 -> 0.771 | J39: =H39*I39 -> 9714.53832 | L39: ='13. RTSR-Historic Wholesale'!L38 -> 12599.92 | M39: ='12. RTSR-UTRs & Sub-Tx'!J33 -> 1.7493 | N39: =L39*M39 -> 22041.04006 | P39: =J39+N39 -> 31755.57838
B40: February | D40: ='13. RTSR-Historic Wholesale'!D39 -> 11944.47 | E40: =E39 -> 3.1942 | F40: 38153.02607 | H40: ='13. RTSR-Historic Wholesale'!H39 -> 12133.63 | I40: =I39 -> 0.771 | J40: 9355.02873 | L40: ='13. RTSR-Historic Wholesale'!L39 -> 12133.63 | M40: =M39 -> 1.7493 | N40: 21225.35896 | P40: 30580.38769
B41: March | D41: ='13. RTSR-Historic Wholesale'!D40 -> 11361.07 | E41: 3.1942 | F41: 36289.52979 | H41: ='13. RTSR-Historic Wholesale'!H40 -> 11822.82 | I41: 0.771 | J41: 9115.39422 | L41: ='13. RTSR-Historic Wholesale'!L40 -> 11822.82 | M41: 1.7493 | N41: 20681.65903 | P41: 29797.05325
B42: April | D42: ='13. RTSR-Historic Wholesale'!D41 -> 11597.59 | E42: 3.1942 | F42: 37045.02198 | H42: ='13. RTSR-Historic Wholesale'!H41 -> 11844.52 | I42: 0.771 | J42: 9132.12492 | L42: ='13. RTSR-Historic Wholesale'!L41 -> 11844.52 | M42: 1.7493 | N42: 20719.61884 | P42: 29851.74376
B43: May | D43: ='13. RTSR-Historic Wholesale'!D42 -> 12061.79 | E43: 3.1942 | F43: 38527.76962 | H43: ='13. RTSR-Historic Wholesale'!H42 -> 12061.79 | I43: 0.771 | J43: 9299.64009 | L43: ='13. RTSR-Historic Wholesale'!L42 -> 12061.79 | M43: 1.7493 | N43: 21099.68925 | P43: 30399.32934
B44: June | D44: ='13. RTSR-Historic Wholesale'!D43 -> 25781.72 | E44: 3.1942 | F44: 82351.97002 | H44: ='13. RTSR-Historic Wholesale'!H43 -> 25781.72 | I44: 0.771 | J44: 19877.70612 | L44: ='13. RTSR-Historic Wholesale'!L43 -> 25781.72 | M44: 1.7493 | N44: 45099.9628 | P44: 64977.66892
B45: July | D45: ='13. RTSR-Historic Wholesale'!D44 -> 11498.61 | E45: 3.1942 | F45: 36728.86006 | H45: ='13. RTSR-Historic Wholesale'!H44 -> 11498.61 | I45: 0.771 | J45: 8865.42831 | L45: ='13. RTSR-Historic Wholesale'!L44 -> 11498.61 | M45: 1.7493 | N45: 20114.51847 | P45: 28979.94678
B46: August | D46: ='13. RTSR-Historic Wholesale'!D45 -> 11745.82 | E46: 3.1942 | F46: 37518.49824 | H46: ='13. RTSR-Historic Wholesale'!H45 -> 11745.82 | I46: 0.771 | J46: 9056.02722 | L46: ='13. RTSR-Historic Wholesale'!L45 -> 11745.82 | M46: 1.7493 | N46: 20546.96293 | P46: 29602.99015
B47: September | D47: ='13. RTSR-Historic Wholesale'!D46 -> 11650.01 | E47: 3.1942 | F47: 37212.46194 | H47: ='13. RTSR-Historic Wholesale'!H46 -> 11650.01 | I47: 0.771 | J47: 8982.15771 | L47: ='13. RTSR-Historic Wholesale'!L46 -> 11650.01 | M47: 1.7493 | N47: 20379.36249 | P47: 29361.5202
B48: October | D48: ='13. RTSR-Historic Wholesale'!D47 -> 20781.48 | E48: 3.1942 | F48: 66380.20342 | H48: ='13. RTSR-Historic Wholesale'!H47 -> 20781.48 | I48: 0.771 | J48: 16022.52108 | L48: ='13. RTSR-Historic Wholesale'!L47 -> 20781.48 | M48: 1.7493 | N48: 36353.04296 | P48: 52375.56404
B49: November | D49: ='13. RTSR-Historic Wholesale'!D48 -> 8700.51 | E49: 3.1942 | F49: 27791.16904 | H49: ='13. RTSR-Historic Wholesale'!H48 -> 8700.51 | I49: 0.771 | J49: 6708.09321 | L49: ='13. RTSR-Historic Wholesale'!L48 -> 8700.51 | M49: 1.7493 | N49: 15219.80214 | P49: 21927.89535
B50: December | D50: ='13. RTSR-Historic Wholesale'!D49 -> 11883.08 | E50: 3.1942 | F50: 37956.93414 | H50: ='13. RTSR-Historic Wholesale'!H49 -> 11883.08 | I50: 0.771 | J50: 9161.85468 | L50: ='13. RTSR-Historic Wholesale'!L49 -> 11883.08 | M50: 1.7493 | N50: 20787.07184 | P50: 29948.92652
B52: Total | D52: =SUM(D39:D50) -> 161606.07 | E52: =IF(D52<>0,F52/D52,0) -> 3.1942 | F52: =SUM(F39:F50) -> 516202.1088 | H52: =SUM(H39:H50) -> 162503.91 | I52: =IF(H52<>0,J52/H52,0) -> 0.771 | J52: =SUM(J39:J50) -> 125290.5146 | L52: =SUM(L39:L50) -> 162503.91 | M52: =IF(L52<>0,N52/L52,0) -> 1.7493 | N52: =SUM(N39:N50) -> 284268.0898 | P52: =SUM(P39:P50) -> 409558.6044
B54: ='[1]12. RTSR - Historical Wholesale'!B53 -> Add Extra Host Here (I) | D54: Network | H54: Line Connection | L54: Transformation Connection | P54: Total Line
B56: Month | D56: Units Billed | E56: Rate | F56: Amount | H56: Units Billed | I56: Rate | J56: Amount | L56: Units Billed | M56: Rate | N56: Amount | P56: Amount
B58: January | D58: ='13. RTSR-Historic Wholesale'!D57 -> 0 | E58: ='12. RTSR-UTRs & Sub-Tx'!J44 -> 0 | F58: =D58*E58 -> 0 | H58: ='13. RTSR-Historic Wholesale'!H57 -> 0 | I58: ='12. RTSR-UTRs & Sub-Tx'!J46 -> 0 | J58: =H58*I58 -> 0 | L58: ='13. RTSR-Historic Wholesale'!L57 -> 0 | M58: ='12. RTSR-UTRs & Sub-Tx'!J48 -> 0 | N58: =L58*M58 -> 0 | P58: =J58+N58 -> 0
B59: February | D59: ='13. RTSR-Historic Wholesale'!D58 -> 0 | E59: =E58 -> 0 | F59: 0 | H59: ='13. RTSR-Historic Wholesale'!H58 -> 0 | I59: =I58 -> 0 | J59: 0 | L59: ='13. RTSR-Historic Wholesale'!L58 -> 0 | M59: =M58 -> 0 | N59: 0 | P59: 0
B60: March | D60: ='13. RTSR-Historic Wholesale'!D59 -> 0 | E60: 0 | F60: 0 | H60: ='13. RTSR-Historic Wholesale'!H59 -> 0 | I60: 0 | J60: 0 | L60: ='13. RTSR-Historic Wholesale'!L59 -> 0 | M60: 0 | N60: 0 | P60: 0
B61: April | D61: ='13. RTSR-Historic Wholesale'!D60 -> 0 | E61: 0 | F61: 0 | H61: ='13. RTSR-Historic Wholesale'!H60 -> 0 | I61: 0 | J61: 0 | L61: ='13. RTSR-Historic Wholesale'!L60 -> 0 | M61: 0 | N61: 0 | P61: 0
B62: May | D62: ='13. RTSR-Historic Wholesale'!D61 -> 0 | E62: 0 | F62: 0 | H62: ='13. RTSR-Historic Wholesale'!H61 -> 0 | I62: 0 | J62: 0 | L62: ='13. RTSR-Historic Wholesale'!L61 -> 0 | M62: 0 | N62: 0 | P62: 0
B63: June | D63: ='13. RTSR-Historic Wholesale'!D62 -> 0 | E63: 0 | F63: 0 | H63: ='13. RTSR-Historic Wholesale'!H62 -> 0 | I63: 0 | J63: 0 | L63: ='13. RTSR-Historic Wholesale'!L62 -> 0 | M63: 0 | N63: 0 | P63: 0
B64: July | D64: ='13. RTSR-Historic Wholesale'!D63 -> 0 | E64: 0 | F64: 0 | H64: ='13. RTSR-Historic Wholesale'!H63 -> 0 | I64: 0 | J64: 0 | L64: ='13. RTSR-Historic Wholesale'!L63 -> 0 | M64: 0 | N64: 0 | P64: 0
B65: August | D65: ='13. RTSR-Historic Wholesale'!D64 -> 0 | E65: 0 | F65: 0 | H65: ='13. RTSR-Historic Wholesale'!H64 -> 0 | I65: 0 | J65: 0 | L65: ='13. RTSR-Historic Wholesale'!L64 -> 0 | M65: 0 | N65: 0 | P65: 0
B66: September | D66: ='13. RTSR-Historic Wholesale'!D65 -> 0 | E66: 0 | F66: 0 | H66: ='13. RTSR-Historic Wholesale'!H65 -> 0 | I66: 0 | J66: 0 | L66: ='13. RTSR-Historic Wholesale'!L65 -> 0 | M66: 0 | N66: 0 | P66: 0
B67: October | D67: ='13. RTSR-Historic Wholesale'!D66 -> 0 | E67: 0 | F67: 0 | H67: ='13. RTSR-Historic Wholesale'!H66 -> 0 | I67: 0 | J67: 0 | L67: ='13. RTSR-Historic Wholesale'!L66 -> 0 | M67: 0 | N67: 0 | P67: 0
B68: November | D68: ='13. RTSR-Historic Wholesale'!D67 -> 0 | E68: 0 | F68: 0 | H68: ='13. RTSR-Historic Wholesale'!H67 -> 0 | I68: 0 | J68: 0 | L68: ='13. RTSR-Historic Wholesale'!L67 -> 0 | M68: 0 | N68: 0 | P68: 0
B69: December | D69: ='13. RTSR-Historic Wholesale'!D68 -> 0 | E69: 0 | F69: 0 | H69: ='13. RTSR-Historic Wholesale'!H68 -> 0 | I69: 0 | J69: 0 | L69: ='13. RTSR-Historic Wholesale'!L68 -> 0 | M69: 0 | N69: 0 | P69: 0
B71: Total | D71: =SUM(D58:D69) -> 0 | E71: =IF(D71<>0,F71/D71,0) -> 0 | F71: =SUM(F58:F69) -> 0 | H71: =SUM(H58:H69) -> 0 | I71: =IF(H71<>0,J71/H71,0) -> 0 | J71: =SUM(J58:J69) -> 0 | L71: =SUM(L58:L69) -> 0 | M71: =IF(L71<>0,N71/L71,0) -> 0 | N71: =SUM(N58:N69) -> 0 | P71: =SUM(P58:P69) -> 0
B73: ='[1]12. RTSR - Historical Wholesale'!B72 -> Add Extra Host Here (II) | D73: Network | H73: Line Connection | L73: Transformation Connection | P73: Total Line
B75: Month | D75: Units Billed | E75: Rate | F75: Amount | H75: Units Billed | I75: Rate | J75: Amount | L75: Units Billed | M75: Rate | N75: Amount | P75: Amount
B77: January | D77: ='13. RTSR-Historic Wholesale'!D76 -> 0 | E77: ='12. RTSR-UTRs & Sub-Tx'!J59 -> 0 | F77: =D77*E77 -> 0 | H77: ='13. RTSR-Historic Wholesale'!H76 -> 0 | I77: ='12. RTSR-UTRs & Sub-Tx'!J61 -> 0 | J77: =H77*I77 -> 0 | L77: ='13. RTSR-Historic Wholesale'!L76 -> 0 | M77: ='12. RTSR-UTRs & Sub-Tx'!J63 -> 0 | N77: =L77*M77 -> 0 | P77: =J77+N77 -> 0
B78: February | D78: ='13. RTSR-Historic Wholesale'!D77 -> 0 | E78: =E77 -> 0 | F78: 0 | H78: ='13. RTSR-Historic Wholesale'!H77 -> 0 | I78: =I77 -> 0 | J78: 0 | L78: ='13. RTSR-Historic Wholesale'!L77 -> 0 | M78: =M77 -> 0 | N78: 0 | P78: 0
B79: March | D79: ='13. RTSR-Historic Wholesale'!D78 -> 0 | E79: 0 | F79: 0 | H79: ='13. RTSR-Historic Wholesale'!H78 -> 0 | I79: 0 | J79: 0 | L79: ='13. RTSR-Historic Wholesale'!L78 -> 0 | M79: 0 | N79: 0 | P79: 0
B80: April | D80: ='13. RTSR-Historic Wholesale'!D79 -> 0 | E80: 0 | F80: 0 | H80: ='13. RTSR-Historic Wholesale'!H79 -> 0 | I80: 0 | J80: 0 | L80: ='13. RTSR-Historic Wholesale'!L79 -> 0 | M80: 0 | N80: 0 | P80: 0
B81: May | D81: ='13. RTSR-Historic Wholesale'!D80 -> 0 | E81: 0 | F81: 0 | H81: ='13. RTSR-Historic Wholesale'!H80 -> 0 | I81: 0 | J81: 0 | L81: ='13. RTSR-Historic Wholesale'!L80 -> 0 | M81: 0 | N81: 0 | P81: 0
B82: June | D82: ='13. RTSR-Historic Wholesale'!D81 -> 0 | E82: 0 | F82: 0 | H82: ='13. RTSR-Historic Wholesale'!H81 -> 0 | I82: 0 | J82: 0 | L82: ='13. RTSR-Historic Wholesale'!L81 -> 0 | M82: 0 | N82: 0 | P82: 0
B83: July | D83: ='13. RTSR-Historic Wholesale'!D82 -> 0 | E83: 0 | F83: 0 | H83: ='13. RTSR-Historic Wholesale'!H82 -> 0 | I83: 0 | J83: 0 | L83: ='13. RTSR-Historic Wholesale'!L82 -> 0 | M83: 0 | N83: 0 | P83: 0
B84: August | D84: ='13. RTSR-Historic Wholesale'!D83 -> 0 | E84: 0 | F84: 0 | H84: ='13. RTSR-Historic Wholesale'!H83 -> 0 | I84: 0 | J84: 0 | L84: ='13. RTSR-Historic Wholesale'!L83 -> 0 | M84: 0 | N84: 0 | P84: 0
B85: September | D85: ='13. RTSR-Historic Wholesale'!D84 -> 0 | E85: 0 | F85: 0 | H85: ='13. RTSR-Historic Wholesale'!H84 -> 0 | I85: 0 | J85: 0 | L85: ='13. RTSR-Historic Wholesale'!L84 -> 0 | M85: 0 | N85: 0 | P85: 0
B86: October | D86: ='13. RTSR-Historic Wholesale'!D85 -> 0 | E86: 0 | F86: 0 | H86: ='13. RTSR-Historic Wholesale'!H85 -> 0 | I86: 0 | J86: 0 | L86: ='13. RTSR-Historic Wholesale'!L85 -> 0 | M86: 0 | N86: 0 | P86: 0
B87: November | D87: ='13. RTSR-Historic Wholesale'!D86 -> 0 | E87: 0 | F87: 0 | H87: ='13. RTSR-Historic Wholesale'!H86 -> 0 | I87: 0 | J87: 0 | L87: ='13. RTSR-Historic Wholesale'!L86 -> 0 | M87: 0 | N87: 0 | P87: 0
B88: December | D88: ='13. RTSR-Historic Wholesale'!D87 -> 0 | E88: 0 | F88: 0 | H88: ='13. RTSR-Historic Wholesale'!H87 -> 0 | I88: 0 | J88: 0 | L88: ='13. RTSR-Historic Wholesale'!L87 -> 0 | M88: 0 | N88: 0 | P88: 0
L89: ='13. RTSR-Historic Wholesale'!L88 -> 0
B90: Total | D90: =SUM(D77:D88) -> 0 | E90: =IF(D90<>0,F90/D90,0) -> 0 | F90: =SUM(F77:F88) -> 0 | H90: =SUM(H77:H88) -> 0 | I90: =IF(H90<>0,J90/H90,0) -> 0 | J90: =SUM(J77:J88) -> 0 | L90: =SUM(L77:L88) -> 0 | M90: =IF(L90<>0,N90/L90,0) -> 0 | N90: =SUM(N77:N88) -> 0 | P90: =SUM(P77:P88) -> 0
B92: Total | D92: Network | H92: Line Connection | L92: Transformation Connection | P92: Total Line
B94: Month | D94: Units Billed | E94: Rate | F94: Amount | H94: Units Billed | I94: Rate | J94: Amount | L94: Units Billed | M94: Rate | N94: Amount | P94: Amount
B96: January | D96: =D20+D39+D58+D77 -> 586566.92 | E96: =IF(D96<>0,F96/D96,0) -> 3.601068288 | F96: =F20+F39+F58+F77 -> 2112267.534 | H96: =H20+H39+H58+H77 -> 610823.92 | I96: =IF(H96<>0,J96/H96,0) -> 0.9463076337 | J96: =J20+J39+J58+J77 -> 578027.3383 | L96: =L20+L39+L58+L77 -> 527148.92 | M96: =IF(L96<>0,N96/L96,0) -> 2.325881081 | N96: =N20+N39+N58+N77 -> 1226085.7 | P96: =J96+N96 -> 1804113.038
B97: February | D97: =D21+D40+D59+D78 -> 586004.47 | E97: 3.601524791 | F97: =F21+F40+F59+F78 -> 2110509.626 | H97: =H21+H40+H59+H78 -> 610297.63 | I97: 0.9464412122 | J97: =J21+J40+J59+J78 -> 577610.8287 | L97: =L21+L40+L59+L78 -> 525462.63 | M97: 2.326359952 | N97: =N21+N40+N59+N78 -> 1222415.219 | P97: 1800026.048
B98: March | D98: 586397.07 | E98: 3.60194414 | F98: 2112169.49 | H98: 606616.82 | I98: 0.9465113318 | J98: 574169.6942 | L98: 525917.82 | M98: 2.326720854 | N98: 1223663.959 | P98: 1797833.653
B99: April | D99: 548781.59 | E99: 3.601212756 | F99: 1976279.262 | H99: 581274.52 | I99: 0.9463525511 | J99: 550090.6249 | L99: 508021.52 | M99: 2.326227832 | N99: 1181773.799 | P99: 1731864.424
B100: May | D100: 650055.79 | E100: 3.602284828 | F100: 2341686.11 | H100: 704835.79 | I100: 0.9469367895 | J100: 667434.9401 | L100: 601826.79 | M100: 2.328161213 | N100: 1401149.789 | P100: 2068584.729
B101: June | D101: 797997.72 | E101: 3.596566329 | F101: 2870051.73 | H101: 822675.72 | I101: 0.9443903439 | J101: 776927.0061 | L101: 708397.72 | M101: 2.31850182 | N101: 1642421.403 | P101: 2419348.409
B102: July | D102: 816952.61 | E102: 3.604147614 | F102: 2944417.8 | H102: 835641.61 | I102: 0.9475369211 | J102: 791801.2783 | L102: 716676.61 | M102: 2.330522603 | N102: 1670231.038 | P102: 2462032.317
B103: August | D103: 827841.82 | E103: 3.604100429 | F103: 2983625.058 | H103: 856767.82 | I103: 0.9475460075 | J103: 811826.9272 | L103: 735998.82 | M103: 2.330573007 | N103: 1715298.983 | P103: 2527125.91
B104: September | D104: 830523.01 | E104: 3.604167441 | F104: 2993343.992 | H104: 842827.01 | I104: 0.9475257654 | J104: 798600.3077 | L104: 719236.01 | M104: 2.330431985 | N104: 1676130.602 | P104: 2474730.91
B105: October | D105: 564094.48 | E105: 3.594681752 | F105: 2027740.133 | H105: 588834.48 | I105: 0.9436826306 | J105: 555672.8711 | L105: 514405.48 | M105: 2.316136296 | N105: 1191433.203 | P105: 1747106.074
B106: November | D106: 560978.51 | E106: 3.60355114 | F106: 2021514.749 | H106: 580272.51 | I106: 0.9473161036 | J106: 549701.4932 | L106: 499907.51 | M106: 2.329719316 | N106: 1164644.182 | P106: 1714345.675
B107: December | D107: 589706.08 | E107: 3.601621276 | F107: 2123897.964 | H107: 616990.08 | I107: 0.9465525032 | J107: 584013.5047 | L107: 532210.08 | M107: 2.326810969 | N107: 1238352.252 | P107: 1822365.757
B109: Total | D109: =SUM(D96:D107) -> 7945900.07 | E109: =IF(D109<>0,F109/D109,0) -> 3.601543336 | F109: =SUM(F96:F107) -> 28617503.45 | H109: =SUM(H96:H107) -> 8257857.91 | I109: =IF(H109<>0,J109/H109,0) -> 0.9464775127 | J109: =SUM(J96:J107) -> 7815876.815 | L109: =SUM(L96:L107) -> 7115209.91 | M109: =IF(L109<>0,N109/L109,0) -> 2.326509033 | N109: =SUM(N96:N107) -> 16553600.13 | P109: =SUM(P96:P107) -> 24369476.94
N111: Low Voltage Switchgear Credit (if applicable) | P111: ='12. RTSR-UTRs & Sub-Tx'!J68 -> 0
N113: Total including deduction for Low Voltage Switchgear Credit | P113: =P109+P111 -> 24369476.94

Sheet 16. RTSR-Rates to Forecast
A1: Back to Index | B1: Back to Index
B2: INCENTIVE REGULATION MODEL FOR 2018 FILERS
F6: to do: Adjust Emb. Distributor Rates
B13: The purpose of this table is to re-align the current RTS Network Rates to recover current wholesale network costs.
B15: Rate Class | C15: Rate Description | D15: Unit | E15: Current RTSR-Network | F15: Loss Adjusted Billed kWh | G15: Billed kW | H15: Billed Amount | I15: Billed Amount % | J15: Current Wholesale Billing | K15: Adjusted RTSR Network
A17: ='11. RTSR - Current Rates'!A16 -> R_TN | B17: ='4. Billing Det. for Def-Var'!B17 -> RESIDENTIAL SERVICE CLASSIFICATION | C17: =VLOOKUP(A17,RTSR,3,FALSE) -> Retail Transmission Rate – Network Service Rate | D17: =VLOOKUP(A17,RTSR,4,FALSE) -> $/kWh | E17: =VLOOKUP(A17,RATES,4,FALSE) -> 0.0074 | F17: =VLOOKUP(A17,RTSR,9,FALSE) -> 1356678367 | G17: =VLOOKUP(A17,RTSR,7,FALSE) -> 0 | H17: =IF(ISERROR(E17*F17), 0, ROUND(E17*F17, 2)) -> 10039419.92 | I17: =H17/SUM(H$17:H$26) -> 0.3511743235 | J17: =I17*total_wholesale_TN -> 10186414.62 | K17: =IF(ISERROR(J17/F17), 0, J17/F17) -> 0.007508348972
A18: ='11. RTSR - Current Rates'!A18 -> GSL_TN | B18: ='4. Billing Det. for Def-Var'!B18 -> GENERAL SERVICE LESS THAN 50 kW SERVICE CLASSIFICATION | C18: Retail Transmission Rate – Network Service Rate | D18: $/kWh | E18: =VLOOKUP(A18,RATES,4,FALSE) -> 0.0066 | F18: =VLOOKUP(A18,RTSR,9,FALSE) -> 349049891.7 | G18: =VLOOKUP(A18,RTSR,7,FALSE) -> 0 | H18: =IF(ISERROR(E18*F18), 0, ROUND(E18*F18, 2)) -> 2303729.29 | I18: =H18/SUM(H$17:H$26) -> 0.08058339838 | J18: =I18*total_wholesale_TN -> 2337459.924 | K18: =IF(ISERROR(J18/F18), 0, J18/F18) -> 0.006696635581
A19: ='11. RTSR - Current Rates'!A20 -> GS50_699_TN | B19: ='4. Billing Det. for Def-Var'!B19 -> GENERAL SERVICE 50 to 699 KW SERVICE CLASSIFICATION | C19: Retail Transmission Rate – Network Service Rate | D19: $/kW | E19: 2.5604 | F19: 1156656739 | G19: 3142997.73 | H19: =IF(ISERROR(E19*G19), 0, ROUND(E19*G19, 2)) -> 8047331.39 | I19: 0.2814919766 | J19: 8165158.425 | K19: =IF(ISERROR(J19/G19), 0, J19/G19) -> 2.597888744
A20: ='11. RTSR - Current Rates'!A22 -> GS700_TN | B20: ='4. Billing Det. for Def-Var'!B20 -> GENERAL SERVICE 700 to 4,999 KW SERVICE CLASSIFICATION | C20: Retail Transmission Rate – Network Service Rate | D20: $/kW | E20: 2.8714 | F20: 881785824.7 | G20: 2009962.01 | H20: =IF(ISERROR(E20*G20), 0, ROUND(E20*G20, 2)) -> 5771404.92 | I20: 0.2018811081 | J20: 5855908.403 | K20: =IF(ISERROR(J20/G20), 0, J20/G20) -> 2.913442331
A21: ='11. RTSR - Current Rates'!A24 -> LU_TN | B21: ='4. Billing Det. for Def-Var'!B21 -> LARGE USE SERVICE CLASSIFICATION | C21: Retail Transmission Rate – Network Service Rate | D21: $/kW | E21: 3.2499 | F21: 376379276.7 | G21: 666341.8149 | H21: 2165544.26 | I21: 0.07574974914 | J21: 2197251.623 | K21: 3.297484225
B22: ='4. Billing Det. for Def-Var'!B22 -> STANDBY POWER SERVICE CLASSIFICATION
A23: ='11. RTSR - Current Rates'!A26 -> USL_TN | B23: ='4. Billing Det. for Def-Var'!B23 -> UNMETERED SCATTERED LOAD SERVICE CLASSIFICATION | C23: Retail Transmission Rate – Network Service Rate | D23: $/kWh | E23: 0.0066 | F23: 6036158.553 | G23: 0 | H23: =IF(ISERROR(E23*F23), 0, ROUND(E23*F23, 2)) -> 39838.65 | I23: 0.001393537781 | J23: 40421.95766 | K23: =IF(ISERROR(J23/F23), 0, J23/F23) -> 0.006696636163
A24: SL_TN | B24: ='4. Billing Det. for Def-Var'!B24 -> STREET LIGHTING SERVICE CLASSIFICATION | C24: Retail Transmission Rate – Network Service Rate | D24: $/kW | E24: 2.1319 | F24: 35443346.28 | G24: 103149.1581 | H24: 219903.69 | I24: 0.007692130639 | J24: 223123.4654 | K24: 2.163114751
A25: ='11. RTSR - Current Rates'!A30 -> EMD_TN | B25: ='4. Billing Det. for Def-Var'!B25 -> EMBEDDED DISTRIBUTOR SERVICE CLASSIFICATION | C25: Retail Transmission Rate – Network Service Rate | D25: $/kW | E25: 2.8714 | F25: 0 | G25: 0 | H25: =IF(ISERROR(E25*F25), 0, ROUND(E25*F25, 2)) -> 0 | I25: 0 | J25: 0 | K25: =+K20 -> 2.913442331
A26: ='11. RTSR - Current Rates'!A32 -> DG_TN | B26: ='4. Billing Det. for Def-Var'!B26 -> DISTRIBUTED GENERATION [DGEN] SERVICE CLASSIFICATION | C26: Retail Transmission Rate – Network Service Rate | D26: $/kWh | E26: 0.0066 | F26: 146301.3657 | G26: 0 | H26: 965.59 | I26: 3.377589718e-05 | J26: 979.7279299 | K26: 0.006696642408
B27: The purpose of this table is to re-align the current RTS Connection Rates to recover current wholesale connection costs.
B28: Rate Class | C28: Rate Description | D28: Unit | E28: Current RTSR-Connection | F28: Loss Adjusted Billed kWh | G28: Billed kW | H28: Billed Amount | I28: Billed Amount % | J28: Current Wholesale Billing | K28: Adjusted RTSR-Connection
A30: R_TC | B30: =B17 -> RESIDENTIAL SERVICE CLASSIFICATION | C30: =VLOOKUP(A30,RTSR,3,FALSE) -> Retail Transmission Rate – Line and Transformation Connection Service Rate | D30: =VLOOKUP(A30,RTSR,4,FALSE) -> $/kWh | E30: =VLOOKUP(A30,RATES,4,FALSE) -> 0.0057 | F30: =F17 -> 1356678367 | G30: =G17 -> 0 | H30: =IF(ISERROR(E30*F30), 0, ROUND(E30*F30, 2)) -> 7733066.69 | I30: =H30/SUM(H$30:H$39) -> 0.3620153248 | J30: =I30*total_wholesale_LinePlus -> 7782237.177 | K30: =IF(ISERROR(J30/F30), 0, J30/F30) -> 0.005736243288
A31: GSL_TC | B31: =B18 -> GENERAL SERVICE LESS THAN 50 kW SERVICE CLASSIFICATION | C31: Retail Transmission Rate – Line and Transformation Connection Service Rate | D31: $/kWh | E31: 0.0048 | F31: =F18 -> 349049891.7 | G31: 0 | H31: =IF(ISERROR(E31*F31), 0, ROUND(E31*F31, 2)) -> 1675439.48 | I31: =H31/SUM(H$30:H$39) -> 0.07843392433 | J31: 1686092.715 | K31: =IF(ISERROR(J31/F31), 0, J31/F31) -> 0.004830520665
A32: GS50_699_TC | B32: GENERAL SERVICE 50 to 699 KW SERVICE CLASSIFICATION | C32: Retail Transmission Rate – Line and Transformation Connection Service Rate | D32: $/kW | E32: 1.9177 | F32: 1156656739 | G32: 3142997.73 | H32: =IF(ISERROR(E32*G32), 0, ROUND(E32*G32, 2)) -> 6027326.75 | I32: 0.2821629166 | J32: 6065651.338 | K32: =IF(ISERROR(J32/G32), 0, J32/G32) -> 1.929893642
A33: GS700_TC | B33: GENERAL SERVICE 700 to 4,999 KW SERVICE CLASSIFICATION | C33: Retail Transmission Rate – Line and Transformation Connection Service Rate | D33: $/kW | E33: 2.0614 | F33: 881785824.7 | G33: 2009962.01 | H33: =IF(ISERROR(E33*G33), 0, ROUND(E33*G33, 2)) -> 4143335.69 | I33: 0.193965871 | J33: 4169680.973 | K33: =IF(ISERROR(J33/G33), 0, J33/G33) -> 2.074507355
A34: LU_TC | B34: LARGE USE SERVICE CLASSIFICATION | C34: Retail Transmission Rate – Line and Transformation Connection Service Rate | D34: $/kW | E34: 2.3826 | F34: 376379276.7 | G34: 666341.8149 | H34: 1587626.01 | I34: 0.07432302976 | J34: 1597720.885 | K34: 2.397749698
B35: STANDBY POWER SERVICE CLASSIFICATION
A36: USL_TC | B36: UNMETERED SCATTERED LOAD SERVICE CLASSIFICATION | C36: Retail Transmission Rate – Line and Transformation Connection Service Rate | D36: $/kWh | E36: 0.0048 | F36: 6036158.553 | G36: 0 | H36: =IF(ISERROR(E36*F36), 0, ROUND(E36*F36, 2)) -> 28973.56 | I36: 0.001356366517 | J36: 29157.78757 | K36: =IF(ISERROR(J36/F36), 0, J36/F36) -> 0.004830520489
A37: SL_TC | B37: STREET LIGHTING SERVICE CLASSIFICATION | C37: Retail Transmission Rate – Line and Transformation Connection Service Rate | D37: $/kW | E37: 1.5966 | F37: 35443346.28 | G37: 103149.1581 | H37: 164687.95 | I37: 0.007709691912 | J37: 165735.1137 | K37: 1.606751977
A38: EMD_TC | B38: EMBEDDED DISTRIBUTOR SERVICE CLASSIFICATION | C38: Retail Transmission Rate – Line and Transformation Connection Service Rate | D38: $/kW | E38: 2.0614 | F38: 0 | G38: 0 | H38: =IF(ISERROR(E38*F38), 0, ROUND(E38*F38, 2)) -> 0 | I38: 0 | J38: 0 | K38: =+K33 -> 2.074507355
A39: DG_TC | B39: DISTRIBUTED GENERATION [DGEN] SERVICE CLASSIFICATION | C39: Retail Transmission Rate – Line and Transformation Connection Service Rate | D39: $/kWh | E39: 0.0048 | F39: 146301.3657 | G39: 0 | H39: 702.25 | I39: 3.28750898e-05 | J39: 706.7152369 | K39: 0.004830544359
B40: The purpose of this table is to update the re-aligned RTS Network Rates to recover future wholesale network costs.
B41: Rate Class | C41: Rate Description | D41: Unit | E41: Adjusted RTSR-Network | F41: Loss Adjusted Billed kWh | G41: Billed kW | H41: Billed Amount | I41: Billed Amount % | J41: Current Wholesale Billing | K41: Proposed RTSR-Network
A43: R_TN | B43: =B17 -> RESIDENTIAL SERVICE CLASSIFICATION | C43: =VLOOKUP(A43,RTSR,3,FALSE) -> Retail Transmission Rate – Network Service Rate | D43: =VLOOKUP(A43,RTSR,4,FALSE) -> $/kWh | E43: =K17 -> 0.007508348972 | F43: =VLOOKUP(A43,RTSR,9,FALSE) -> 1356678367 | G43: =VLOOKUP(A43,RTSR,7,FALSE) -> 0 | H43: =IF(ISERROR(E43*F43), 0, ROUND(E43*F43, 2)) -> 10186414.62 | I43: =H43/SUM(H$43:H$52) -> 0.3511743234 | J43: =I43*forecast_wholesale_TN -> 10049732.41 | K43: =IF(ISERROR(J43/F43), 0, J43/F43) -> 0.007407601282
A44: GSL_TN | B44: =B18 -> GENERAL SERVICE LESS THAN 50 kW SERVICE CLASSIFICATION | C44: Retail Transmission Rate – Network Service Rate | D44: $/kWh | E44: =K18 -> 0.006696635581 | F44: 349049891.7 | G44: 0 | H44: =IF(ISERROR(E44*F44), 0, ROUND(E44*F44, 2)) -> 2337459.92 | I44: =H44/SUM(H$43:H$52) -> 0.08058339823 | J44: 2306095.677 | K44: =IF(ISERROR(J44/F44), 0, J44/F44) -> 0.006606779523
A45: GS50_699_TN | B45: GENERAL SERVICE 50 to 699 KW SERVICE CLASSIFICATION | C45: Retail Transmission Rate – Network Service Rate | D45: $/kW | E45: 2.597888744 | F45: 1156656739 | G45: 3142997.73 | H45: =IF(ISERROR(E45*G45), 0, ROUND(E45*G45, 2)) -> 8165158.43 | I45: 0.2814919767 | J45: 8055597.614 | K45: =IF(ISERROR(J45/G45), 0, J45/G45) -> 2.563030045
A46: GS700_TN | B46: GENERAL SERVICE 700 to 4,999 KW SERVICE CLASSIFICATION | C46: Retail Transmission Rate – Network Service Rate | D46: $/kW | E46: 2.913442331 | F46: 881785824.7 | G46: 2009962.01 | H46: =IF(ISERROR(E46*G46), 0, ROUND(E46*G46, 2)) -> 5855908.4 | I46: 0.201881108 | J46: 5777333.305 | K46: =IF(ISERROR(J46/G46), 0, J46/G46) -> 2.874349503
A47: LU_TN | B47: LARGE USE SERVICE CLASSIFICATION | C47: Retail Transmission Rate – Network Service Rate | D47: $/kW | E47: 3.297484225 | F47: 376379276.7 | G47: 666341.8149 | H47: 2197251.62 | I47: 0.07574974903 | J47: 2167768.704 | K47: 3.253238286
B48: STANDBY POWER SERVICE CLASSIFICATION
A49: USL_TN | B49: UNMETERED SCATTERED LOAD SERVICE CLASSIFICATION | C49: Retail Transmission Rate – Network Service Rate | D49: $/kWh | E49: 0.006696636163 | F49: 6036158.553 | G49: 0 | H49: =IF(ISERROR(E49*F49), 0, ROUND(E49*F49, 2)) -> 40421.96 | I49: 0.001393537862 | J49: 39879.57458 | K49: =IF(ISERROR(J49/F49), 0, J49/F49) -> 0.006606780492
A50: SL_TN | B50: STREET LIGHTING SERVICE CLASSIFICATION | C50: Retail Transmission Rate – Network Service Rate | D50: $/kW | E50: 2.163114751 | F50: 35443346.28 | G50: 103149.1581 | H50: 223123.47 | I50: 0.007692130797 | J50: 220129.5796 | K50: 2.134089931
A51: EMD_TN | B51: EMBEDDED DISTRIBUTOR SERVICE CLASSIFICATION | C51: Retail Transmission Rate – Network Service Rate | D51: $/kW | E51: =K25 -> 2.913442331 | F51: 0 | G51: =VLOOKUP(A51,RTSR,7,FALSE) -> 0 | H51: =IF(ISERROR(E51*F51), 0, ROUND(E51*F51, 2)) -> 0 | I51: 0 | J51: =I51*forecast_wholesale_TN -> 0 | K51: =+K46 -> 2.874349503
A52: DG_TN | B52: DISTRIBUTED GENERATION [DGEN] SERVICE CLASSIFICATION | C52: Retail Transmission Rate – Network Service Rate | D52: $/kWh | E52: 0.006696642408 | F52: =VLOOKUP(A52,RTSR,9,FALSE) -> 146301.3657 | G52: 0 | H52: 979.73 | I52: 3.377596855e-05 | J52: 966.5838965 | K52: 0.00660680023
B53: The purpose of this table is to update the re-aligned RTS Connection Rates to recover future wholesale connection costs.
B54: Rate Class | C54: Rate Description | D54: Unit | E54: Adjusted RTSR-Connection | F54: Loss Adjusted Billed kWh | G54: Billed kW | H54: Billed Amount | I54: Billed Amount % | J54: Current Wholesale Billing | K54: Proposed RTSR-Connection
A56: R_TC | B56: =B17 -> RESIDENTIAL SERVICE CLASSIFICATION | C56: =VLOOKUP(A56,RTSR,3,FALSE) -> Retail Transmission Rate – Line and Transformation Connection Service Rate | D56: =VLOOKUP(A56,RTSR,4,FALSE) -> $/kWh | E56: =K30 -> 0.005736243288 | F56: =VLOOKUP(A56,RTSR,9,FALSE) -> 1356678367 | G56: =VLOOKUP(A56,RTSR,7,FALSE) -> 0 | H56: =IF(ISERROR(E56*F56), 0, ROUND(E56*F56, 2)) -> 7782237.18 | I56: =H56/SUM(H$56:H$65) -> 0.3620153249 | J56: =I56*forecast_wholesale_LNPlus -> 8822124.114 | K56: =IF(ISERROR(J56/F56), 0, J56/F56) -> 0.006502738105
A57: GSL_TC | B57: =B18 -> GENERAL SERVICE LESS THAN 50 kW SERVICE CLASSIFICATION | C57: Retail Transmission Rate – Line and Transformation Connection Service Rate | D57: $/kWh | E57: =K31 -> 0.004830520665 | F57: 349049891.7 | G57: 0 | H57: =IF(ISERROR(E57*F57), 0, ROUND(E57*F57, 2)) -> 1686092.71 | I57: =H57/SUM(H$56:H$65) -> 0.07843392409 | J57: 1911393.705 | K57: =IF(ISERROR(J57/F57), 0, J57/F57) -> 0.005475989967
A58: GS50_699_TC | B58: GENERAL SERVICE 50 to 699 KW SERVICE CLASSIFICATION | C58: Retail Transmission Rate – Line and Transformation Connection Service Rate | D58: $/kW | E58: 1.929893642 | F58: 1156656739 | G58: 3142997.73 | H58: =IF(ISERROR(E58*G58), 0, ROUND(E58*G58, 2)) -> 6065651.34 | I58: 0.2821629166 | J58: 6876162.691 | K58: =IF(ISERROR(J58/G58), 0, J58/G58) -> 2.187772083
A59: GS700_TC | B59: GENERAL SERVICE 700 to 4,999 KW SERVICE CLASSIFICATION | C59: Retail Transmission Rate – Line and Transformation Connection Service Rate | D59: $/kW | E59: 2.074507355 | F59: 881785824.7 | G59: 2009962.01 | H59: =IF(ISERROR(E59*G59), 0, ROUND(E59*G59, 2)) -> 4169680.97 | I59: 0.1939658708 | J59: 4726846.815 | K59: =IF(ISERROR(J59/G59), 0, J59/G59) -> 2.351709531
A60: LU_TC | B60: LARGE USE SERVICE CLASSIFICATION | C60: Retail Transmission Rate – Line and Transformation Connection Service Rate | D60: $/kW | E60: 2.397749698 | F60: 376379276.7 | G60: 666341.8149 | H60: 1597720.89 | I60: 0.07432302996 | J60: 1811213.365 | K60: 2.718144539
B61: STANDBY POWER SERVICE CLASSIFICATION
A62: USL_TC | B62: UNMETERED SCATTERED LOAD SERVICE CLASSIFICATION | C62: Retail Transmission Rate – Line and Transformation Connection Service Rate | D62: $/kWh | E62: 0.004830520489 | F62: 6036158.553 | G62: 0 | H62: =IF(ISERROR(E62*F62), 0, ROUND(E62*F62, 2)) -> 29157.79 | I62: 0.00135636663 | J62: 33053.94533 | K62: =IF(ISERROR(J62/F62), 0, J62/F62) -> 0.00547599024
A63: SL_TC | B63: STREET LIGHTING SERVICE CLASSIFICATION | C63: Retail Transmission Rate – Line and Transformation Connection Service Rate | D63: $/kW | E63: 1.606751977 | F63: 35443346.28 | G63: 103149.1581 | H63: 165735.11 | I63: 0.007709691738 | J63: 187881.1551 | K63: 1.821451174
A64: EMD_TC | B64: EMBEDDED DISTRIBUTOR SERVICE CLASSIFICATION | C64: Retail Transmission Rate – Line and Transformation Connection Service Rate | D64: $/kW | E64: =K38 -> 2.074507355 | F64: 0 | G64: =VLOOKUP(A64,RTSR,7,FALSE) -> 0 | H64: =IF(ISERROR(E64*F64), 0, ROUND(E64*F64, 2)) -> 0 | I64: 0 | J64: =I64*forecast_wholesale_LNPlus -> 0 | K64: =+K59 -> 2.351709531
A65: DG_TC | B65: DISTRIBUTED GENERATION [DGEN] SERVICE CLASSIFICATION | C65: Retail Transmission Rate – Line and Transformation Connection Service Rate | D65: $/kWh | E65: 0.004830544359 | F65: =VLOOKUP(A65,RTSR,9,FALSE) -> 146301.3657 | G65: 0 | H65: 706.72 | I65: 3.287531137e-05 | J65: 801.1541423 | K65: 0.005476053751

Sheet 17. Rev2Cost-GDPIPI
A1: Back to Index | C1: Back to Index | AA1: FALSE | AB1: 0 | AE1: NO
C2: INCENTIVE REGULATION MODEL FOR 2018 FILERS | S2: TRUE
C11: If applicable, please enter any adjustments related to the revenue to cost ratio model into columns C and E. The Price Escalator and Stretch Factor have been set at the 2016 values and will be updated by OEB staff at a later date.
C12: Price Escalator | D12: 0.012 | E12: Productivity Factor | F12: 0 | G12: # of Residential Customers (approved in the last CoS) | H12: 140979 | I12: Effective Year of Residential Rate Design Transition (yyyy) | J12: 2016
C13: Choose Stretch Factor Group | D13: III | E13: Price Cap Index | F13: =D12-F12-D14 -> 0.009 | G13: Billed kWh for Residential Class (approved in the last CoS) | H13: 1308264983 | I13: OEB-approved # of Transition Years | J13: 4
C14: Associated Stretch Factor Value | D14: =IF(D13="I", 0%, IF(D13="II", 0.15%, IF(D13="III", 0.3%, IF(D13="IV", 0.45%, 0.6%)))) -> 0.003 | G14: Rate Design Transition Years Left | H14: 2
C15: Rate Class | D15: Current MFC | E15: MFC Adjustment from R/C Model | F15: Current Volumetric Charge | G15: DVR Adjustment from R/C Model | H15: Price Cap Index to be Applied to MFC and DVR | I15: Proposed MFC | J15: Proposed Volumetric Charge
A17: R_F | B17: R_V | C17: ='4. Billing Det. for Def-Var'!B17 -> RESIDENTIAL SERVICE CLASSIFICATION | D17: =IFERROR(VLOOKUP(A17,RATES,4,FALSE),"") -> 17.64 | F17: =IFERROR(VLOOKUP(B17,RATES,4,FALSE),"") -> 0.008 | H17: =F$13 -> 0.009 | I17: =J31*(1+F13) -> 20.91657 | J17: =J32*(1+F13) -> 0.004036
A18: GSL_F | B18: GSL_V | C18: ='4. Billing Det. for Def-Var'!B18 -> GENERAL SERVICE LESS THAN 50 kW SERVICE CLASSIFICATION | D18: 25.12 | F18: 0.0167 | H18: =F$13 -> 0.009 | I18: =(D18+E18)*(1+F$13) -> 25.34608 | J18: =(F18+G18)*(1+F$13) -> 0.0168503
A19: ='2. Current Tariff Schedule'!A138 -> GS50_699_F | B19: ='2. Current Tariff Schedule'!A139 -> GS50_699_V | C19: ='4. Billing Det. for Def-Var'!B19 -> GENERAL SERVICE 50 to 699 KW SERVICE CLASSIFICATION | D19: 125.33 | F19: 2.8387 | H19: 0.009 | I19: =(D19+E19)*(1+F$13) -> 126.45797 | J19: =(F19+G19)*(1+F$13) -> 2.8642483
A20: ='2. Current Tariff Schedule'!A169 -> GS700_F | B20: ='2. Current Tariff Schedule'!A170 -> GS700_V | C20: ='4. Billing Det. for Def-Var'!B20 -> GENERAL SERVICE 700 to 4,999 KW SERVICE CLASSIFICATION | D20: 1130.84 | F20: 3.2953 | H20: 0.009 | I20: =(D20+E20)*(1+F$13) -> 1141.01756 | J20: 3.3249577
A21: ='2. Current Tariff Schedule'!A202 -> LU_F | B21: ='2. Current Tariff Schedule'!A203 -> LU_V | C21: ='4. Billing Det. for Def-Var'!B21 -> LARGE USE SERVICE CLASSIFICATION | D21: 4705.66 | F21: 2.4949 | H21: 0.009 | I21: 4748.01094 | J21: 2.5173541
B22: ='2. Current Tariff Schedule'!A295 -> SB_V | C22: ='4. Billing Det. for Def-Var'!B22 -> STANDBY POWER SERVICE CLASSIFICATION | F22: 1.678 | H22: 0.009 | I22: 0 | J22: 1.693102
A23: ='2. Current Tariff Schedule'!A233 -> USL_F | B23: ='2. Current Tariff Schedule'!A234 -> USL_V | C23: ='4. Billing Det. for Def-Var'!B23 -> UNMETERED SCATTERED LOAD SERVICE CLASSIFICATION | D23: 1.09 | F23: 0.0198 | H23: 0.009 | I23: 1.09981 | J23: 0.0199782
A24: ='2. Current Tariff Schedule'!A264 -> SL_F | B24: ='2. Current Tariff Schedule'!A265 -> SL_V | C24: ='4. Billing Det. for Def-Var'!B24 -> STREET LIGHTING SERVICE CLASSIFICATION | D24: 2.3 | F24: 11.5388 | H24: 0.009 | I24: 2.3207 | J24: 11.6426492
A25: ='2. Current Tariff Schedule'!A311 -> EMD_F | C25: ='4. Billing Det. for Def-Var'!B25 -> EMBEDDED DISTRIBUTOR SERVICE CLASSIFICATION | D25: 4159.82 | H25: 0.009 | I25: 4197.25838 | J25: 0
A26: ='2. Current Tariff Schedule'!A339 -> DG_F | C26: ='4. Billing Det. for Def-Var'!B26 -> DISTRIBUTED GENERATION [DGEN] SERVICE CLASSIFICATION | D26: 103.97 | H26: 0.009 | I26: 104.90573 | J26: 0
A27: ='2. Current Tariff Schedule'!A368 -> WST_F | C27: ='4. Billing Det. for Def-Var'!B27 -> ENERGY FROM WASTE SERVICE CLASSIFICATION | D27: 63.09 | H27: 0.009 | I27: 63.65781 | J27: 0
C28: microFIT SERVICE CLASSIFICATION | D28: ='2. Current Tariff Schedule'!D384 -> 5.4 | H28: 0.009 | I28: =D28 -> 5.4 | J28: 0
C30: Rate Design Transition | E30: Revenue from Rates | F30: Current F/V Split | G30: Decoupling MFC Split | H30: Incremental Fixed Charge ($/month/year) | I30: New F/V Split | J30: Adjusted Rates1 | K30: Revenue at New F/V Split
C31: Current Residential Fixed Rate (inclusive of R/C adj.) | D31: =D17+E17 -> 17.64 | E31: =D31*COS_RES_CUSTOMERS*12 -> 29842434.72 | F31: =IF(ISERROR(E31/E33), 0, E31/E33) -> 0.740349909 | G31: =IF(ISERROR((1-F31)/YRS_LEFT), 0, (1-F31)/YRS_LEFT) -> 0.1298250455 | H31: =IF(ISERROR(ROUND(G31*E33/COS_RES_CUSTOMERS/12, 2)), 0, ROUND(G31*E33/COS_RES_CUSTOMERS/12, 2)) -> 3.09 | I31: =G31+F31 -> 0.8701749545 | J31: =IF(ISERROR(ROUND(I31*E33/COS_RES_CUSTOMERS/12, 2)), 0, ROUND(I31*E33/COS_RES_CUSTOMERS/12, 2)) -> 20.73 | K31: =ROUND(J31*COS_RES_CUSTOMERS*12, 2) -> 35069936.04
C32: Current Residential Variable Rate (inclusive of R/C adj.) | D32: =F17+G17 -> 0.008 | E32: =D32*COS_RES_KWH -> 10466119.86 | F32: =IF(ISERROR(E32/E33), 0, E32/E33) -> 0.259650091 | I32: =1-I31 -> 0.1298250455 | J32: =IF(ISERROR(ROUND(I32*E33/COS_RES_KWH, 4)), 0, ROUND(I32*E33/COS_RES_KWH, 4)) -> 0.004 | K32: =ROUND(J32*COS_RES_KWH, 2) -> 5233059.93
E33: =SUM(E31+E32) -> 40308554.58 | K33: =SUM(K31+K32) -> 40302995.97
C36: =IF((J31-D31)>=4, "The Rate Design Transition has calculated a monthly fixed charge greater than or equal to $4. Please refer to Section 3.2.3 of the Chapter 3 Filing Requirements for mitigation instructions.", "") -> 
C38: 1 These are the residential rates to which the Price Cap Index will be applied to.

Sheet 18. Regulatory Charges
A1: Back to Index
B2: INCENTIVE REGULATION MODEL FOR 2018 FILERS
C12: Update the following rates if an OEB Decision has been issued at the time of completing this application
E13: Proposed
C14: Wholesale Market Service Rate (WMS) - not including CBR | D14: $/kWh | E14: 0.0032
C15: Capacity Based Recovery (CBR) - Applicable for Class B Customers | D15: $/kWh | E15: 0.0004
C16: Rural or Remote Electricity Rate Protection Charge (RRRP) | D16: $/kWh | E16: 0.0003
C17: Standard Supply Service - Administrative Charge (if applicable) | D17: $ | E17: 0.25
C18: Ontario Electricity Support Program (OESP) | D18: $/kWh | E18: 0
C21: Time-of-Use RPP Prices
C22: As of | D22: 2017-07-01
C23: Off-Peak | D23: $/kWh | E23: 0.065
C24: Mid-Peak | D24: $/kWh | E24: 0.095
C25: On-Peak | D25: $/kWh | E25: 0.132
C28: Debt Retirement Charge (DRC)
C29: Debt Retirement Charge (DRC) | D29: $/kWh | E29: 0.007 | F29: If your utility's DRC differs from the value in Cell E29, please update this value.

Sheet 19. Additional Rates
A1: Back to Index | AB1: 3
B2: INCENTIVE REGULATION MODEL FOR 2018 FILERS
B11: In the Green Cells below, enter any proposed rate riders that are not already included in this model (e.g.: proposed ICM rate riders). Please note that existing SMIRR and SM Entity Charge do not need to be included below. In column A, the rate rider descriptions must begin with "Rate Rider for". In column B, choose the associated unit from the drop-down menu. In column C, enter the rate. All rate riders with a "$" unit should be rounded to 2 decimal places and all others rounded to 4 decimal places. In column E, enter the expiry date (e.g. April 30, 2018) or description of the expiry date in text (e.g. the effective date of the next cost of service-based rate order). In column G, choose the sub-total as applicable in the bill impact calculation from the drop-down menu
B13: ='4. Billing Det. for Def-Var'!B17 -> RESIDENTIAL SERVICE CLASSIFICATION
B14: Rate Rider for Incremental Capital Module (ICM) | C14: $ | D14: 0.23 | E14: - effective until | F14: next COS | H14: A
B15: Rate Rider for Recovery of 2018 Foregone Revenue | C15: $ | D15: 0.37 | E15: - effective until | F15: December 31, 2018 | H15: A
E16: - effective until
E17: - effective until
E18: - effective until
E19: - effective until
E20: - effective until
E21: - effective until
E22: - effective until
E23: - effective until
B26: ='4. Billing Det. for Def-Var'!B18 -> GENERAL SERVICE LESS THAN 50 kW SERVICE CLASSIFICATION
B27: Rate Rider for Incremental Capital Module (ICM) | C27: $ | D27: 0.24 | E27: - effective until | F27: next COS | H27: A
B28: Rate Rider for Incremental Capital Module (ICM) | C28: $/kWh | D28: 0.0002 | E28: - effective until | F28: next COS | H28: A
B29: Rate Rider for Recovery of 2018 Foregone Revenue | C29: $ | D29: 0.42 | E29: - effective until | F29: December 31, 2018
E30: - effective until
E31: - effective until
E32: - effective until
E33: - effective until
E34: - effective until
E35: - effective until
B38: ='4. Billing Det. for Def-Var'!B19 -> GENERAL SERVICE 50 to 699 KW SERVICE CLASSIFICATION
B39: Rate Rider for Incremental Capital Module (ICM) | C39: $ | D39: 1.21 | E39: - effective until | F39: next COS | H39: A
B40: Rate Rider for Incremental Capital Module (ICM) | C40: $/kW | D40: 0.0273 | E40: - effective until | F40: next COS | H40: A
B41: Rate Rider for Recovery of 2018 Foregone Revenue | C41: $ | D41: 2.62 | E41: - effective until | F41: December 31, 2018 | H41: A
E42: - effective until
E43: - effective until
E44: - effective until
E45: - effective until
E46: - effective until
E47: - effective until
B50: ='4. Billing Det. for Def-Var'!B20 -> GENERAL SERVICE 700 to 4,999 KW SERVICE CLASSIFICATION
B51: Rate Rider for Incremental Capital Module (ICM) | C51: $ | D51: 10.89 | E51: - effective until | F51: next COS | H51: A
B52: Rate Rider for Incremental Capital Module (ICM) | C52: $/kW | D52: 0.0317 | E52: - effective until | F52: next COS | H52: A
B53: Rate Rider for Recovery of 2018 Foregone Revenue | C53: $ | D53: 27.52 | E53: - effective until | F53: December 31, 2018 | H53: A
E54: - effective until
E55: - effective until
E56: - effective until
E57: - effective until
E58: - effective until
E59: - effective until
B62: ='4. Billing Det. for Def-Var'!B21 -> LARGE USE SERVICE CLASSIFICATION
B63: Rate Rider for Incremental Capital Module (ICM) | C63: $ | D63: 45.33 | E63: - effective until | F63: next COS | H63: A
B64: Rate Rider for Incremental Capital Module (ICM) | C64: $/kW | D64: 0.024 | E64: - effective until | F64: next COS | H64: A
B65: Rate Rider for Recovery of 2018 Foregone Revenue | C65: $ | D65: 120.14 | E65: - effective until | F65: December 31, 2018 | H65: A
E66: - effective until
E67: - effective until
E68: - effective until
E69: - effective until
E70: - effective until
E71: - effective until
B74: ='4. Billing Det. for Def-Var'!B23 -> UNMETERED SCATTERED LOAD SERVICE CLASSIFICATION
B75: Rate Rider for Incremental Capital Module (ICM) | C75: $ | D75: 0.01 | E75: - effective until | F75: next COS | H75: A
B76: Rate Rider for Incremental Capital Module (ICM) | C76: $/kWh | D76: 0.0002 | E76: - effective until | F76: next COS | H76: A
B77: Rate Rider for Recovery of 2018 Foregone Revenue | C77: $ | D77: 0.04 | E77: - effective until | F77: December 31, 2018 | H77: A
E78: - effective until
E79: - effective until
E80: - effective until
E81: - effective until
E82: - effective until
E83: - effective until
B86: ='4. Billing Det. for Def-Var'!B24 -> STREET LIGHTING SERVICE CLASSIFICATION
B87: Rate Rider for Incremental Capital Module (ICM) | C87: $ | D87: 0.02 | E87: - effective until | F87: next COS | H87: A
B88: Rate Rider for Incremental Capital Module (ICM) | C88: $/kW | D88: 0.1112 | E88: - effective until | F88: next COS | H88: A
B89: Rate Rider for Recovery of 2018 Foregone Revenue | C89: $ | D89: 0.03 | E89: - effective until | F89: December 31, 2018 | H89: A
E90: - effective until
E91: - effective until
E92: - effective until
E93: - effective until
E94: - effective until
E95: - effective until
B98: ='4. Billing Det. for Def-Var'!B25 -> EMBEDDED DISTRIBUTOR SERVICE CLASSIFICATION
B99: Rate Rider for Incremental Capital Module (ICM) | C99: $ | D99: 40.07 | E99: - effective until | F99: next COS | H99: A
B100: Rate Rider for Recovery of 2018 Foregone Revenue | C100: $ | D100: 18.72 | E100: - effective until | F100: December 31, 2018 | H100: A
E101: - effective until
E102: - effective until
E103: - effective until
E104: - effective until
E105: - effective until
E106: - effective until
E107: - effective until
B110: ='4. Billing Det. for Def-Var'!B26 -> DISTRIBUTED GENERATION [DGEN] SERVICE CLASSIFICATION
B111: Rate Rider for Incremental Capital Module (ICM) | C111: $ | D111: 1 | E111: - effective until | F111: next COS | H111: A
B112: Rate Rider for Recovery of 2018 Foregone Revenue | C112: $ | D112: 0.47 | E112: - effective until | F112: December 31, 2018 | H112: A
E113: - effective until
E114: - effective until
E115: - effective until
E116: - effective until
E117: - effective until
E118: - effective until
E119: - effective until
B122: ='4. Billing Det. for Def-Var'!B27 -> ENERGY FROM WASTE SERVICE CLASSIFICATION
E123: - effective until
E124: - effective until
E125: - effective until
E126: - effective until
E127: - effective until
E128: - effective until
E129: - effective until
E130: - effective until
E131: - effective until
B134: MICROFIT SERVICE CLASSIFICATION
E135: - effective until
E136: - effective until
E137: - effective until
E138: - effective until
E139: - effective until
E140: - effective until
E141: - effective until
E142: - effective until
E143: - effective until
E144: - effective until

Sheet 20. Final Tariff Schedule
A1: Back to Index
B2: INCENTIVE REGULATION MODEL FOR 2018 FILERS
B11: ='Model Specs'!C4 -> Alectra - Hydro One Brampton
B12: TARIFF OF RATES AND CHARGES
B13: Effective Date January 1, 2018
B14: Implementation Date May 1, 2018
B16: This schedule supersedes and replaces all previously
B17: approved schedules of Rates, Charges and Loss Factors
B18: EB-2017-0024
B19: RESIDENTIAL SERVICE CLASSIFICATION
B20: This classification applies to an account where the electricity is supplied exclusively to single-family dwelling units for domestic or household purposes, including seasonal occupancy. This includes, but is not limited to, detached houses, one unit of a semi-detached, duplex, triplex or quadruplex house, with a residential zoning. Separately metered dwellings within a town house complex also qualify as residential customers. Further servicing details are available in the distributor’s Conditions of Service.
B22: APPLICATION
B24: The application of these rates and charges shall be in accordance with the Licence of the Distributor and any Code or Order of the Ontario Energy Board, and amendments thereto as approved by the Ontario Energy Board, which may be applicable to the administration of this schedule.
B26: No rates and charges for the distribution of electricity and charges to meet the costs of any work or service done or furnished for the purpose of the distribution of electricity shall be made except as permitted by this schedule, unless required by the Distributor’s Licence or a Code or Order of the Ontario Energy Ontario Energy Board, and amendments thereto as approved by the Ontario Energy Board, or as specified herein.
B28: Unless specifically noted, this schedule does not contain any charges for the electricity commodity, be it under the Regulated Price Plan, a contract with a retailer or the wholesale market price, as applicable. In addition, the charges in the MONTHLY RATES AND CHARGES - Regulatory Component of this schedule do not apply to a customer that is an embedded wholesale market participant.
B30: It should be noted that this schedule does not list any charges, assessments, or credits that are required by law to be invoiced by a distributor and that are not subject to Ontario Energy Board approval, such as the Debt Retirement Charge, the Global Adjustment and the HST.
B32: MONTHLY RATES AND CHARGES - Delivery Component
A34: R_F | B34: =+RATES!C15 -> Service Charge | C34: =+RATES!G15 -> $ | D34: =+RATES!I15 -> 20.92
B35: =+RATES!C16 -> Distribution Volumetric Rate | C35: =+RATES!G16 -> $/kWh | D35: =+RATES!I16 -> 0.004
A36: R_V
A37: R_GA16 | B37: =+RATES!C18 -> Rate Rider for Smart Metering Entity Charge | C37: =+RATES!G25 -> $/kWh | D37: =+RATES!I18 -> 0.57
A38: R_LRVA16 | B38: Rate Rider for Disposition of GA (2018) - effective until April 30, 2019 - Applicable only for Non-RPP Customers | C38: =RATES!G24 -> $/kWh | D38: =RATES!I24 -> -0.0009
A39: R_DVA16 | B39: Rate Rider for Disposition of Deferral/Variance Accounts (2018) effective until April 30, 2019 | C39: =RATES!G25 -> $/kWh | D39: =RATES!I25 -> -0.001
A40: R_1576 | B40: Rate Rider for Disposition of CBR Class B (2018) - Applicable only to Class B customers | C40: =RATES!G26 -> $/kWh | D40: =RATES!I26 -> 0
A41: R_ICMF | B41: Rate Rider for Incremental Capital Module (ICM) - effective until the date of the next cost of service based rate order | C41: =RATES!G28 -> $ | D41: =RATES!I28 -> 0.23
A42: R_FRF | B42: Rate Rider for Recovery of 2018 Foregone Revenue - effective until December 31, 2018 | C42: =RATES!G29 -> $ | D42: =RATES!I29 -> 0.37
A44: R_TN | B44: =+RATES!C39 -> Retail Transmission Rate – Network Service Rate | C44: =+RATES!G39 -> $/kWh | D44: =+RATES!I39 -> 0.0074
A45: R_TC | B45: =+RATES!C40 -> Retail Transmission Rate – Line and Transformation Connection Service Rate | C45: =+RATES!G40 -> $/kWh | D45: =+RATES!I40 -> 0.0065
B47: MONTHLY RATES AND CHARGES - Regulatory Component
B49: Wholesale Market Service Rate (WMS) - not including CBR | C49: $/kWh | D49: 0.0032
B50: Capacity Based Recovery (CBR) - Applicable for Class B Customers | C50: $/kWh | D50: 0.0004
B51: Rural or Remote Electricity Rate Protection Charge (RRRP) | C51: $/kWh | D51: 0.0003
B52: Standard Supply Service - Administrative Charge (if applicable) | C52: $ | D52: 0.25
B53: ONTARIO ELECTRICITY SUPPORT PROGRAM RECIPIENTS
B54: In addition to the charges specified on page 1 of this tariff of rates and charges, the following credits are to be applied to eligible residential customers.
B56: APPLICATION
B58: The application of the charges are in accordance with the Distribution System Code (Section 9) and subsection 79.2(4) of the Ontario Energy Board Act, 1998.
B59: The application of these charges shall be in accordance with the Licence of the Distributor and any Code or Order of the Ontario Energy Board, and amendments thereto as approved by the Ontario Energy Board, which may be applicable to the administration of this schedule.
B60: In this class: “Aboriginal person” includes a person who is a First Nations person, a Métis person or an Inuit person; “account-holder” means a consumer who has an account with a distributor that falls within a residential-rate classification as specified in a rate order made by the Ontario Energy Board under section 78 of the Act, and who lives at the service address to which the account relates for at least six months in a year; “electricity-intensive medical device” means an oxygen concentrator, a mechanical ventilator, or such other device as may be specified by the Ontario Energy Board; “household” means the account-holder and any other people living at the accountholder’s service address for at least six months in a year, including people other than the account-holder’s spouse, children or other relatives; “household income” means the combined annual after-tax income of all members of a household aged 16 or over;
B62: The application of these credits shall be in accordance with the Licence of the Distributor and any Code or Order of the Ontario Energy Board, and amendments thereto as approved by the Ontario Energy Board, which may be applicable to the administration of this schedule.
B64: In this class:
B65: Aboriginal person includes a person who is a First Nations person, a Métis person or an Inuit person;
B66: account-holder means a consumer who has an account with a distributor that falls within a residential-rate classification as specified in a rate order made by the Board under section 78 of the Act, and who lives at the service address to which the account relates for at least six months in a year;
B67: electricity-intensive medical device means an oxygen concentrator, a mechanical ventilator or a kidney dialysis machine;
B68: household means the account-holder and any other people living at the accountholder's service address for at least six months in a year, including people other than the account-holder's spouse, children or other relatives;
B69: household income means the combined annual after-tax income of all members of a household aged 18 or over.
B71: MONTHLY RATES AND CHARGES
B73: Class A
B74: (a) account-holders with a household income of $28,000 or less living in a household of one or two persons;
B75: (b) account-holders with a household income of between $28,001 and $39,000 living in a household of three persons;
B76: (c) account-holders with a household income of between $39,001 and $48,000 living in a household of five persons;
B77: (d) account-holders with a household income of between $48,001 and $52,000 living in a household of seven or more persons;
B78: but does not include account-holders in Class E.
B79: OESP Credit | C79: $ | D79: -30
B81: Class B
B82: (a) account-holders with a household income of $28,000 or less living in a household of three persons;
B83: (b) account-holders with a household income of between $28,001 and $39,000 living in a household of four persons;
B84: (c) account-holders with a household income of between $39,001 and $48,000 living in a household of six persons;
B85: but does not include account-holders in Class F.
B86: OESP Credit | C86: $ | D86: -34
B88: Class C
B89: (a) account-holders with a household income of $28,000 or less living in a household of four persons;
B90: (b) account-holders with a household income of between $28,001 and $39,000 living in a household of five persons;
B91: (c) account-holders with a household income of between $39,001 and $48,000 living in a household of seven or more persons;
B92: but does not include account-holders in Class G.
B93: OESP Credit | C93: $ | D93: -38
B95: Class D
B96: (a) account-holders with a household income of $28,000 or less living in a household of five persons;
B97: (b) account-holders with a household income of between $28,001 and $39,000 living in a household of six persons;
B98: but does not include account-holders in Class H.
B99: OESP Credit | C99: $ | D99: -42
B101: Class E
B102: Class E comprises account-holders with a household income and household size described under Class A
B103: who also meet any of the following conditions:
B104: (a) the dwelling to which the account relates is heated primarily by electricity;
B105: (b) the account-holder or any member of the account-holder’s household is an Aboriginal person; or
B106: (c) the account-holder or any member of the account-holder’s household regularly uses, for medical purposes,
B107: an electricity-intensive medical device at the dwelling to which the account relates.
B108: OESP Credit | C108: $ | D108: -45
B110: Class F
B111: (a) account-holders with a household income of $28,000 or less living in a household of six or more persons;
B112: (b) account-holders with a household income of between $28,001 and $39,000 living in a household of seven
B113: or more persons; or
B114: (c) account-holders with a household income and household size described under Class B who also meet any
B115: of the following conditions:
B116: i. the dwelling to which the account relates is heated primarily by electricity;
B117: ii. the account-holder or any member of the account-holder’s household is an Aboriginal person; or
B118: iii. the account-holder or any member of the account-holder’s household regularly uses, for medical purposes,
B119: an electricity-intensive medical device at the dwelling to which the account relates.
B120: OESP Credit
C121: $ | D121: -50
B122: Class G
B123: Class G comprises account-holders with a household income and household size described under Class C
B124: who also meet any of the following conditions:
B125: (a) the dwelling to which the account relates is heated primarily by electricity;
B126: (b) the account-holder or any member of the account-holder’s household is an Aboriginal person; or
B127: (c) the account-holder or any member of the account-holder’s household regularly uses, for medical purposes,
B128: an electricity-intensive medical device at the dwelling to which the account relates.
B129: OESP Credit | C129: $ | D129: -55
B131: Class H
B132: Class H comprises account-holders with a household income and household size described under Class D
B133: who also meet any of the following conditions:
B134: (a) the dwelling to which the account relates is heated primarily by electricity;
B135: (b) the account-holder or any member of the account-holder’s household is an Aboriginal person; or
B136: (c) the account-holder or any member of the account-holder’s household regularly uses, for medical purposes,
B137: an electricity-intensive medical device at the dwelling to which the account relates.
B138: OESP Credit | C138: $ | D138: -60
B140: Class I
B141: Class I comprises account-holders with a household income and household size described under
B142: paragraphs (a) or (b) of Class F who also meet any of the following conditions:
B143: (a) the dwelling to which the account relates is heated primarily by electricity;
B144: (b) the account-holder or any member of the account-holder’s household is an Aboriginal person; or
B145: (c) the account-holder or any member of the account-holder’s household regularly uses, for medical purposes,
B146: an electricity-intensive medical device at the dwelling to which the account relates.
B147: OESP Credit | C147: $ | D147: -75
B149: GENERAL SERVICE LESS THAN 50 KW SERVICE CLASSIFICATION
B150: This classification applies to a non residential account whose average monthly maximum demand is less than, or is forecast to be less than, 50 kW. Multi-unit residential establishments such as apartment buildings supplied through one service (bulk metered) shall normally be classified as general service. Where service is provided to combined residential and business, or residential and agricultural, whether seasonal or all-year premises, and the wiring does not provide for separate metering, the service shall normally be classed as general service. Further servicing details are available in the distributor’s Conditions of Service.
B152: APPLICATION
B154: The application of these rates and charges shall be in accordance with the Licence of the Distributor and any Code or Order of the Ontario Energy Board, and amendments thereto as approved by the Ontario Energy Board, which may be applicable to the administration of this schedule.
B156: No rates and charges for the distribution of electricity and charges to meet the costs of any work or service done or furnished for the purpose of the distribution of electricity shall be made except as permitted by this schedule, unless required by the Distributor’s Licence or a Code or Order of the Ontario Energy Board, and amendments thereto as approved by the Ontario Energy Board, or as specified herein.
B158: Unless specifically noted, this schedule does not contain any charges for the electricity commodity, be it under the Regulated Price Plan, a contract with a retailer or the wholesale market price, as applicable. In addition, the charges in the MONTHLY RATES AND CHARGES - Regulatory Component of this schedule do not apply to a customer that is an embedded wholesale market participant.
B160: It should be noted that this schedule does not list any charges, assessments, or credits that are required by law to be invoiced by a distributor and that are not subject to Ontario Energy Board approval, such as the Debt Retirement Charge, the Global Adjustment and the HST.
B162: MONTHLY RATES AND CHARGES - Delivery Component
A164: GSL_F | B164: =+RATES!C43 -> Service Charge | C164: =+RATES!G43 -> $ | D164: =+RATES!I43 -> 25.35
B165: =+RATES!C44 -> Distribution Volumetric Rate | C165: =+RATES!G44 -> $/kWh | D165: =+RATES!I44 -> 0.0169
A166: GSL_V
A167: GSL_GA16 | B167: =+RATES!C46 -> Rate Rider for Smart Metering Entity Charge | C167: =+RATES!G46 -> $ | D167: =+RATES!I46 -> 0.57
A168: GSL_DVA16 | B168: =RATES!C52 -> Transformer Discount | C168: =RATES!G52 -> $/kWh | D168: =RATES!I52 -> -0.0032
A169: GSL_1576 | B169: =RATES!C53 -> Rate Rider for Disposition of GA (2018) - effective until April 30, 2019 - Applicable only for Non-RPP Customers | C169: =RATES!G53 -> $/kWh | D169: =RATES!I53 -> -0.0009
A170: GSL_CBR16 | B170: =RATES!C54 -> Rate Rider for Disposition of Deferral/Variance Accounts (2018) effective until April 30, 2019 | C170: =RATES!G54 -> $/kWh | D170: =RATES!I54 -> -0.001
A171: GSL_TN | B171: =RATES!C55 -> Rate Rider for Disposition of CBR Class B (2018) - Applicable only to Class B customers effective until April 30, 2019 | C171: =RATES!G55 -> $/kWh | D171: =RATES!I55 -> 0
A172: =+RATES!A57 -> GSL_ICMF | B172: =RATES!C57 -> Rate Rider for Incremental Capital Module (ICM) - effective until the date of the next cost of service based rate order | C172: =RATES!G57 -> $ | D172: =RATES!I57 -> 0.24
A173: =+RATES!A58 -> GSL_ICMV | B173: =RATES!C58 -> Rate Rider for Incremental Capital Module (ICM) - effective until the date of the next cost of service based rate order | C173: =RATES!G58 -> $/kWh | D173: =RATES!I58 -> 0.0002
A174: =+RATES!A60 -> GSL_FRV | B174: Rate Rider for Recovery of 2018 Foregone Revenue - effective until December 31, 2018 | C174: =+RATES!G59 -> $ | D174: =+RATES!I59 -> 0.42
A176: GSL_TN | B176: =+RATES!C69 -> Retail Transmission Rate - Network Service Rate | C176: =+RATES!G69 -> $/kWh | D176: =+RATES!I69 -> 0.0066
B177: =+RATES!C70 -> Retail Transmission Rate - Line and Transformation Connection Service Rate | C177: =+RATES!G70 -> $/kWh | D177: =+RATES!I70 -> 0.0055
B179: MONTHLY RATES AND CHARGES - Regulatory Component
B181: Wholesale Market Service Rate (WMS) - not including CBR | C181: $/kWh | D181: 0.0032
B182: Capacity Based Recovery (CBR) - Applicable for Class B Customers | C182: $/kWh | D182: 0.0004
B183: Rural or Remote Electricity Rate Protection Charge (RRRP) | C183: $/kWh | D183: 0.0003
B184: Standard Supply Service - Administrative Charge (if applicable) | C184: $ | D184: 0.25
B185: GENERAL SERVICE 50 TO 699 KW SERVICE CLASSIFICATION
B186: This classification applies to a non residential account whose average monthly maximum demand used for billing purposes is equal to or greater than, or is forecast to be equal to or greater than, 50 kW but less than 700 kW. Further servicing details are available in the distributor’s Conditions of Service.
B188: APPLICATION
B190: The application of these rates and charges shall be in accordance with the Licence of the Distributor and any Code or Order of the Ontario Energy Board, and amendments thereto as approved by the Ontario Energy Board, which may be applicable to the administration of this schedule.
B192: No rates and charges for the distribution of electricity and charges to meet the costs of any work or service done or furnished for the purpose of the distribution of electricity shall be made except as permitted by this schedule, unless required by the Distributor’s Licence or a Code or Order of the Ontario Energy Board, and amendments thereto as approved by the Ontario Energy Board, or as specified herein.
B194: Unless specifically noted, this schedule does not contain any charges for the electricity commodity, be it under the Regulated Price Plan, a contract with a retailer or the wholesale market price, as applicable. In addition, the charges in the MONTHLY RATES AND CHARGES - Regulatory Component of this schedule do not apply to a customer that is an embedded wholesale market participant.
B196: It should be noted that this schedule does not list any charges, assessments, or credits that are required by law to be invoiced by a distributor and that are not subject to Ontario Energy Board approval, such as the Debt Retirement Charge, the Global Adjustment and the HST.
B198: MONTHLY RATES AND CHARGES - Delivery Component
B199: =+RATES!C74 -> Service Charge | C199: =+RATES!G74 -> $ | D199: =+RATES!I74 -> 126.46
A200: GS50_699_F | B200: =+RATES!C75 -> Distribution Volumetric Rate | C200: =+RATES!G75 -> $/kW | D200: =+RATES!I75 -> 2.8642
A201: GS50_699_V
A202: GS50_699_GA16 | B202: =RATES!C77 -> Transformer Discount | C202: =+RATES!G77 -> $/kW | D202: =RATES!I77 -> -0.684
A203: GS50_699_LRVA16 | B203: =RATES!C83 -> Rate Rider for Disposition of GA (2018) - effective until April 30, 2019 - Applicable only for Non-RPP Customers | C203: =RATES!G83 -> $/kWh | D203: =RATES!I83 -> -0.0009
A204: GS50_699_DVA16 | B204: =RATES!C84 -> Rate Rider for Disposition of Deferral/Variance Accounts (2018) effective until April 30, 2019 | C204: =RATES!G84 -> $/kW | D204: =RATES!I84 -> 0.0055
A205: GS50_699_1576 | B205: =RATES!C85 -> Rate Rider for Disposition of Deferral/Variance Accounts (2018) - Applicable only to non-WMP effective until April 30, 2019 | C205: =RATES!G85 -> $/kW | D205: =RATES!I85 -> -0.3626
A206: GS50_699_CBR16 | B206: =RATES!C86 -> Rate Rider for Disposition of CBR Class B (2018) - Applicable only to Class B customers effective until April 30, 2019 | C206: =RATES!G86 -> $/kW | D206: =RATES!I86 -> 0
B207: =RATES!C88 -> Rate Rider for Incremental Capital Module (ICM) - effective until the date of the next cost of service based rate order | C207: =RATES!G88 -> $ | D207: =RATES!I88 -> 1.21
B208: =RATES!C89 -> Rate Rider for Incremental Capital Module (ICM) - effective until the date of the next cost of service based rate order | C208: =RATES!G89 -> $/kW | D208: =RATES!I89 -> 0.0273
B209: =RATES!C90 -> Rate Rider for Recovery of 2018 Foregone Revenue - effective until December 31, 2018 | C209: =RATES!G90 -> $ | D209: =+RATES!I90 -> 2.62
A211: GS50_699_TC | B211: =+RATES!C98 -> Retail Transmission Rate - Network Service Rate | C211: =+RATES!G84 -> $/kW | D211: =+RATES!I98 -> 2.563
B212: =+RATES!C99 -> Retail Transmission Rate - Line and Transformation Connection Service Rate | C212: =+RATES!G85 -> $/kW | D212: =+RATES!I99 -> 2.1878
B215: MONTHLY RATES AND CHARGES - Regulatory Component
B217: Wholesale Market Service Rate (WMS) - not including CBR | C217: $/kWh | D217: 0.0032
B218: Capacity Based Recovery (CBR) - Applicable for Class B Customers | C218: $/kWh | D218: 0.0004
B219: Rural or Remote Electricity Rate Protection Charge (RRRP) | C219: $/kWh | D219: 0.0003
B220: Standard Supply Service - Administrative Charge (if applicable) | C220: $ | D220: 0.25
B221: GENERAL SERVICE 700 TO 4,999 KW SERVICE CLASSIFICATION
B222: This classification applies to a non residential account whose average monthly maximum demand used for billing purposes is equal to or greater than, or is forecast to be equal to or greater than, 700 kW but less than 5,000 kW. Further servicing details are available in the distributor’s Conditions of Service.
B224: APPLICATION
B226: The application of these rates and charges shall be in accordance with the Licence of the Distributor and any Code or Order of the Ontario Energy Board, and amendments thereto as approved by the Ontario Energy Board, which may be applicable to the administration of this schedule.
B228: No rates and charges for the distribution of electricity and charges to meet the costs of any work or service done or furnished for the purpose of the distribution of electricity shall be made except as permitted by this schedule, unless required by the Distributor’s Licence or a Code or Order of the Ontario Energy Board, and amendments thereto as approved by the Ontario Energy Board, or as specified herein.
B230: Unless specifically noted, this schedule does not contain any charges for the electricity commodity, be it under the Regulated Price Plan, a contract with a retailer or the wholesale market price, as applicable. In addition, the charges in the MONTHLY RATES AND CHARGES - Regulatory Component of this schedule do not apply to a customer that is an embedded wholesale market participant.
B232: It should be noted that this schedule does not list any charges, assessments, or credits that are required by law to be invoiced by a distributor and that are not subject to Ontario Energy Board approval, such as the Debt Retirement Charge, the Global Adjustment and the HST.
B234: MONTHLY RATES AND CHARGES - Delivery Component
A236: GS700_F | B236: =+RATES!C101 -> Service Charge | C236: =+RATES!G101 -> $ | D236: =+RATES!I101 -> 1141.02
A237: GS700_V | B237: =+RATES!C102 -> Distribution Volumetric Rate | C237: =+RATES!G102 -> $/kW | D237: =+RATES!I102 -> 3.325
A238: GS700_GA16
A239: GS700_LRVA16 | B239: =+RATES!C77 -> Transformer Discount | C239: =+RATES!G104 -> $/kW | D239: =RATES!I104 -> -0.8515
A240: GS700_DVA_nonWMP | B240: =RATES!C112 -> Rate Rider for Disposition of GA (2018) - effective until April 30, 2019 - Applicable only for Non-RPP Customers | C240: =RATES!G112 -> $/kWh | D240: =RATES!I112 -> -0.0009
A241: GS700_DVA16 | B241: =RATES!C113 -> Rate Rider for Disposition of Deferral/Variance Accounts (2018) effective until April 30, 2019 | C241: =RATES!G113 -> $/kW | D241: =RATES!I113 -> 0.0067
A242: GS700_1576 | B242: =RATES!C114 -> Rate Rider for Disposition of Deferral/Variance Accounts (2018) - Applicable only to non-WMP effective until April 30, 2019 | C242: =RATES!G114 -> $/kW | D242: =RATES!I114 -> -0.4225
A243: GS700_CBR16 | B243: =RATES!C115 -> Rate Rider for Disposition of CBR Class B (2018) - Applicable only to Class B customers effective until April 30, 2019 | C243: =RATES!G115 -> $/kW | D243: =RATES!I115 -> 0
B244: =RATES!C117 -> Rate Rider for Incremental Capital Module (ICM) - effective until the date of the next cost of service based rate order | C244: =RATES!G117 -> $ | D244: =RATES!I117 -> 10.89
B245: =RATES!C118 -> Rate Rider for Incremental Capital Module (ICM) - effective until the date of the next cost of service based rate order | C245: =RATES!G118 -> $/kW | D245: =RATES!I118 -> 0.0317
B246: =RATES!C119 -> Rate Rider for Recovery of 2018 Foregone Revenue - effective until December 31, 2018 | C246: =RATES!G119 -> $ | D246: =RATES!I119 -> 27.52
B247: =RATES!C120 -> Rate Rider for Recovery of 2018 Foregone Revenue - effective until December 31, 2018 | C247: =RATES!G119 -> $ | D247: =RATES!I119 -> 27.52
A248: GS700_TN | B248: =+RATES!C125 -> Retail Transmission Rate - Network Service Rate | C248: =+RATES!G125 -> $/kW | D248: =+RATES!I125 -> 2.8743
A249: GS700_TC | B249: =+RATES!C126 -> Retail Transmission Rate - Line and Transformation Connection Service Rate | C249: =+RATES!G126 -> $/kW | D249: =+RATES!I126 -> 2.3517
B251: MONTHLY RATES AND CHARGES - Regulatory Component
B253: Wholesale Market Service Rate (WMS) - not including CBR | C253: $/kWh | D253: 0.0032
B254: Capacity Based Recovery (CBR) - Applicable for Class B Customers | C254: $/kWh | D254: 0.0004
B255: Rural or Remote Electricity Rate Protection Charge (RRRP) | C255: $/kWh | D255: 0.0003
B256: Standard Supply Service - Administrative Charge (if applicable) | C256: $ | D256: 0.25
B257: LARGE USE SERVICE CLASSIFICATION
B258: This classification applies to an account whose average monthly maximum demand over 12 consecutive months used for billing purposes is equal to or greater than 5,000 kW, or is forecast to be equal to or greater than 5,000 kW. Further servicing details are available in the distributor’s Conditions of Service.
B260: APPLICATION
B262: The application of these rates and charges shall be in accordance with the Licence of the Distributor and any Code or Order of the Ontario Energy Board, and amendments thereto as approved by the Ontario Energy Board, which may be applicable to the administration of this schedule.
B264: No rates and charges for the distribution of electricity and charges to meet the costs of any work or service done or furnished for the purpose of the distribution of electricity shall be made except as permitted by this schedule, unless required by the Distributor’s Licence or a Code or Order of the Ontario Energy Board, and amendments thereto as approved by the Ontario Energy Board, or as specified herein.
B266: Unless specifically noted, this schedule does not contain any charges for the electricity commodity, be it under the Regulated Price Plan, a contract with a retailer or the wholesale market price, as applicable. In addition, the charges in the MONTHLY RATES AND CHARGES - Regulatory Component of this schedule do not apply to a customer that is an embedded wholesale market participant.
... 203 more rows

Sheet 21. Bill Impacts
A1: Back to Index
E2: INCENTIVE REGULATION MODEL FOR 2018 FILERS
E11: The bill comparisons below must be provided for typical customers and consumption levels. Bill impacts must be provided for residential customers consuming 750 kWh per month and general service customers consuming 2,000 kWh per month and having a monthly demand of less than 50 kW. Include bill comparisons for Non-RPP (retailer) as well. To assess the combined effects of the shift to fixed rates and other bill impacts associated with changes in the cost of distribution service, applicants are to include a total bill impact for a residential customer at the distributor’s 10th consumption percentile (In other words, 10% of a distributor’s residential customers consume at or less than this level of consumption on a monthly basis). Refer to page 9 of the Filing Requirements For Electricity Distribution Rate Applications issued July 14, 2016. For certain classes where one or more customers have unique consumption and demand patterns and which may be significantly impacted by the proposed rate changes, the distributor must show a typical comparison, and provide an explanation. Note: 1. For those classes that are not eligible for the RPP price, the weighted average price including Class B GA through end of February 2017 of $0.1058/kWh (IESO's Monthly Market Report for February 2017, page 22) has been used to represent the cost of power. For those classes on a retailer contract, applicants should enter the contract price (plus GA) for a more accurate estimate. Changes to the cost of power can be made directly on the bill impact table for the specific class. 2. Please enter the applicable billing determinant (e.g. number of connections or devices) to be applied to the monthly service charge for unmetered rate classes in column N. If the monthly service charge is applied on a per customer basis, enter the number “1”. Distributors should provide the number of connections or devices reflective of a typical customer in each class.
E13: Table 1
E14: RATE CLASSES / CATEGORIES (eg: Residential TOU, Residential Retailer) | G14: Units | H14: RPP? Non-RPP Retailer? Non-RPP Other? | I14: Current Loss Factor | J14: Proposed Loss Factor | K14: Consumption (kWh) | L14: Demand kW (if applicable) | M14: RTSR | N14: Billing Determinant Applied to Fixed Charge for Unmetered Classes (e.g. # of devices/connections).
B15: 1 | C15: 1 | E15: ='4. Billing Det. for Def-Var'!B17 -> RESIDENTIAL SERVICE CLASSIFICATION | G15: =IF(ISERROR(VLOOKUP(E15,BILLING_DETERMINANTS,2,FALSE)),"",(VLOOKUP(E15,BILLING_DETERMINANTS,2,FALSE))) -> kWh | H15: RPP | I15: =LLF -> 1.0341 | J15: =IF(ISBLANK(I15),"", I15) -> 1.0341 | K15: 750 | M15: N/A | T15: =SUM(I15:L15) -> 752.0682 | U15: 78 | V15: 1
B16: 2 | C16: 2 | E16: ='4. Billing Det. for Def-Var'!B18 -> GENERAL SERVICE LESS THAN 50 kW SERVICE CLASSIFICATION | G16: kWh | H16: RPP | I16: =LLF -> 1.0341 | J16: =IF(ISBLANK(I16),"", I16) -> 1.0341 | K16: 2000 | M16: N/A | T16: 2002.0682 | U16: =U15+68 -> 146 | V16: 2
B17: 3 | C17: 3 | E17: ='4. Billing Det. for Def-Var'!B19 -> GENERAL SERVICE 50 to 699 KW SERVICE CLASSIFICATION | G17: kW | H17: Non-RPP (Other) | I17: =LLF -> 1.0341 | J17: 1.0341 | K17: 182500 | L17: 500 | M17: DEMAND | T17: 183002.0682 | U17: =U16+68 -> 214 | V17: 3
B18: 4 | C18: 4 | E18: ='4. Billing Det. for Def-Var'!B20 -> GENERAL SERVICE 700 to 4,999 KW SERVICE CLASSIFICATION | G18: kW | H18: Non-RPP (Other) | I18: =LLF -> 1.0341 | J18: 1.0341 | K18: 627216 | L18: 1432 | M18: DEMAND | T18: 628650.0682 | U18: 282 | V18: 4
B19: 5 | C19: 5 | E19: ='4. Billing Det. for Def-Var'!B21 -> LARGE USE SERVICE CLASSIFICATION | G19: kW | H19: Non-RPP (Other) | I19: 1.0145 | J19: 1.0145 | K19: 10220000 | L19: 20000 | M19: DEMAND | T19: 10240002.03 | U19: 350 | V19: 5
B20: 6 | C20: 6 | E20: ='4. Billing Det. for Def-Var'!B22 -> STANDBY POWER SERVICE CLASSIFICATION | G20: kW | H20: Non-RPP (Other) | I20: =LLF -> 1.0341 | J20: 1.0341 | K20: ='[3]20. Bill Impacts'!$K$37 -> 0 | L20: ='[3]20. Bill Impacts'!$L$37 -> 4548 | M20: DEMAND | T20: =SUM(I20:L20) -> 4550.0682 | U20: 418 | V20: 6
B21: 7 | C21: 7 | E21: ='4. Billing Det. for Def-Var'!B23 -> UNMETERED SCATTERED LOAD SERVICE CLASSIFICATION | G21: kWh | H21: Non-RPP (Other) | I21: =LLF -> 1.0341 | J21: 1.0341 | K21: ='[3]20. Bill Impacts'!K35 -> 21296 | L21: ='[3]20. Bill Impacts'!L35 -> 0 | M21: N/A | N21: 186 | T21: 21298.0682 | U21: 486 | V21: 7
B22: 8 | C22: 8 | E22: ='4. Billing Det. for Def-Var'!B24 -> STREET LIGHTING SERVICE CLASSIFICATION | G22: kW | H22: Non-RPP (Other) | I22: =LLF -> 1.0341 | J22: 1.0341 | K22: ='[3]20. Bill Impacts'!K36 -> 2787508 | L22: ='[3]20. Bill Impacts'!L36 -> 7922 | M22: DEMAND | N22: 20614 | T22: 2795432.068 | U22: 554 | V22: 8
B23: 9 | C23: 9 | E23: ='4. Billing Det. for Def-Var'!B25 -> EMBEDDED DISTRIBUTOR SERVICE CLASSIFICATION | G23: kWh | H23: Non-RPP (Other) | I23: 1.0247 | J23: 1.0247 | K23: 1417701 | L23: 4000 | M23: N/A | T23: 1421703.049 | U23: 622 | V23: 9
B24: 10 | C24: 10 | E24: ='4. Billing Det. for Def-Var'!B26 -> DISTRIBUTED GENERATION [DGEN] SERVICE CLASSIFICATION | G24: kWh | H24: Non-RPP (Other) | I24: =LLF -> 1.0341 | J24: 1.0341 | K24: 156 | M24: N/A | T24: 158.0682 | U24: 690 | V24: 10
B25: 11 | C25: 11 | E25: ='4. Billing Det. for Def-Var'!B27 -> ENERGY FROM WASTE SERVICE CLASSIFICATION | G25: kWh | H25: Non-RPP (Other) | I25: 1.0341 | J25: 1.0341 | M25: N/A | T25: 2.0682 | U25: 758 | V25: 11
B26: 12 | C26: =IF(ISERROR(VLOOKUP(E26, E$15:V$33, 18, FALSE)),"", VLOOKUP(E26, E$15:V$33, 18, FALSE)) -> 1 | E26: =E15 -> RESIDENTIAL SERVICE CLASSIFICATION | F26: (10th consumption percentile) | G26: kWh | H26: RPP | I26: 1.0341 | J26: 1.0341 | K26: 361.28 | M26: N/A | T26: 363.3482 | U26: 826
B27: 13 | C27: 1 | E27: =E15 -> RESIDENTIAL SERVICE CLASSIFICATION | F27: (Retailer) | G27: kWh | H27: Non-RPP (Retailer) | I27: 1.0341 | J27: 1.0341 | K27: 750 | M27: N/A | T27: 752.0682 | U27: 894
B28: 14 | C28: 2 | E28: =E16 -> GENERAL SERVICE LESS THAN 50 kW SERVICE CLASSIFICATION | F28: (Retailer) | G28: kWh | H28: Non-RPP (Retailer) | I28: 1.0341 | J28: 1.0341 | K28: 2000 | M28: N/A | T28: 2002.0682 | U28: 962
B29: 15 | C29: 7 | E29: UNMETERED SCATTERED LOAD SERVICE CLASSIFICATION | G29: kWh | H29: RPP | I29: 1.0341 | J29: 1.0341 | K29: 150 | M29: N/A | N29: 1 | T29: 152.0682 | U29: 1030
B30: 16 | C30: 0 | E30: Add additional scenarios if required | J30: =IF(ISBLANK(I30),"", I30) ->  | T30: 0 | U30: 1098
B31: 17 | C31: 0 | E31: Add additional scenarios if required | T31: 0 | U31: 1166
B32: 18 | C32: 0 | E32: Add additional scenarios if required | T32: 0 | U32: 1234
B33: 19 | C33: 0 | E33: Add additional scenarios if required | T33: 0 | U33: 1302
E36: Table 2
E37: RATE CLASSES / CATEGORIES (eg: Residential TOU, Residential Retailer) | G37: Units | H37: Sub-Total | N37: Total | P37: Total (Before Tax) | R37: Total
H38: A | J38: B | L38: C | N38: A + B + C | P38: A + B + C | R38: A + B + C
H39: $ | I39: % | J39: $ | K39: % | L39: $ | M39: % | N39: $ | O39: % | P39: $ | Q39: % | R39: $ | S39: %
B40: =H15 -> RPP | C40: =B15 -> 1 | E40: =IF(ISBLANK(E15), "", IF(E15 = "Add additional scenarios if required", "", IF(O15="INTERVAL", E15 & " - " & H15 & " - Interval Customers", E15 & " - " &H15))) -> RESIDENTIAL SERVICE CLASSIFICATION - RPP | G40: =G15 -> kWh | H40: =IF(LEN($G40)>1, (SUMPRODUCT(--($C$72:$C$1017=$B15), --($A$72:$A$1017=$E15), --($B$72:$B$1017="ST_A"), $M$72:$M$1017)), "") -> 0.43 | I40: =IF(LEN($G40)>1, (SUMPRODUCT(--($C$72:$C$1017=$B15), --($A$72:$A$1017=$E15), --($B$72:$B$1017="ST_A"), $N$72:$N$1017)), "") -> 0.01784973018 | J40: =IF(LEN($G40)>1, (SUMPRODUCT(--($C$72:$C$1017=$B15), --($A$72:$A$1017=$E15), --($B$72:$B$1017="ST_B"), $M$72:$M$1017)), "") -> 2.305 | K40: =IF(LEN($G40)>1, (SUMPRODUCT(--($C$72:$C$1017=$B15), --($A$72:$A$1017=$E15), --($B$72:$B$1017="ST_B"), $N$72:$N$1017)), "") -> 0.09549953965 | L40: =IF(LEN($G40)>1, (SUMPRODUCT(--($C$72:$C$1017=$B15), --($A$72:$A$1017=$E15), --($B$72:$B$1017="ST_C"), $M$72:$M$1017)), "") -> 2.92546 | M40: =IF(LEN($G40)>1, (SUMPRODUCT(--($C$72:$C$1017=$B15), --($A$72:$A$1017=$E15), --($B$72:$B$1017="ST_C"), $N$72:$N$1017)), "") -> 0.08529964384 | N40: =IF(LEN($G40)>1, (SUMPRODUCT(--($C$72:$C$1017=$B15), --($A$72:$A$1017=$E15), --($B$72:$B$1017=$B40&"_TOTAL"), $M$72:$M$1017)), "") -> 3.071733 | O40: =IF(LEN($G40)>1, (SUMPRODUCT(--($C$72:$C$1017=$B15), --($A$72:$A$1017=$E15), --($B$72:$B$1017=$B40&"_TOTAL"), $N$72:$N$1017)), "") -> 0.02949319493 | P40: =IF(LEN($G40)>1, (SUMPRODUCT(--($C$72:$C$1017=$B15), --($A$72:$A$1017=$E15), --($B$72:$B$1017=$B40&"_BT"), $M$72:$M$1017)), "") -> 2.92546 | Q40: =IF(LEN($G40)>1, (SUMPRODUCT(--($C$72:$C$1017=$B15), --($A$72:$A$1017=$E15), --($B$72:$B$1017=$B40&"_BT"), $N$72:$N$1017)), "") -> 0.02949319493 | R40: =IF(LEN($G40)>1, (SUMPRODUCT(--($C$72:$C$1017=$B15), --($A$72:$A$1017=$E15), --($B$72:$B$1017=$B40&"_NET"), $M$72:$M$1017)), "") -> 3.3057698 | S40: =IF(LEN($G40)>1, (SUMPRODUCT(--($C$72:$C$1017=$B15), --($A$72:$A$1017=$E15), --($B$72:$B$1017=$B40&"_NET"), $N$72:$N$1017)), "") -> 0.02949319493
B41: =H16 -> RPP | C41: =B16 -> 2 | E41: =IF(ISBLANK(E16), "", IF(E16 = "Add additional scenarios if required", "", IF(O16="INTERVAL", E16 & " - " & H16 & " - Interval Customers", E16 & " - " &H16))) -> GENERAL SERVICE LESS THAN 50 kW SERVICE CLASSIFICATION - RPP | G41: =G16 -> kWh | H41: -2.11 | I41: -0.03385750963 | J41: 2.89 | K41: 0.04699698074 | L41: 4.33774 | M41: 0.05098976862 | N41: 4.554627 | O41: 0.01596478427 | P41: 4.33774 | Q41: 0.01596478427 | R41: 4.9016462 | S41: 0.01596478427
B42: Non-RPP (Other) | C42: 3 | E42: GENERAL SERVICE 50 to 699 KW SERVICE CLASSIFICATION - Non-RPP (Other) | G42: kW | H42: -94.84 | I42: -0.05676050943 | J42: -708.14 | K42: -0.3647611493 | L42: -571.79 | M42: -0.1367777956 | N42: -646.1227 | O42: -0.02119889641 | P42: -571.79 | Q42: -0.02119889641 | R42: -646.1227 | S42: -0.02119889641
B43: Non-RPP (Other) | C43: 4 | E43: GENERAL SERVICE 700 to 4,999 KW SERVICE CLASSIFICATION - Non-RPP (Other) | G43: kW | H43: -157.0452 | I43: -0.02556378122 | J43: -2342.7068 | K43: -0.326782416 | L43: -1922.8444 | M43: -0.1350996989 | N43: -2172.814172 | O43: -0.02077304309 | P43: -1922.8444 | Q43: -0.02077304309 | R43: -2172.814172 | S43: -0.02077304309
B44: Non-RPP (Other) | C44: 5 | E44: LARGE USE SERVICE CLASSIFICATION - Non-RPP (Other) | G44: kW | H44: -4944.18 | I44: -0.08147196554 | J44: 24427.82 | K44: 1.204904295 | L44: 31203.82 | M44: 0.2347499309 | N44: 35260.3166 | O44: 0.02250647319 | P44: 31203.82 | Q44: 0.02250647319 | R44: 35260.3166 | S44: 0.02250647319
B45: Non-RPP (Other) | C45: 6 | E45: STANDBY POWER SERVICE CLASSIFICATION - Non-RPP (Other) | G45: kW | H45: 0 | I45: 0 | J45: 0 | K45: 0 | L45: 0 | M45: 0 | N45: 0 | O45: 0 | P45: 0 | Q45: 0 | R45: 0 | S45: 0
B46: Non-RPP (Other) | C46: 7 | E46: UNMETERED SCATTERED LOAD SERVICE CLASSIFICATION - Non-RPP (Other) | G46: kWh | H46: 15.4192 | I46: 0.02452708936 | J46: -56.9872 | K46: -0.08626529661 | L46: -41.57166448 | M46: -0.04560011513 | N46: -46.97598086 | O46: -0.01163980367 | P46: -41.57166448 | Q46: -0.01163980367 | R46: -46.97598086 | S46: -0.01163980367
B47: Non-RPP (Other) | C47: 8 | E47: STREET LIGHTING SERVICE CLASSIFICATION - Non-RPP (Other) | G47: kW | H47: 1539.6284 | I47: 0.01096373754 | J47: -8134.2546 | K47: -0.05608121666 | L47: -6335.1684 | M47: -0.03628776964 | N47: -7158.740292 | O47: -0.01211994019 | P47: -6335.1684 | Q47: -0.01211994019 | R47: -7158.740292 | S47: -0.01211994019
B48: Non-RPP (Other) | C48: 9 | E48: EMBEDDED DISTRIBUTOR SERVICE CLASSIFICATION - Non-RPP (Other) | G48: kWh | H48: 96.23 | I48: 0.02313321249 | J48: -8116.4358 | K48: -0.7316748218 | L48: -6943.6358 | M48: -0.2252660559 | N48: -7846.308454 | O48: -0.03364846268 | P48: -6943.6358 | Q48: -0.03364846268 | R48: -7846.308454 | S48: -0.03364846268
B49: Non-RPP (Other) | C49: 10 | E49: DISTRIBUTED GENERATION [DGEN] SERVICE CLASSIFICATION - Non-RPP (Other) | G49: kWh | H49: 2.332 | I49: 0.02241273258 | J49: 1.8172 | K49: 0.01732850257 | L49: 1.93012372 | M49: 0.01808811585 | N49: 1.898539804 | O49: 0.01334983942 | P49: 1.68012372 | Q49: 0.01334983942 | R49: 1.898539804 | S49: 0.01334983942
B50: Non-RPP (Other) | C50: 11 | E50: ENERGY FROM WASTE SERVICE CLASSIFICATION - Non-RPP (Other) | G50: kWh | H50: 0.57 | I50: 0.009034712316 | J50: 0.57 | K50: 0.009034712316 | L50: 0.57 | M50: 0.009034712316 | N50: 0.6441 | O50: 0.009034712316 | P50: 0.57 | Q50: 0.009034712316 | R50: 0.6441 | S50: 0.009034712316
B51: RPP | C51: 12 | E51: RESIDENTIAL SERVICE CLASSIFICATION - RPP | G51: kWh | H51: 2.218112 | I51: 0.1069123798 | J51: 3.121312 | K51: 0.148177305 | L51: 3.420191718 | M51: 0.1317542824 | N51: 3.591201304 | O51: 0.05963855434 | P51: =IF(LEN($G51)>1, (SUMPRODUCT(--($C$72:$C$1017=$B26), --($A$72:$A$1017=$E26), --($B$72:$B$1017=$B51&"_TOTAL"), $M$72:$M$1017)), "") -> 3.591201304 | Q51: =IF(LEN($G51)>1, (SUMPRODUCT(--($C$72:$C$1017=$B26), --($A$72:$A$1017=$E26), --($B$72:$B$1017=$B51&"_TOTAL"), $N$72:$N$1017)), "") -> 0.05963855434 | R51: =IF(LEN($G51)>1, (SUMPRODUCT(--($C$72:$C$1017=$B26), --($A$72:$A$1017=$E26), --($B$72:$B$1017=$B51&"_TOTAL"), $M$72:$M$1017)), "") -> 3.591201304 | S51: =IF(LEN($G51)>1, (SUMPRODUCT(--($C$72:$C$1017=$B26), --($A$72:$A$1017=$E26), --($B$72:$B$1017=$B51&"_TOTAL"), $N$72:$N$1017)), "") -> 0.05963855434
B52: Non-RPP (Retailer) | C52: 13 | E52: RESIDENTIAL SERVICE CLASSIFICATION - Non-RPP (Retailer) | G52: kWh | H52: 0.43 | I52: 0.01784973018 | J52: -2.045 | K52: -0.07168946926 | L52: -1.42454 | M52: -0.03682329245 | N52: -1.495767 | O52: -0.01146182825 | P52: -1.495767 | Q52: -0.01146182825 | R52: -1.495767 | S52: -0.01146182825
B53: Non-RPP (Retailer) | C53: 14 | E53: GENERAL SERVICE LESS THAN 50 kW SERVICE CLASSIFICATION - Non-RPP (Retailer) | G53: kWh | H53: -2.11 | I53: -0.03385750963 | J53: -8.71 | K53: -0.1189909892 | L53: -7.26226 | M53: -0.07504171993 | N53: -7.625373 | O53: -0.02141992438 | P53: -7.625373 | Q53: -0.02141992438 | R53: -7.625373 | S53: -0.02141992438
B54: RPP | C54: 15 | E54: UNMETERED SCATTERED LOAD SERVICE CLASSIFICATION - RPP | G54: kWh | H54: 0.09 | I54: 0.02200488998 | J54: 0.45 | K54: 0.1124930142 | L54: 0.5585805 | M54: 0.09683188839 | N54: 0.586509525 | O54: 0.02793250553 | P54: 0.586509525 | Q54: 0.02793250553 | R54: 0.586509525 | S54: 0.02793250553
B55: 0 | C55: 16 | E55: =IF(ISBLANK(E30), "", IF(E30 = "Add additional scenarios if required", "", IF(O30="YES", E30 & " - " & J30 & " - Interval Customers", E30 & " - " &J30))) ->  | G55: =IF(ISBLANK(I30), "", I30) -> 
B56: 0 | C56: 17 | G56: =IF(ISBLANK(I31), "", I31) -> 
B57: 0 | C57: 18 | G57: =IF(ISBLANK(I32), "", I32) -> 
B58: 0 | C58: 19 | G58: =IF(ISBLANK(I33), "", I33) -> 
B59: 0 | C59: 0 | G59: =IF(ISBLANK(I34), "", I34) -> 
E62: Customer Class: | F62: =E15 -> RESIDENTIAL SERVICE CLASSIFICATION | L62: =IF(O14="DEMAND - INTERVAL","RTSR - INTERVAL METERED","") -> 
E63: RPP / Non-RPP: | F63: =H15 -> RPP
E64: Consumption | F64: =K15 -> 750 | G64: kWh
E65: Demand | F65: =L15 -> 0 | G65: kW
E66: Current Loss Factor | F66: =I15 -> 1.0341
E67: Proposed/Approved Loss Factor | F67: =J15 -> 1.0341
G69: Current OEB-Approved | J69: Proposed | M69: Impact
G70: Rate | H70: Volume | I70: Charge | J70: Rate | K70: Volume | L70: Charge | M70: $ Change | N70: % Change
G71: ($) | I71: ($) | J71: ($) | L71: ($)
A72: =F62 -> RESIDENTIAL SERVICE CLASSIFICATION | D72: R_F | E72: Monthly Service Charge | G72: =IFERROR(SUMIF(RATES!B:B,'21. Bill Impacts'!D72,RATES!H:H),"") -> 17.64 | H72: 1 | I72: =H72*G72 -> 17.64 | J72: =IFERROR(SUMIF(RATES!B:B,'21. Bill Impacts'!D72,RATES!I:I),"") -> 20.92 | K72: 1 | L72: =K72*J72 -> 20.92 | M72: =L72-I72 -> 3.28 | N72: =IF(ISERROR(M72/I72), "", M72/I72) -> 0.1859410431
A73: =A72 -> RESIDENTIAL SERVICE CLASSIFICATION | D73: R_V | E73: Distribution Volumetric Rate | G73: =IFERROR(SUMIF(RATES!B:B,'21. Bill Impacts'!D73,RATES!H:H),"") -> 0.008 | H73: =IF($F65>0, $F65, $F64) -> 750 | I73: =H73*G73 -> 6 | J73: =IFERROR(SUMIF(RATES!B:B,'21. Bill Impacts'!D73,RATES!I:I),"") -> 0.004 | K73: =IF($F65>0, $F65, $F64) -> 750 | L73: =K73*J73 -> 3 | M73: -3 | N73: =IF(ISERROR(M73/I73), "", M73/I73) -> -0.5
A74: =A73 -> RESIDENTIAL SERVICE CLASSIFICATION | D74: R_FRR | E74: Fixed Rate Riders | G74: =IFERROR(SUMIF(RATES!B:B,'21. Bill Impacts'!D74,RATES!H:H),"") -> 0 | H74: 1 | I74: 0 | J74: =IFERROR(SUMIF(RATES!B:B,'21. Bill Impacts'!D74,RATES!I:I),"") -> 0.6 | K74: 1 | L74: =K74*J74 -> 0.6 | M74: 0.6
A75: =A74 -> RESIDENTIAL SERVICE CLASSIFICATION | D75: R_VRR | E75: Volumetric Rate Riders | G75: =IFERROR(SUMIF(RATES!B:B,'21. Bill Impacts'!D75,RATES!H:H),"") -> 0.0006 | H75: =IF($F65>0, $F65, $F64) -> 750 | I75: 0.45 | J75: =IFERROR(SUMIF(RATES!B:B,'21. Bill Impacts'!D75,RATES!I:I),"") -> 0 | K75: =IF($F65>0, $F65, $F64) -> 750 | L75: 0 | M75: -0.45 | N75: -1
A76: RESIDENTIAL SERVICE CLASSIFICATION | B76: ST_A | C76: =B15 -> 1 | E76: Sub-Total A (excluding pass through) | I76: =SUM(I72:I75) -> 24.09 | L76: =SUM(L72:L75) -> 24.52 | M76: 0.43 | N76: =IF((I76)=0,"",(M76/I76)) -> 0.01784973018
A77: RESIDENTIAL SERVICE CLASSIFICATION | E77: Line Losses on Cost of Power | G77: =IF((F64*12>=150000), 0, IF(F63="RPP",(G91*0.65+G92*0.17+G93*0.18),IF(F63="Non-RPP (Retailer)",G94,G95))) -> 0.08216 | H77: =IF(G77=0, 0, $F64*F66-F64) -> 25.575 | I77: =H77*G77 -> 2.101242 | J77: =IF((F64*12>=150000), 0, IF(F63="RPP",(J91*0.65+J92*0.17+J93*0.18),IF(F63="Non-RPP (Retailer)",J94,J95))) -> 0.08216 | K77: =IF(G77=0, 0, $F64*F66-F64) -> 25.575 | L77: =K77*J77 -> 2.101242 | M77: =L77-I77 -> 0 | N77: =IF(ISERROR(M77/I77), "", M77/I77) -> 0
A78: RESIDENTIAL SERVICE CLASSIFICATION | D78: R_DVA | E78: Total Deferral/Variance Account Rate Riders | G78: =IFERROR(SUMIF(RATES!B:B,'21. Bill Impacts'!D78,RATES!H:H),"") -> -0.0035 | H78: =IF($F65>0, $F65, $F64) -> 750 | I78: -2.625 | J78: =IFERROR(SUMIF(RATES!B:B,'21. Bill Impacts'!D78,RATES!I:I),"") -> -0.001 | K78: =IF($F65>0, $F65, $F64) -> 750 | L78: -0.75 | M78: =L78-I78 -> 1.875 | N78: -0.7142857143
A79: RESIDENTIAL SERVICE CLASSIFICATION | D79: R_GA | E79: GA Rate Riders
A80: RESIDENTIAL SERVICE CLASSIFICATION | D80: R_LV | E80: Low Voltage Service Charge | G80: =IFERROR(SUMIF(RATES!B:B,'21. Bill Impacts'!D80,RATES!H:H),"") -> 0 | H80: =IF($F65>0, $F65, $F64) -> 750 | I80: 0 | J80: =IFERROR(SUMIF(RATES!B:B,'21. Bill Impacts'!D80,RATES!I:I),"") -> 0 | K80: =IF($F65>0, $F65, $F64) -> 750 | L80: 0 | M80: 0
A81: RESIDENTIAL SERVICE CLASSIFICATION | E81: Smart Meter Entity Charge (if applicable) and/or any fixed ($) Deferral/Variance Account Rate Riders | G81: 0.57 | H81: 1 | I81: =H81*G81 -> 0.57 | J81: 0.57 | K81: 1 | L81: =K81*J81 -> 0.57 | M81: 0 | N81: =IF(ISERROR(M81/I81), "", M81/I81) -> 0
A82: RESIDENTIAL SERVICE CLASSIFICATION | B82: ST_B | C82: =B15 -> 1 | E82: Sub-Total B - Distribution (includes Sub-Total A) | I82: =SUM(I76:I81) -> 24.136242 | L82: =SUM(L76:L81) -> 26.441242 | M82: 2.305 | N82: =IF((I82)=0,"",(M82/I82)) -> 0.09549953965
A83: RESIDENTIAL SERVICE CLASSIFICATION | D83: R_TN | E83: RTSR - Network | G83: =IFERROR(SUMIF(RATES!B:B,'21. Bill Impacts'!D83,RATES!H:H),"") -> 0.0074 | H83: =IF($F65>0, $F65, $F64*$F66) -> 775.575 | I83: =H83*G83 -> 5.739255 | J83: =IFERROR(SUMIF(RATES!B:B,'21. Bill Impacts'!D83,RATES!I:I),"") -> 0.0074 | K83: =IF($F65>0, $F65, $F64*$F66) -> 775.575 | L83: =K83*J83 -> 5.739255 | M83: 0 | N83: =IF(ISERROR(M83/I83), "", M83/I83) -> 0
A84: RESIDENTIAL SERVICE CLASSIFICATION | D84: R_TC | E84: RTSR - Connection and/or Line and Transformation Connection | G84: =IFERROR(SUMIF(RATES!B:B,'21. Bill Impacts'!D84,RATES!H:H),"") -> 0.0057 | H84: =IF($F65>0, $F65, $F64*$F66) -> 775.575 | I84: =H84*G84 -> 4.4207775 | J84: =IFERROR(SUMIF(RATES!B:B,'21. Bill Impacts'!D84,RATES!I:I),"") -> 0.0065 | K84: =IF($F65>0, $F65, $F64*$F66) -> 775.575 | L84: =K84*J84 -> 5.0412375 | M84: 0.62046 | N84: =IF(ISERROR(M84/I84), "", M84/I84) -> 0.1403508772
A85: RESIDENTIAL SERVICE CLASSIFICATION | B85: ST_C | C85: =B15 -> 1 | E85: Sub-Total C - Delivery (including Sub-Total B) | I85: =SUM(I82:I84) -> 34.2962745 | L85: =SUM(L82:L84) -> 37.2217345 | M85: 2.92546 | N85: =IF((I85)=0,"",(M85/I85)) -> 0.08529964384
A86: RESIDENTIAL SERVICE CLASSIFICATION | E86: Wholesale Market Service Charge (WMSC) | G86: 0.0036 | H86: =F64*F66 -> 775.575 | I86: =H86*G86 -> 2.79207 | J86: 0.0036 | K86: =F64*F66 -> 775.575 | L86: =K86*J86 -> 2.79207 | M86: 0 | N86: =IF(ISERROR(M86/I86), "", M86/I86) -> 0
A87: RESIDENTIAL SERVICE CLASSIFICATION | E87: Rural and Remote Rate Protection (RRRP) | G87: 0.0003 | H87: =F64*F66 -> 775.575 | I87: 0.2326725 | J87: 0.0003 | K87: =F64*F66 -> 775.575 | L87: 0.2326725 | M87: 0 | N87: 0
A88: RESIDENTIAL SERVICE CLASSIFICATION | E88: Standard Supply Service Charge | G88: 0.25 | H88: 1 | I88: 0.25 | J88: 0.25 | K88: 1 | L88: 0.25 | M88: 0 | N88: 0
A89: RESIDENTIAL SERVICE CLASSIFICATION | E89: Debt Retirement Charge (DRC)
A90: RESIDENTIAL SERVICE CLASSIFICATION
A91: RESIDENTIAL SERVICE CLASSIFICATION | B91: RPP | E91: TOU - Off Peak | G91: 0.065 | H91: =IF(AND(F64*12>=150000),0.65*F64*F66,0.65*F64) -> 487.5 | I91: 31.6875 | J91: 0.065 | K91: =IF(AND(F64*12>=150000),0.65*F64*F67,0.65*F64) -> 487.5 | L91: 31.6875 | M91: 0 | N91: 0
A92: RESIDENTIAL SERVICE CLASSIFICATION | B92: RPP | E92: TOU - Mid Peak | G92: 0.095 | H92: =IF(AND(F64*12>=150000),0.17*F64*F66,0.17*F64) -> 127.5 | I92: 12.1125 | J92: 0.095 | K92: =IF(AND(F64*12>=150000),0.17*F64*F67,0.17*F64) -> 127.5 | L92: 12.1125 | M92: 0 | N92: 0
A93: RESIDENTIAL SERVICE CLASSIFICATION | B93: RPP | E93: TOU - On Peak | G93: 0.132 | H93: =IF(AND(F64*12>=150000),0.18*F64*F66,0.18*F64) -> 135 | I93: 17.82 | J93: 0.132 | K93: =IF(AND(F64*12>=150000),0.18*F64*F67,0.18*F64) -> 135 | L93: 17.82 | M93: 0 | N93: 0
A94: RESIDENTIAL SERVICE CLASSIFICATION | B94: Non-RPP (Retailer) | E94: Non-RPP Retailer Avg. Price | G94: =0.1061 -> 0.1061 | H94: =IF(AND(F64*12>=150000),F64*F66,F64) -> 750 | I94: =H94*G94 -> 79.575 | J94: =G94 -> 0.1061 | K94: =IF(AND(F64*12>=150000),F64*F67,F64) -> 750 | L94: =K94*J94 -> 79.575 | M94: 0 | N94: 0
A95: RESIDENTIAL SERVICE CLASSIFICATION | B95: Non-RPP (Other) | E95: Average IESO Wholesale Market Price | G95: =G94 -> 0.1061 | H95: =IF(AND(F64*12>=150000),F64*F66,F64) -> 750 | I95: =H95*G95 -> 79.575 | J95: =G95 -> 0.1061 | K95: =IF(AND(F64*12>=150000),F64*F67,F64) -> 750 | L95: =K95*J95 -> 79.575 | M95: 0 | N95: 0
A96: RESIDENTIAL SERVICE CLASSIFICATION
A97: RESIDENTIAL SERVICE CLASSIFICATION | B97: RPP_BT | C97: 1 | E97: Total Bill on TOU (before Taxes) | I97: =SUM(I86:I93,I85) -> 99.191017 | L97: =SUM(L86:L93,L85) -> 102.116477 | M97: =L97-I97 -> 2.92546 | N97: =IF((I97)=0,"",(M97/I97)) -> 0.02949319493
A98: RESIDENTIAL SERVICE CLASSIFICATION | B98: RPP | E98: HST | G98: 0.13 | I98: =I97*G98 -> 12.89483221 | J98: 0.13 | L98: =L97*J98 -> 13.27514201 | M98: =L98-I98 -> 0.3803098 | N98: =IF((I98)=0,"",(M98/I98)) -> 0.02949319493
A99: RESIDENTIAL SERVICE CLASSIFICATION | B99: RPP_NET | C99: 1 | E99: Total Bill on TOU (before 8% Provincial Rebate) | I99: =SUM(I97:I98) -> 112.0858492 | L99: =SUM(L97:L98) -> 115.391619 | M99: =SUM(M97:M98) -> 3.3057698 | N99: =IF((I99)=0,"",(M99/I99)) -> 0.02949319493
A100: =A98 -> RESIDENTIAL SERVICE CLASSIFICATION | B100: RPP | E100: 8% Provincial Rebate | G100: -0.08 | I100: =I97*G100 -> -7.93528136 | J100: =G100 -> -0.08 | L100: =L97*J100 -> -8.16931816 | M100: =L100-I100 -> -0.2340368 | N100: =IF((I100)=0,"",(M100/I100)) -> 0.02949319493
A101: RESIDENTIAL SERVICE CLASSIFICATION | B101: RPP_TOTAL | C101: =B15 -> 1 | E101: Total Bill on TOU | I101: =SUM(I97,I98,I100) -> 104.1505679 | L101: =L97+L98+L100 -> 107.2223009 | M101: =L101-I101 -> 3.071733 | N101: =IF((I101)=0,"",(M101/I101)) -> 0.02949319493
A102: RESIDENTIAL SERVICE CLASSIFICATION | B102: RPP
A103: RESIDENTIAL SERVICE CLASSIFICATION | B103: Non-RPP (Retailer) | E103: Total Bill on Non-RPP Avg. Price | I103: =SUM(I94,I86:I90,I85) -> 117.146017 | L103: =SUM(L94,L86:L90,L85) -> 120.071477 | M103: =L103-I103 -> 2.92546 | N103: =IF((I103)=0,"",(M103/I103)) -> 0.0249727654
A104: RESIDENTIAL SERVICE CLASSIFICATION | B104: Non-RPP (Retailer) | E104: HST | G104: 0.13 | I104: =I103*G104 -> 15.22898221 | J104: 0.13 | L104: =L103*J104 -> 15.60929201 | M104: =L104-I104 -> 0.3803098 | N104: =IF((I104)=0,"",(M104/I104)) -> 0.0249727654
A105: RESIDENTIAL SERVICE CLASSIFICATION | B105: Non-RPP (Retailer) | E105: Provincial Rebate | G105: -0.08 | I105: =I103*G105 -> -9.37168136 | J105: =G105 -> -0.08 | L105: =L103*J105 -> -9.60571816 | M105: =L105-I105 -> -0.2340368 | N105: =IF((I105)=0,"",(M105/I105)) -> 0.0249727654
A106: RESIDENTIAL SERVICE CLASSIFICATION | B106: Non-RPP (Retailer)_TOTAL | E106: Total Bill on Non-RPP Avg. Price | I106: =SUM(I103,I104,I105) -> 123.0033179 | L106: =SUM(L103,L104,L105) -> 126.0750508 | M106: =L106-I106 -> 3.071733 | N106: =IF((I106)=0,"",(M106/I106)) -> 0.0249727654
A107: RESIDENTIAL SERVICE CLASSIFICATION | B107: Non-RPP (Retailer)
A108: RESIDENTIAL SERVICE CLASSIFICATION | B108: Non-RPP (Other) | E108: Total Bill on Average IESO Wholesale Market Price | I108: =SUM(I95,I86:I90,I85) -> 117.146017 | L108: =SUM(L95,L86:L90,L85) -> 120.071477 | M108: =L108-I108 -> 2.92546 | N108: =IF((I108)=0,"",(M108/I108)) -> 0.0249727654
A109: RESIDENTIAL SERVICE CLASSIFICATION | B109: Non-RPP (Other) | E109: HST | G109: 0.13 | I109: =I108*G109 -> 15.22898221 | J109: 0.13 | L109: =L108*J109 -> 15.60929201 | M109: =L109-I109 -> 0.3803098 | N109: =IF((I109)=0,"",(M109/I109)) -> 0.0249727654
A110: RESIDENTIAL SERVICE CLASSIFICATION | B110: Non-RPP (Other) | E110: Provincial Rebate | G110: -0.08 | I110: =I108*G110 -> -9.37168136 | J110: =G110 -> -0.08 | L110: =L108*J110 -> -9.60571816 | M110: =L110-I110 -> -0.2340368 | N110: =IF((I110)=0,"",(M110/I110)) -> 0.0249727654
A111: RESIDENTIAL SERVICE CLASSIFICATION | B111: Non-RPP (Other)_TOTAL | E111: Total Bill on Average IESO Wholesale Market Price | I111: =SUM(I108,I109,I110) -> 123.0033179 | L111: =SUM(L108,L109,L110) -> 126.0750508 | M111: =L111-I111 -> 3.071733 | N111: =IF((I111)=0,"",(M111/I111)) -> 0.0249727654
A112: RESIDENTIAL SERVICE CLASSIFICATION | B112: Non-RPP (Other)
E115: Customer Class: | F115: =E16 -> GENERAL SERVICE LESS THAN 50 kW SERVICE CLASSIFICATION | L115: =IF(O66="DEMAND - INTERVAL","RTSR - INTERVAL METERED","") -> 
E116: RPP / Non-RPP: | F116: =H16 -> RPP
E117: Consumption | F117: =K16 -> 2000 | G117: kWh
E118: Demand | F118: =L16 -> 0 | G118: kW
E119: Current Loss Factor | F119: =I16 -> 1.0341
E120: Proposed/Approved Loss Factor | F120: =J16 -> 1.0341
G122: Current OEB-Approved | J122: Proposed | M122: Impact
G123: Rate | H123: Volume | I123: Charge | J123: Rate | K123: Volume | L123: Charge | M123: $ Change | N123: % Change
G124: ($) | I124: ($) | J124: ($) | L124: ($)
A125: =F115 -> GENERAL SERVICE LESS THAN 50 kW SERVICE CLASSIFICATION | D125: GSL_F | E125: Monthly Service Charge | G125: =IFERROR(SUMIF(RATES!B:B,'21. Bill Impacts'!D125,RATES!H:H),"") -> 25.12 | H125: 1 | I125: =H125*G125 -> 25.12 | J125: =IFERROR(SUMIF(RATES!B:B,'21. Bill Impacts'!D125,RATES!I:I),"") -> 25.35 | K125: 1 | L125: =K125*J125 -> 25.35 | M125: =L125-I125 -> 0.23 | N125: =IF(ISERROR(M125/I125), "", M125/I125) -> 0.009156050955
A126: =A125 -> GENERAL SERVICE LESS THAN 50 kW SERVICE CLASSIFICATION | D126: GSL_V | E126: Distribution Volumetric Rate | G126: =IFERROR(SUMIF(RATES!B:B,'21. Bill Impacts'!D126,RATES!H:H),"") -> 0.0167 | H126: =IF($F118>0, $F118, $F117) -> 2000 | I126: =H126*G126 -> 33.4 | J126: =IFERROR(SUMIF(RATES!B:B,'21. Bill Impacts'!D126,RATES!I:I),"") -> 0.0169 | K126: =IF($F118>0, $F118, $F117) -> 2000 | L126: =K126*J126 -> 33.8 | M126: 0.4 | N126: =IF(ISERROR(M126/I126), "", M126/I126) -> 0.0119760479
A127: =A126 -> GENERAL SERVICE LESS THAN 50 kW SERVICE CLASSIFICATION | D127: GSL_FRR | E127: Fixed Rate Riders | G127: =IFERROR(SUMIF(RATES!B:B,'21. Bill Impacts'!D127,RATES!H:H),"") -> 0 | H127: 1 | I127: 0 | J127: =IFERROR(SUMIF(RATES!B:B,'21. Bill Impacts'!D127,RATES!I:I),"") -> 0.66 | K127: 1 | L127: =K127*J127 -> 0.66 | M127: 0.66
A128: GENERAL SERVICE LESS THAN 50 kW SERVICE CLASSIFICATION | D128: GSL_VRR | E128: Volumetric Rate Riders | G128: =IFERROR(SUMIF(RATES!B:B,'21. Bill Impacts'!D128,RATES!H:H),"") -> 0.0019 | H128: =IF($F118>0, $F118, $F117) -> 2000 | I128: 3.8 | J128: =IFERROR(SUMIF(RATES!B:B,'21. Bill Impacts'!D128,RATES!I:I),"") -> 0.0002 | K128: =IF($F118>0, $F118, $F117) -> 2000 | L128: 0.4 | M128: -3.4 | N128: -0.8947368421
A129: GENERAL SERVICE LESS THAN 50 kW SERVICE CLASSIFICATION | B129: ST_A | C129: =B16 -> 2 | E129: Sub-Total A (excluding pass through) | I129: =SUM(I125:I128) -> 62.32 | L129: =SUM(L125:L128) -> 60.21 | M129: -2.11 | N129: =IF((I129)=0,"",(M129/I129)) -> -0.03385750963
A130: GENERAL SERVICE LESS THAN 50 kW SERVICE CLASSIFICATION | E130: Line Losses on Cost of Power | G130: =IF((F117*12>=150000), 0, IF(F116="RPP",(G144*0.65+G145*0.17+G146*0.18),IF(F116="Non-RPP (Retailer)",G147,G148))) -> 0.08216 | H130: =IF(G130=0, 0, $F117*F119-F117) -> 68.2 | I130: =H130*G130 -> 5.603312 | J130: =IF((F117*12>=150000), 0, IF(F116="RPP",(J144*0.65+J145*0.17+J146*0.18),IF(F116="Non-RPP (Retailer)",J147,J148))) -> 0.08216 | K130: =IF(G130=0, 0, $F117*F119-F117) -> 68.2 | L130: =K130*J130 -> 5.603312 | M130: =L130-I130 -> 0 | N130: =IF(ISERROR(M130/I130), "", M130/I130) -> 0
A131: GENERAL SERVICE LESS THAN 50 kW SERVICE CLASSIFICATION | D131: GSL_DVA | E131: Total Deferral/Variance Account Rate Riders | G131: =IFERROR(SUMIF(RATES!B:B,'21. Bill Impacts'!D131,RATES!H:H),"") -> -0.0035 | H131: =IF($F118>0, $F118, $F117) -> 2000 | I131: =H131*G131 -> -7 | J131: =IFERROR(SUMIF(RATES!B:B,'21. Bill Impacts'!D131,RATES!I:I),"") -> -0.001 | K131: =IF($F118>0, $F118, $F117) -> 2000 | L131: =K131*J131 -> -2 | M131: =L131-I131 -> 5 | N131: =IF(ISERROR(M131/I131), "", M131/I131) -> -0.7142857143
A132: GENERAL SERVICE LESS THAN 50 kW SERVICE CLASSIFICATION | D132: GSL_GA | E132: GA Rate Riders
A133: GENERAL SERVICE LESS THAN 50 kW SERVICE CLASSIFICATION | D133: GSL_LV | E133: Low Voltage Service Charge | G133: =IFERROR(SUMIF(RATES!B:B,'21. Bill Impacts'!D133,RATES!H:H),"") -> 0 | H133: =IF($F118>0, $F118, $F117) -> 2000 | I133: 0 | J133: =IFERROR(SUMIF(RATES!B:B,'21. Bill Impacts'!D133,RATES!I:I),"") -> 0 | K133: =IF($F118>0, $F118, $F117) -> 2000 | L133: 0 | M133: 0
A134: GENERAL SERVICE LESS THAN 50 kW SERVICE CLASSIFICATION | E134: Smart Meter Entity Charge (if applicable) and/or any fixed ($) Deferral/Variance Account Rate Riders | G134: 0.57 | H134: 1 | I134: =H134*G134 -> 0.57 | J134: 0.57 | K134: 1 | L134: =K134*J134 -> 0.57 | M134: 0 | N134: =IF(ISERROR(M134/I134), "", M134/I134) -> 0
A135: GENERAL SERVICE LESS THAN 50 kW SERVICE CLASSIFICATION | B135: ST_B | C135: =C129 -> 2 | E135: Sub-Total B - Distribution (includes Sub-Total A) | I135: =SUM(I129:I134) -> 61.493312 | L135: =SUM(L129:L134) -> 64.383312 | M135: 2.89 | N135: =IF((I135)=0,"",(M135/I135)) -> 0.04699698074
A136: GENERAL SERVICE LESS THAN 50 kW SERVICE CLASSIFICATION | D136: GSL_TN | E136: RTSR - Network | G136: =IFERROR(SUMIF(RATES!B:B,'21. Bill Impacts'!D136,RATES!H:H),"") -> 0.0066 | H136: =IF($F118>0, $F118, $F117*$F119) -> 2068.2 | I136: =H136*G136 -> 13.65012 | J136: =IFERROR(SUMIF(RATES!B:B,'21. Bill Impacts'!D136,RATES!I:I),"") -> 0.0066 | K136: =IF($F118>0, $F118, $F117*$F119) -> 2068.2 | L136: =K136*J136 -> 13.65012 | M136: 0 | N136: =IF(ISERROR(M136/I136), "", M136/I136) -> 0
A137: GENERAL SERVICE LESS THAN 50 kW SERVICE CLASSIFICATION | D137: GSL_TC | E137: RTSR - Connection and/or Line and Transformation Connection | G137: =IFERROR(SUMIF(RATES!B:B,'21. Bill Impacts'!D137,RATES!H:H),"") -> 0.0048 | H137: =IF($F118>0, $F118, $F117*$F119) -> 2068.2 | I137: =H137*G137 -> 9.92736 | J137: =IFERROR(SUMIF(RATES!B:B,'21. Bill Impacts'!D137,RATES!I:I),"") -> 0.0055 | K137: =IF($F118>0, $F118, $F117*$F119) -> 2068.2 | L137: =K137*J137 -> 11.3751 | M137: 1.44774 | N137: =IF(ISERROR(M137/I137), "", M137/I137) -> 0.1458333333
A138: GENERAL SERVICE LESS THAN 50 kW SERVICE CLASSIFICATION | B138: ST_C | C138: =C129 -> 2 | E138: Sub-Total C - Delivery (including Sub-Total B) | I138: =SUM(I135:I137) -> 85.070792 | L138: =SUM(L135:L137) -> 89.408532 | M138: 4.33774 | N138: =IF((I138)=0,"",(M138/I138)) -> 0.05098976862
A139: GENERAL SERVICE LESS THAN 50 kW SERVICE CLASSIFICATION | E139: Wholesale Market Service Charge (WMSC) | G139: 0.0036 | H139: =F117*F119 -> 2068.2 | I139: =H139*G139 -> 7.44552 | J139: 0.0036 | K139: =F117*F119 -> 2068.2 | L139: =K139*J139 -> 7.44552 | M139: 0 | N139: =IF(ISERROR(M139/I139), "", M139/I139) -> 0
A140: GENERAL SERVICE LESS THAN 50 kW SERVICE CLASSIFICATION | E140: Rural and Remote Rate Protection (RRRP) | G140: 0.0003 | H140: =F117*F119 -> 2068.2 | I140: 0.62046 | J140: 0.0003 | K140: =F117*F119 -> 2068.2 | L140: 0.62046 | M140: 0 | N140: 0
A141: GENERAL SERVICE LESS THAN 50 kW SERVICE CLASSIFICATION | E141: Standard Supply Service Charge | G141: 0.25 | H141: 1 | I141: 0.25 | J141: 0.25 | K141: 1 | L141: 0.25 | M141: 0 | N141: 0
A142: GENERAL SERVICE LESS THAN 50 kW SERVICE CLASSIFICATION | E142: Debt Retirement Charge (DRC) | G142: 0.007 | H142: =F117 -> 2000 | I142: 14 | J142: 0.007 | K142: =F117 -> 2000 | L142: 14 | M142: 0 | N142: 0
A143: GENERAL SERVICE LESS THAN 50 kW SERVICE CLASSIFICATION
A144: GENERAL SERVICE LESS THAN 50 kW SERVICE CLASSIFICATION | B144: RPP | E144: TOU - Off Peak | G144: 0.065 | H144: =IF(AND(F117*12>=150000),0.65*F117*F119,0.65*F117) -> 1300 | I144: =H144*G144 -> 84.5 | J144: 0.065 | K144: =IF(AND(F117*12>=150000),0.65*F117*F120,0.65*F117) -> 1300 | L144: =K144*J144 -> 84.5 | M144: =L144-I144 -> 0 | N144: =IF(ISERROR(M144/I144), "", M144/I144) -> 0
A145: GENERAL SERVICE LESS THAN 50 kW SERVICE CLASSIFICATION | B145: RPP | E145: TOU - Mid Peak | G145: 0.095 | H145: =IF(AND(F117*12>=150000),0.17*F117*F119,0.17*F117) -> 340 | I145: 32.3 | J145: 0.095 | K145: =IF(AND(F117*12>=150000),0.17*F117*F120,0.17*F117) -> 340 | L145: 32.3 | M145: 0 | N145: 0
A146: GENERAL SERVICE LESS THAN 50 kW SERVICE CLASSIFICATION | B146: RPP | E146: TOU - On Peak | G146: 0.132 | H146: =IF(AND(F117*12>=150000),0.18*F117*F119,0.18*F117) -> 360 | I146: 47.52 | J146: 0.132 | K146: =IF(AND(F117*12>=150000),0.18*F117*F120,0.18*F117) -> 360 | L146: 47.52 | M146: 0 | N146: 0
A147: GENERAL SERVICE LESS THAN 50 kW SERVICE CLASSIFICATION | B147: Non-RPP (Retailer) | E147: Non-RPP Retailer Avg. Price | G147: =0.1061 -> 0.1061 | H147: =IF(AND(F117*12>=150000),F117*F119,F117) -> 2000 | I147: =H147*G147 -> 212.2 | J147: =G147 -> 0.1061 | K147: =IF(AND(F117*12>=150000),F117*F120,F117) -> 2000 | L147: =K147*J147 -> 212.2 | M147: 0 | N147: 0
A148: GENERAL SERVICE LESS THAN 50 kW SERVICE CLASSIFICATION | B148: Non-RPP (Other) | E148: Average IESO Wholesale Market Price | G148: =G147 -> 0.1061 | H148: =IF(AND(F117*12>=150000),F117*F119,F117) -> 2000 | I148: =H148*G148 -> 212.2 | J148: =G148 -> 0.1061 | K148: =IF(AND(F117*12>=150000),F117*F120,F117) -> 2000 | L148: =K148*J148 -> 212.2 | M148: 0 | N148: 0
A149: GENERAL SERVICE LESS THAN 50 kW SERVICE CLASSIFICATION
A150: GENERAL SERVICE LESS THAN 50 kW SERVICE CLASSIFICATION | B150: RPP_BT | C150: 2 | E150: Total Bill on TOU (before Taxes) | I150: =SUM(I139:I146,I138) -> 271.706772 | L150: =SUM(L139:L146,L138) -> 276.044512 | M150: =L150-I150 -> 4.33774 | N150: =IF((I150)=0,"",(M150/I150)) -> 0.01596478427
A151: GENERAL SERVICE LESS THAN 50 kW SERVICE CLASSIFICATION | B151: RPP | E151: HST | G151: 0.13 | I151: =I150*G151 -> 35.32188036 | J151: 0.13 | L151: =L150*J151 -> 35.88578656 | M151: =L151-I151 -> 0.5639062 | N151: =IF((I151)=0,"",(M151/I151)) -> 0.01596478427
A152: GENERAL SERVICE LESS THAN 50 kW SERVICE CLASSIFICATION | B152: RPP_NET | C152: 2 | E152: Total Bill on TOU (before 8% Provincial Rebate) | I152: =SUM(I150:I151) -> 307.0286524 | L152: =SUM(L150:L151) -> 311.9302986 | M152: =SUM(M150:M151) -> 4.9016462 | N152: =IF((I152)=0,"",(M152/I152)) -> 0.01596478427
A153: =A151 -> GENERAL SERVICE LESS THAN 50 kW SERVICE CLASSIFICATION | B153: RPP | E153: 8% Provincial Rebate | G153: -0.08 | I153: =I150*G153 -> -21.73654176 | J153: =G153 -> -0.08 | L153: =L150*J153 -> -22.08356096 | M153: =L153-I153 -> -0.3470192 | N153: =IF((I153)=0,"",(M153/I153)) -> 0.01596478427
A154: GENERAL SERVICE LESS THAN 50 kW SERVICE CLASSIFICATION | B154: RPP_TOTAL | C154: =C129 -> 2 | E154: Total Bill on TOU | I154: =SUM(I150,I151,I153) -> 285.2921106 | L154: =L150+L151+L153 -> 289.8467376 | M154: =L154-I154 -> 4.554627 | N154: =IF((I154)=0,"",(M154/I154)) -> 0.01596478427
A155: GENERAL SERVICE LESS THAN 50 kW SERVICE CLASSIFICATION | B155: RPP
A156: GENERAL SERVICE LESS THAN 50 kW SERVICE CLASSIFICATION | B156: Non-RPP (Retailer) | E156: Total Bill on Non-RPP Avg. Price | I156: =SUM(I147,I139:I143,I138) -> 319.586772 | L156: =SUM(L147,L139:L143,L138) -> 323.924512 | M156: =L156-I156 -> 4.33774 | N156: =IF((I156)=0,"",(M156/I156)) -> 0.01357296478
A157: GENERAL SERVICE LESS THAN 50 kW SERVICE CLASSIFICATION | B157: Non-RPP (Retailer) | E157: HST | G157: 0.13 | I157: =I156*G157 -> 41.54628036 | J157: 0.13 | L157: =L156*J157 -> 42.11018656 | M157: =L157-I157 -> 0.5639062 | N157: =IF((I157)=0,"",(M157/I157)) -> 0.01357296478
A158: GENERAL SERVICE LESS THAN 50 kW SERVICE CLASSIFICATION | B158: Non-RPP (Retailer) | E158: Provincial Rebate | G158: -0.08 | I158: =I156*G158 -> -25.56694176 | J158: =G158 -> -0.08 | L158: =L156*J158 -> -25.91396096 | M158: =L158-I158 -> -0.3470192 | N158: =IF((I158)=0,"",(M158/I158)) -> 0.01357296478
A159: GENERAL SERVICE LESS THAN 50 kW SERVICE CLASSIFICATION | B159: Non-RPP (Retailer)_TOTAL | E159: Total Bill on Non-RPP Avg. Price | I159: =SUM(I156,I157,I158) -> 335.5661106 | L159: =SUM(L156,L157,L158) -> 340.1207376 | M159: =L159-I159 -> 4.554627 | N159: =IF((I159)=0,"",(M159/I159)) -> 0.01357296478
A160: GENERAL SERVICE LESS THAN 50 kW SERVICE CLASSIFICATION | B160: Non-RPP (Retailer)
A161: GENERAL SERVICE LESS THAN 50 kW SERVICE CLASSIFICATION | B161: Non-RPP (Other) | E161: Total Bill on Average IESO Wholesale Market Price | I161: =SUM(I148,I139:I143,I138) -> 319.586772 | L161: =SUM(L148,L139:L143,L138) -> 323.924512 | M161: =L161-I161 -> 4.33774 | N161: =IF((I161)=0,"",(M161/I161)) -> 0.01357296478
A162: GENERAL SERVICE LESS THAN 50 kW SERVICE CLASSIFICATION | B162: Non-RPP (Other) | E162: HST | G162: 0.13 | I162: =I161*G162 -> 41.54628036 | J162: 0.13 | L162: =L161*J162 -> 42.11018656 | M162: =L162-I162 -> 0.5639062 | N162: =IF((I162)=0,"",(M162/I162)) -> 0.01357296478
A163: GENERAL SERVICE LESS THAN 50 kW SERVICE CLASSIFICATION | B163: Non-RPP (Other) | E163: Provincial Rebate | G163: -0.08 | I163: =I161*G163 -> -25.56694176 | J163: =G163 -> -0.08 | L163: =L161*J163 -> -25.91396096 | M163: =L163-I163 -> -0.3470192 | N163: =IF((I163)=0,"",(M163/I163)) -> 0.01357296478
A164: GENERAL SERVICE LESS THAN 50 kW SERVICE CLASSIFICATION | B164: Non-RPP (Other)_TOTAL | E164: Total Bill on Average IESO Wholesale Market Price | I164: =SUM(I161,I162,I163) -> 335.5661106 | L164: =SUM(L161,L162,L163) -> 340.1207376 | M164: =L164-I164 -> 4.554627 | N164: =IF((I164)=0,"",(M164/I164)) -> 0.01357296478
A165: GENERAL SERVICE LESS THAN 50 kW SERVICE CLASSIFICATION | B165: Non-RPP (Other)
E168: Customer Class: | F168: =E17 -> GENERAL SERVICE 50 to 699 KW SERVICE CLASSIFICATION | L168: =IF(O119="DEMAND - INTERVAL","RTSR - INTERVAL METERED","") -> 
E169: RPP / Non-RPP: | F169: =H17 -> Non-RPP (Other) | I169: Class B
E170: Consumption | F170: =K17 -> 182500 | G170: kWh
E171: Demand | F171: =L17 -> 500 | G171: kW
E172: Current Loss Factor | F172: =I17 -> 1.0341
E173: Proposed/Approved Loss Factor | F173: =J17 -> 1.0341
G175: Current OEB-Approved | J175: Proposed | M175: Impact
G176: Rate | H176: Volume | I176: Charge | J176: Rate | K176: Volume | L176: Charge | M176: $ Change | N176: % Change
G177: ($) | I177: ($) | J177: ($) | L177: ($)
A178: =F168 -> GENERAL SERVICE 50 to 699 KW SERVICE CLASSIFICATION | D178: GS50_699_F | E178: Monthly Service Charge | G178: =IFERROR(SUMIF(RATES!B:B,'21. Bill Impacts'!D178,RATES!H:H),"") -> 125.33 | H178: 1 | I178: =H178*G178 -> 125.33 | J178: =IFERROR(SUMIF(RATES!B:B,'21. Bill Impacts'!D178,RATES!I:I),"") -> 126.46 | K178: 1 | L178: =K178*J178 -> 126.46 | M178: =L178-I178 -> 1.13 | N178: =IF(ISERROR(M178/I178), "", M178/I178) -> 0.009016197239
A179: =A178 -> GENERAL SERVICE 50 to 699 KW SERVICE CLASSIFICATION | D179: GS50_699_V | E179: Distribution Volumetric Rate | G179: =IFERROR(SUMIF(RATES!B:B,'21. Bill Impacts'!D179,RATES!H:H),"") -> 2.8387 | H179: =IF($F171>0, $F171, $F170) -> 500 | I179: =H179*G179 -> 1419.35 | J179: =IFERROR(SUMIF(RATES!B:B,'21. Bill Impacts'!D179,RATES!I:I),"") -> 2.8642 | K179: =IF($F171>0, $F171, $F170) -> 500 | L179: =K179*J179 -> 1432.1 | M179: 12.75 | N179: =IF(ISERROR(M179/I179), "", M179/I179) -> 0.008982985169
A180: =A179 -> GENERAL SERVICE 50 to 699 KW SERVICE CLASSIFICATION | D180: GS50_699_FRR | E180: Fixed Rate Riders | G180: =IFERROR(SUMIF(RATES!B:B,'21. Bill Impacts'!D180,RATES!H:H),"") -> 0 | H180: 1 | I180: 0 | J180: =IFERROR(SUMIF(RATES!B:B,'21. Bill Impacts'!D180,RATES!I:I),"") -> 3.83 | K180: 1 | L180: =K180*J180 -> 3.83 | M180: 3.83
A181: =A180 -> GENERAL SERVICE 50 to 699 KW SERVICE CLASSIFICATION | D181: GS50_699_VRR | E181: Volumetric Rate Riders | G181: =IFERROR(SUMIF(RATES!B:B,'21. Bill Impacts'!D181,RATES!H:H),"") -> 0.2524 | H181: =IF($F171>0, $F171, $F170) -> 500 | I181: 126.2 | J181: =IFERROR(SUMIF(RATES!B:B,'21. Bill Impacts'!D181,RATES!I:I),"") -> 0.0273 | K181: =IF($F171>0, $F171, $F170) -> 500 | L181: 13.65 | M181: -112.55 | N181: -0.8918383518
A182: GENERAL SERVICE 50 to 699 KW SERVICE CLASSIFICATION | B182: ST_A | C182: =B17 -> 3 | E182: Sub-Total A (excluding pass through) | I182: =SUM(I178:I181) -> 1670.88 | L182: =SUM(L178:L181) -> 1576.04 | M182: -94.84 | N182: =IF((I182)=0,"",(M182/I182)) -> -0.05676050943
A183: GENERAL SERVICE 50 to 699 KW SERVICE CLASSIFICATION | E183: Line Losses on Cost of Power | G183: =IF((F170*12>=150000), 0, IF(F169="RPP",(G197*0.65+G198*0.17+G199*0.18),IF(F169="Non-RPP (Retailer)",G200,G201))) -> 0 | H183: =IF(G183=0, 0, $F170*F172-F170) -> 0 | I183: =H183*G183 -> 0 | J183: =IF((F170*12>=150000), 0, IF(F169="RPP",(J197*0.65+J198*0.17+J199*0.18),IF(F169="Non-RPP (Retailer)",J200,J201))) -> 0 | K183: =IF(G183=0, 0, $F170*F172-F170) -> 0 | L183: =K183*J183 -> 0 | M183: =L183-I183 -> 0 | N183: =IF(ISERROR(M183/I183), "", M183/I183) -> 
